Publisher Label,Publisher URI,Body Name,Service Area Categorisation,Service Division Categorisation,Expenses Type,Date,Transaction Number,Amount,Capital or Revenue,Supplier Name,Merchant Category
Peterborough,http://opendatacommunities.org/id/unitary-authority/peterborough,Peterborough City Council,Amey Peterborough & Waste Management,Waste Management,Services,02/12/2016 00:00,30097461,15525.58,Revenue,Biogen (UK) Ltd,Recycling
Peterborough,http://opendatacommunities.org/id/unitary-authority/peterborough,Peterborough City Council,Adult Services & Communities - Adults,Independent Sector Placements,Services,02/12/2016 00:00,30099516,3200,Revenue,EXCELCARE GLENNFIELD HOUSE,Residential Care
Peterborough,http://opendatacommunities.org/id/unitary-authority/peterborough,Peterborough City Council,Adult Services & Communities - Adults,Independent Sector Placements,Services,02/12/2016 00:00,30100722,2387.48,Revenue,Linkage Community Trust Limited,Residential Care
Peterborough,http://opendatacommunities.org/id/unitary-authority/peterborough,Peterborough City Council,Sustainable Growth Strategy,Environment Strategy,Services,02/12/2016 00:00,30101586,3000,Revenue,Pinsent Masons,Legal Costs
Peterborough,http://opendatacommunities.org/id/unitary-authority/peterborough,Peterborough City Council,Adult Services & Communities - Adults,Independent Sector Placements,Services,02/12/2016 00:00,30101597,2344.04,Revenue,Longueville Court (Barchester),Residential Care
Peterborough,http://opendatacommunities.org/id/unitary-authority/peterborough,Peterborough City Council,Adult Services & Communities - Adults,Independent Sector Placements,Services,02/12/2016 00:00,30101785,1540.52,Revenue,The Regard Partnership Limited,Residential Care
Peterborough,http://opendatacommunities.org/id/unitary-authority/peterborough,Peterborough City Council,Adult Services & Communities - Adults,Independent Sector Placements,Services,02/12/2016 00:00,30101786,2424,Revenue,The Regard Partnership Limited,Residential Care
Peterborough,http://opendatacommunities.org/id/unitary-authority/peterborough,Peterborough City Council,Children's & Safeguarding,Access to Resources & Specialist Commissioning,Services,02/12/2016 00:00,30101998,-686.76,Revenue,Archway Care Ltd,Boarding Out Allowances
Peterborough,http://opendatacommunities.org/id/unitary-authority/peterborough,Peterborough City Council,Children's & Safeguarding,Access to Resources & Specialist Commissioning,Services,02/12/2016 00:00,30101999,-700.8,Revenue,Archway Care Ltd,Boarding Out Allowances
Peterborough,http://opendatacommunities.org/id/unitary-authority/peterborough,Peterborough City Council,Adult Services & Communities - Adults,Independent Sector Placements,Services,02/12/2016 00:00,30102053,3720,Revenue,EXCELCARE GLENNFIELD HOUSE,Residential Care
Peterborough,http://opendatacommunities.org/id/unitary-authority/peterborough,Peterborough City Council,Children's & Safeguarding,Access to Resources & Specialist Commissioning,Services,02/12/2016 00:00,30102082,3504,Revenue,Archway Care Ltd,Boarding Out Allowances
Peterborough,http://opendatacommunities.org/id/unitary-authority/peterborough,Peterborough City Council,Children's & Safeguarding,Access to Resources & Specialist Commissioning,Services,02/12/2016 00:00,30102083,3399,Revenue,Archway Care Ltd,Boarding Out Allowances
Peterborough,http://opendatacommunities.org/id/unitary-authority/peterborough,Peterborough City Council,Children's & Safeguarding,Access to Resources & Specialist Commissioning,Services,02/12/2016 00:00,30102134,3504,Revenue,Archway Care Ltd,Boarding Out Allowances
Peterborough,http://opendatacommunities.org/id/unitary-authority/peterborough,Peterborough City Council,Children's & Safeguarding,Access to Resources & Specialist Commissioning,Services,02/12/2016 00:00,30102135,3433.8,Revenue,Archway Care Ltd,Boarding Out Allowances
Peterborough,http://opendatacommunities.org/id/unitary-authority/peterborough,Peterborough City Council,Children's & Safeguarding,Access to Resources & Specialist Commissioning,Services,02/12/2016 00:00,30102136,3504,Revenue,Archway Care Ltd,Boarding Out Allowances
Peterborough,http://opendatacommunities.org/id/unitary-authority/peterborough,Peterborough City Council,Children's & Safeguarding,Access to Resources & Specialist Commissioning,Services,02/12/2016 00:00,30102137,3504,Revenue,Archway Care Ltd,Boarding Out Allowances
Peterborough,http://opendatacommunities.org/id/unitary-authority/peterborough,Peterborough City Council,Business Management and Commercial Operations,Commissioning,Interview & Training Expenses,02/12/2016 00:00,30102151,2000,Revenue,Redacted Personal Information,Training
Peterborough,http://opendatacommunities.org/id/unitary-authority/peterborough,Peterborough City Council,Adult Services & Communities - Adults,Independent Sector Placements,Services,02/12/2016 00:00,30102174,3600,Revenue,LESTER HALL APARTMENTS LTD,Residential Care
Peterborough,http://opendatacommunities.org/id/unitary-authority/peterborough,Peterborough City Council,Adult Services & Communities - Adults,Independent Sector Placements,Services,02/12/2016 00:00,30102180,2181,Revenue,Southwark Park Nursing Homes - Blenheim Care Centre,Residential Care
Peterborough,http://opendatacommunities.org/id/unitary-authority/peterborough,Peterborough City Council,Adult Services & Communities - Adults,Independent Sector Placements,Services,02/12/2016 00:00,30102205,14588,Revenue,Decoy Farm,Residential Care
Peterborough,http://opendatacommunities.org/id/unitary-authority/peterborough,Peterborough City Council,Children's & Safeguarding,Children's Social Care,Agency Staff,02/12/2016 00:00,30102266,1406,Revenue,NonStop Recruitment Ltd,External Temporary Staff
Peterborough,http://opendatacommunities.org/id/unitary-authority/peterborough,Peterborough City Council,Children's & Safeguarding,Children's Social Care,Agency Staff,02/12/2016 00:00,30102268,1406,Revenue,NonStop Recruitment Ltd,External Temporary Staff
Peterborough,http://opendatacommunities.org/id/unitary-authority/peterborough,Peterborough City Council,Legal & Democratic,Legal Services,Agency Staff,02/12/2016 00:00,30102296,1800,Revenue,Sellick Partnership Group Limited,External Temporary Staff
Peterborough,http://opendatacommunities.org/id/unitary-authority/peterborough,Peterborough City Council,Adults and Communities - Communities,Youth / Youth Offending,Services,02/12/2016 00:00,30102300,2400,Revenue,PGL Travel Ltd,Programmes
Peterborough,http://opendatacommunities.org/id/unitary-authority/peterborough,Peterborough City Council,Adults and Communities - Communities,Youth / Youth Offending,Services,02/12/2016 00:00,30102301,1800,Revenue,PGL Travel Ltd,Programmes
Peterborough,http://opendatacommunities.org/id/unitary-authority/peterborough,Peterborough City Council,Adults and Communities - Communities,Youth / Youth Offending,Services,02/12/2016 00:00,30102302,4500,Revenue,PGL Travel Ltd,Programmes
Peterborough,http://opendatacommunities.org/id/unitary-authority/peterborough,Peterborough City Council,Adults and Communities - Communities,Youth / Youth Offending,Services,02/12/2016 00:00,30102303,3375,Revenue,PGL Travel Ltd,Programmes
Peterborough,http://opendatacommunities.org/id/unitary-authority/peterborough,Peterborough City Council,Adults and Communities - Communities,Youth / Youth Offending,Services,02/12/2016 00:00,30102304,1800,Revenue,PGL Travel Ltd,Programmes
Peterborough,http://opendatacommunities.org/id/unitary-authority/peterborough,Peterborough City Council,Adults and Communities - Communities,Youth / Youth Offending,Services,02/12/2016 00:00,30102305,1800,Revenue,PGL Travel Ltd,Programmes
Peterborough,http://opendatacommunities.org/id/unitary-authority/peterborough,Peterborough City Council,Adults and Communities - Communities,Youth / Youth Offending,Services,02/12/2016 00:00,30102309,3375,Revenue,PGL Travel Ltd,Programmes
Peterborough,http://opendatacommunities.org/id/unitary-authority/peterborough,Peterborough City Council,Education,Pupil Referral Unit,"Tools, Equipment, Furniture & Materials",02/12/2016 00:00,30102311,1125,Revenue,Focus Training,Educational Equipment
Peterborough,http://opendatacommunities.org/id/unitary-authority/peterborough,Peterborough City Council,Adults and Communities - Communities,Youth / Youth Offending,Services,02/12/2016 00:00,30102315,3375,Revenue,PGL Travel Ltd,Programmes
Peterborough,http://opendatacommunities.org/id/unitary-authority/peterborough,Peterborough City Council,Adult Services & Communities - Adults,Independent Sector Placements,Services,02/12/2016 00:00,30102351,5314.29,Revenue,EXCELCARE GLENNFIELD HOUSE,Residential Care
Peterborough,http://opendatacommunities.org/id/unitary-authority/peterborough,Peterborough City Council,Adult Services & Communities - Adults,Independent Sector Placements,Services,02/12/2016 00:00,30102352,-8237.14,Revenue,EXCELCARE GLENNFIELD HOUSE,Residential Care
Peterborough,http://opendatacommunities.org/id/unitary-authority/peterborough,Peterborough City Council,Adult Services & Communities - Adults,Independent Sector Placements,Services,02/12/2016 00:00,30102357,6629.12,Revenue,Autism Care (UK) Ltd,Residential Care
Peterborough,http://opendatacommunities.org/id/unitary-authority/peterborough,Peterborough City Council,Education,School Infrastructure,Agency Staff,02/12/2016 00:00,30102531,1500,Revenue,Baltimore Consulting,External Temporary Staff
Peterborough,http://opendatacommunities.org/id/unitary-authority/peterborough,Peterborough City Council,Adult Services & Communities - Adults,Independent Sector Placements,Services,02/12/2016 00:00,30102572,901.56,Revenue,ARGYLE PARK NURSING HOME 2011,Residential Care
Peterborough,http://opendatacommunities.org/id/unitary-authority/peterborough,Peterborough City Council,Adult Services & Communities - Adults,Independent Sector Placements,Services,02/12/2016 00:00,30102574,602.56,Revenue,Consensus Support Services Ltd,Home Care
Peterborough,http://opendatacommunities.org/id/unitary-authority/peterborough,Peterborough City Council,Adult Services & Communities - Adults,Independent Sector Placements,Services,02/12/2016 00:00,30102575,9105.76,Revenue,Consensus Support Services Ltd,Residential Care
Peterborough,http://opendatacommunities.org/id/unitary-authority/peterborough,Peterborough City Council,Education,Pupil Referral Unit,Services,02/12/2016 00:00,30102599,1860,Revenue,Top Class Tutors,Education Expenses
Peterborough,http://opendatacommunities.org/id/unitary-authority/peterborough,Peterborough City Council,"Cemeteries, Cremation & Registrars",Registration Service,Services,02/12/2016 00:00,30102606,575,Revenue,Office of the Immigration Serv Comm (OISC),Subscriptions
Peterborough,http://opendatacommunities.org/id/unitary-authority/peterborough,Peterborough City Council,Adult Services & Communities - Adults,Independent Sector Placements,Services,02/12/2016 00:00,30102630,-5736.9,Revenue,Pilgrim Havens,Residential Care
Peterborough,http://opendatacommunities.org/id/unitary-authority/peterborough,Peterborough City Council,Adult Services & Communities - Adults,Independent Sector Placements,Services,02/12/2016 00:00,30102632,1932,Revenue,SOCIAL CARE SOLUTIONS LTD,Home Care
Peterborough,http://opendatacommunities.org/id/unitary-authority/peterborough,Peterborough City Council,Adult Services & Communities - Adults,Independent Sector Placements,Services,02/12/2016 00:00,30102641,7816.04,Revenue,Home From Home Care,Residential Care
Peterborough,http://opendatacommunities.org/id/unitary-authority/peterborough,Peterborough City Council,Adult Services & Communities - Adults,Independent Sector Placements,Services,02/12/2016 00:00,30102642,7004.04,Revenue,Home From Home Care,Residential Care
Peterborough,http://opendatacommunities.org/id/unitary-authority/peterborough,Peterborough City Council,Adult Services & Communities - Adults,Independent Sector Placements,Services,02/12/2016 00:00,30102643,6354.32,Revenue,Home From Home Care,Residential Care
Peterborough,http://opendatacommunities.org/id/unitary-authority/peterborough,Peterborough City Council,Adult Services & Communities - Adults,Independent Sector Placements,Services,02/12/2016 00:00,30102644,8328.92,Revenue,Home From Home Care,Residential Care
Peterborough,http://opendatacommunities.org/id/unitary-authority/peterborough,Peterborough City Council,Adults and Communities - Communities,Housing and Health,Services,02/12/2016 00:00,30102661,1292,Revenue,Nightingale Services,Contractors
Peterborough,http://opendatacommunities.org/id/unitary-authority/peterborough,Peterborough City Council,Adults and Communities - Communities,Service Director - Adults & Communities,Services,02/12/2016 00:00,30102665,11540,Revenue,City College Peterborough,Projects
Peterborough,http://opendatacommunities.org/id/unitary-authority/peterborough,Peterborough City Council,Adult Services & Communities - Adults,Finance,Services,02/12/2016 00:00,30102667,4670,Revenue,City College Peterborough,Administration Expenses
Peterborough,http://opendatacommunities.org/id/unitary-authority/peterborough,Peterborough City Council,Business Management and Commercial Operations,Clare Lodge,Interview & Training Expenses,02/12/2016 00:00,30102672,1104,Revenue,Hexagon Care Services,Training
Peterborough,http://opendatacommunities.org/id/unitary-authority/peterborough,Peterborough City Council,Public Health,Housing and Health - Public Health,Services,02/12/2016 00:00,30102674,600,Revenue,Codename Media Ltd,Publicity
Peterborough,http://opendatacommunities.org/id/unitary-authority/peterborough,Peterborough City Council,Adult Services & Communities - Adults,Independent Sector Placements,Services,02/12/2016 00:00,30102683,4405.4,Revenue,OAKFIELD (EASTON MAUDIT) LTD,Residential Care
Peterborough,http://opendatacommunities.org/id/unitary-authority/peterborough,Peterborough City Council,Adults and Communities - Communities,Housing and Health,Services,02/12/2016 00:00,30102684,517.99,Revenue,PDG Architects Ltd,Contractors
Peterborough,http://opendatacommunities.org/id/unitary-authority/peterborough,Peterborough City Council,Peterborough Highway Services,Transport & Infrastructure Commissioning,Public Transport,02/12/2016 00:00,30102690,966,Revenue,Stagecoach in Peterborough,Bus Fares
Peterborough,http://opendatacommunities.org/id/unitary-authority/peterborough,Peterborough City Council,Adult Services & Communities - Adults,Finance,Agency Staff,02/12/2016 00:00,30102710,5185,Revenue,Green Park Interim and Exec Ltd,External Temporary Staff
Peterborough,http://opendatacommunities.org/id/unitary-authority/peterborough,Peterborough City Council,Adult Services & Communities - Adults,Day Opportunities / In House,Agency Staff,02/12/2016 00:00,30102713,976.8,Revenue,Medicare First,External Temporary Staff
Peterborough,http://opendatacommunities.org/id/unitary-authority/peterborough,Peterborough City Council,Adult Services & Communities - Adults,Day Opportunities / In House,Agency Staff,02/12/2016 00:00,30102714,710.4,Revenue,Medicare First,External Temporary Staff
Peterborough,http://opendatacommunities.org/id/unitary-authority/peterborough,Peterborough City Council,Development and Construction,Development Management,Services,02/12/2016 00:00,30102727,622.5,Revenue,Johnston Press Midlands Division,Advertising
Peterborough,http://opendatacommunities.org/id/unitary-authority/peterborough,Peterborough City Council,Business Management and Commercial Operations,Business Management and Commercial Operations,Services,02/12/2016 00:00,30102746,1625.95,Revenue,CAS Care Consultancy Ltd,Consultants Fees
Peterborough,http://opendatacommunities.org/id/unitary-authority/peterborough,Peterborough City Council,Business Management and Commercial Operations,Commissioning,Services,02/12/2016 00:00,30102753,3875,Revenue,121 Social Care Limited,Hired Services
Peterborough,http://opendatacommunities.org/id/unitary-authority/peterborough,Peterborough City Council,Adults and Communities - Communities,Youth / Youth Offending,Services,02/12/2016 00:00,30102766,3375,Revenue,PGL Travel Ltd,Programmes
Peterborough,http://opendatacommunities.org/id/unitary-authority/peterborough,Peterborough City Council,Adults and Communities - Communities,Youth / Youth Offending,Services,02/12/2016 00:00,30102768,1800,Revenue,PGL Travel Ltd,Programmes
Peterborough,http://opendatacommunities.org/id/unitary-authority/peterborough,Peterborough City Council,Westcombe Engineering,Westcombe Engineering,Services,02/12/2016 00:00,30102788,2315.1,Revenue,EXMOL MANUFACTURING,Items For Resale
Peterborough,http://opendatacommunities.org/id/unitary-authority/peterborough,Peterborough City Council,City Servs & Communications,"Markets, Tourism & Events",Services,02/12/2016 00:00,30102791,560,Revenue,R J Mason Blacksmith & Farrier,Conferences/Events
Peterborough,http://opendatacommunities.org/id/unitary-authority/peterborough,Peterborough City Council,Education,School Improvement,Services,02/12/2016 00:00,30102792,1950,Revenue,Edge Hill University,Subscriptions
Peterborough,http://opendatacommunities.org/id/unitary-authority/peterborough,Peterborough City Council,"Cemeteries, Cremation & Registrars",Bereavement Service,Services,02/12/2016 00:00,30102793,6132,Revenue,JAT Ingledew,Special Projects
Peterborough,http://opendatacommunities.org/id/unitary-authority/peterborough,Peterborough City Council,"Cemeteries, Cremation & Registrars",Bereavement Service,Services,02/12/2016 00:00,30102794,2627,Revenue,JAT Ingledew,Special Projects
Peterborough,http://opendatacommunities.org/id/unitary-authority/peterborough,Peterborough City Council,Legal & Democratic,Legal Services,Agency Staff,02/12/2016 00:00,30102795,1591,Revenue,Venn Group Ltd,External Temporary Staff
Peterborough,http://opendatacommunities.org/id/unitary-authority/peterborough,Peterborough City Council,Legal & Democratic,Legal Services,Agency Staff,02/12/2016 00:00,30102797,1333,Revenue,Venn Group Ltd,External Temporary Staff
Peterborough,http://opendatacommunities.org/id/unitary-authority/peterborough,Peterborough City Council,Adult Services & Communities - Adults,Therapy/Reablement/Community Equipment,Agency Staff,02/12/2016 00:00,30102815,1221,Revenue,SWP Consulting,External Temporary Staff
Peterborough,http://opendatacommunities.org/id/unitary-authority/peterborough,Peterborough City Council,Adult Services & Communities - Adults,Therapy/Reablement/Community Equipment,Agency Staff,02/12/2016 00:00,30102816,1258,Revenue,SWP Consulting,External Temporary Staff
Peterborough,http://opendatacommunities.org/id/unitary-authority/peterborough,Peterborough City Council,Adult Services & Communities - Adults,Finance,Agency Staff,02/12/2016 00:00,30102821,11050,Revenue,Green Park Interim and Exec Ltd,External Temporary Staff
Peterborough,http://opendatacommunities.org/id/unitary-authority/peterborough,Peterborough City Council,Adult Services & Communities - Adults,Finance,Agency Staff,02/12/2016 00:00,30102822,13000,Revenue,Green Park Interim and Exec Ltd,External Temporary Staff
Peterborough,http://opendatacommunities.org/id/unitary-authority/peterborough,Peterborough City Council,Business Management and Commercial Operations,Commissioning,Services,02/12/2016 00:00,30102870,2652.5,Revenue,Oracle Care Ltd (Region 2),Hired Services
Peterborough,http://opendatacommunities.org/id/unitary-authority/peterborough,Peterborough City Council,Peterborough Highway Services,Highway & Drainage Control,Agency Staff,02/12/2016 00:00,30102887,1110,Revenue,Matchtech,External Temporary Staff
Peterborough,http://opendatacommunities.org/id/unitary-authority/peterborough,Peterborough City Council,Peterborough Highway Services,Highway & Drainage Control,Agency Staff,02/12/2016 00:00,30102891,1332,Revenue,Matchtech,External Temporary Staff
Peterborough,http://opendatacommunities.org/id/unitary-authority/peterborough,Peterborough City Council,Adults and Communities - Communities,Youth / Youth Offending,Services,02/12/2016 00:00,30102934,1800,Revenue,PGL Travel Ltd,Programmes
Peterborough,http://opendatacommunities.org/id/unitary-authority/peterborough,Peterborough City Council,Corporate Property,Commercial Propety,Services,02/12/2016 00:00,30102941,5500,Revenue,Serco Ltd,Hired Services
Peterborough,http://opendatacommunities.org/id/unitary-authority/peterborough,Peterborough City Council,Children's & Safeguarding,Children's Social Care,Agency Staff,02/12/2016 00:00,30102943,1406,Revenue,NonStop Recruitment Ltd,External Temporary Staff
Peterborough,http://opendatacommunities.org/id/unitary-authority/peterborough,Peterborough City Council,Children's & Safeguarding,Children's Social Care,Agency Staff,02/12/2016 00:00,30102945,1406,Revenue,NonStop Recruitment Ltd,External Temporary Staff
Peterborough,http://opendatacommunities.org/id/unitary-authority/peterborough,Peterborough City Council,Adult Services & Communities - Adults,Independent Sector Placements,Services,02/12/2016 00:00,30102953,1332.56,Revenue,Barchester Wood Grange,Residential Care
Peterborough,http://opendatacommunities.org/id/unitary-authority/peterborough,Peterborough City Council,Legal & Democratic,Legal Services,Services,02/12/2016 00:00,30102973,4750,Revenue,"Gold, Ms Debra",Legal Costs
Peterborough,http://opendatacommunities.org/id/unitary-authority/peterborough,Peterborough City Council,Adult Services & Communities - Adults,Independent Sector Placements,Services,02/12/2016 00:00,30102974,786.6,Revenue,Mencap,Home Care
Peterborough,http://opendatacommunities.org/id/unitary-authority/peterborough,Peterborough City Council,Adult Services & Communities - Adults,Independent Sector Placements,Services,02/12/2016 00:00,30102976,662.4,Revenue,Mencap,Home Care
Peterborough,http://opendatacommunities.org/id/unitary-authority/peterborough,Peterborough City Council,HR,HR WFD & Training,Interview & Training Expenses,02/12/2016 00:00,30102977,1935,Revenue,Reinvigoration,Training
Peterborough,http://opendatacommunities.org/id/unitary-authority/peterborough,Peterborough City Council,Adult Services & Communities - Adults,Independent Sector Placements,Services,02/12/2016 00:00,30102979,6343.2,Revenue,Mencap,Home Care
Peterborough,http://opendatacommunities.org/id/unitary-authority/peterborough,Peterborough City Council,Legal & Democratic,Legal Services,Agency Staff,02/12/2016 00:00,30102980,553.5,Revenue,Venn Group Ltd,External Temporary Staff
Peterborough,http://opendatacommunities.org/id/unitary-authority/peterborough,Peterborough City Council,Adult Services & Communities - Adults,Independent Sector Placements,Services,02/12/2016 00:00,30102981,7257.6,Revenue,Mencap,Home Care
Peterborough,http://opendatacommunities.org/id/unitary-authority/peterborough,Peterborough City Council,Peterborough Highway Services,Transport & Infrastructure Commissioning,Repair & Maintenance of Buildings,02/12/2016 00:00,30102982,1311.62,Revenue,Western Power Distribution,Infrastructure Maintenance
Peterborough,http://opendatacommunities.org/id/unitary-authority/peterborough,Peterborough City Council,Adult Services & Communities - Adults,Independent Sector Placements,Services,02/12/2016 00:00,30102984,828,Revenue,Mencap,Home Care
Peterborough,http://opendatacommunities.org/id/unitary-authority/peterborough,Peterborough City Council,Adult Services & Communities - Adults,Independent Sector Placements,Services,02/12/2016 00:00,30102985,6317.2,Revenue,Mencap,Residential Care
Peterborough,http://opendatacommunities.org/id/unitary-authority/peterborough,Peterborough City Council,Adult Services & Communities - Adults,Independent Sector Placements,Services,02/12/2016 00:00,30102986,6398.4,Revenue,Mencap,Home Care
Peterborough,http://opendatacommunities.org/id/unitary-authority/peterborough,Peterborough City Council,Business Management and Commercial Operations,Business Management and Commercial Operations,Agency Staff,02/12/2016 00:00,30102987,2500,Revenue,Thawait's Consulting Ltd,External Temporary Staff
Peterborough,http://opendatacommunities.org/id/unitary-authority/peterborough,Peterborough City Council,Adult Services & Communities - Adults,Independent Sector Placements,Services,02/12/2016 00:00,30102990,676.2,Revenue,Mencap,Home Care
Peterborough,http://opendatacommunities.org/id/unitary-authority/peterborough,Peterborough City Council,Adult Services & Communities - Adults,Independent Sector Placements,Services,02/12/2016 00:00,30102991,1623.8,Revenue,Mencap,Home Care
Peterborough,http://opendatacommunities.org/id/unitary-authority/peterborough,Peterborough City Council,Adult Services & Communities - Adults,Independent Sector Placements,Services,02/12/2016 00:00,30102995,3318.8,Revenue,Mencap,Home Care
Peterborough,http://opendatacommunities.org/id/unitary-authority/peterborough,Peterborough City Council,HR,HR WFD & Training,Interview & Training Expenses,02/12/2016 00:00,30102997,625,Revenue,TCTA Limited,Training
Peterborough,http://opendatacommunities.org/id/unitary-authority/peterborough,Peterborough City Council,Adult Services & Communities - Adults,Independent Sector Placements,Services,02/12/2016 00:00,30102998,1458.2,Revenue,Mencap,Home Care
Peterborough,http://opendatacommunities.org/id/unitary-authority/peterborough,Peterborough City Council,Financial Services,Insurance,Services,02/12/2016 00:00,30103004,1750,Revenue,Clyde & Co LLP,Legal Costs
Peterborough,http://opendatacommunities.org/id/unitary-authority/peterborough,Peterborough City Council,Adult Services & Communities - Adults,Independent Sector Placements,Services,02/12/2016 00:00,30103008,1604.56,Revenue,Mencap,Home Care
Peterborough,http://opendatacommunities.org/id/unitary-authority/peterborough,Peterborough City Council,Adult Services & Communities - Adults,Independent Sector Placements,Services,02/12/2016 00:00,30103009,1501.8,Revenue,Mencap,Home Care
Peterborough,http://opendatacommunities.org/id/unitary-authority/peterborough,Peterborough City Council,Adult Services & Communities - Adults,Block Contracts,Third Party Payments,02/12/2016 00:00,30103016,1576.24,Revenue,Pilgrim Havens,Third Party Payments - Contract
Peterborough,http://opendatacommunities.org/id/unitary-authority/peterborough,Peterborough City Council,Children's & Safeguarding,Access to Resources & Specialist Commissioning,Services,02/12/2016 00:00,30103020,3321.9,Revenue,St Christopher's Fellowship,Boarding Out Allowances
Peterborough,http://opendatacommunities.org/id/unitary-authority/peterborough,Peterborough City Council,Children's & Safeguarding,Access to Resources & Specialist Commissioning,Services,02/12/2016 00:00,30103023,3321.9,Revenue,St Christopher's Fellowship,Boarding Out Allowances
Peterborough,http://opendatacommunities.org/id/unitary-authority/peterborough,Peterborough City Council,Children's & Safeguarding,Access to Resources & Specialist Commissioning,Services,02/12/2016 00:00,30103024,3407.1,Revenue,St Christopher's Fellowship,Boarding Out Allowances
Peterborough,http://opendatacommunities.org/id/unitary-authority/peterborough,Peterborough City Council,Adult Services & Communities - Adults,Independent Sector Placements,Services,02/12/2016 00:00,30103025,1323.88,Revenue,Mencap,Home Care
Peterborough,http://opendatacommunities.org/id/unitary-authority/peterborough,Peterborough City Council,Children's & Safeguarding,Access to Resources & Specialist Commissioning,Services,02/12/2016 00:00,30103026,5357.1,Revenue,St Christopher's Fellowship,Boarding Out Allowances
Peterborough,http://opendatacommunities.org/id/unitary-authority/peterborough,Peterborough City Council,Education,School Improvement,Interview & Training Expenses,02/12/2016 00:00,30103028,600,Revenue,Edge Hill University,Training
Peterborough,http://opendatacommunities.org/id/unitary-authority/peterborough,Peterborough City Council,Adult Services & Communities - Adults,Independent Sector Placements,Services,02/12/2016 00:00,30103036,772.8,Revenue,Mencap,Home Care
Peterborough,http://opendatacommunities.org/id/unitary-authority/peterborough,Peterborough City Council,Adult Services & Communities - Adults,Independent Sector Placements,Services,02/12/2016 00:00,30103039,1053.44,Revenue,THE TUDORS,Residential Care
Peterborough,http://opendatacommunities.org/id/unitary-authority/peterborough,Peterborough City Council,Various,Various,Services,02/12/2016 00:00,30103041,1213.49,Revenue,Whistl UK Ltd,Postage
Peterborough,http://opendatacommunities.org/id/unitary-authority/peterborough,Peterborough City Council,Adult Services & Communities - Adults,Independent Sector Placements,Services,02/12/2016 00:00,30103043,990,Revenue,THE TUDORS,Residential Care
Peterborough,http://opendatacommunities.org/id/unitary-authority/peterborough,Peterborough City Council,Adult Services & Communities - Adults,Independent Sector Placements,Services,02/12/2016 00:00,30103053,956.08,Revenue,THE TUDORS,Residential Care
Peterborough,http://opendatacommunities.org/id/unitary-authority/peterborough,Peterborough City Council,Adult Services & Communities - Adults,Independent Sector Placements,Services,02/12/2016 00:00,30103054,1224.08,Revenue,THE TUDORS,Residential Care
Peterborough,http://opendatacommunities.org/id/unitary-authority/peterborough,Peterborough City Council,Adult Services & Communities - Adults,Independent Sector Placements,Services,02/12/2016 00:00,30103055,1053.44,Revenue,THE TUDORS,Residential Care
Peterborough,http://opendatacommunities.org/id/unitary-authority/peterborough,Peterborough City Council,Adult Services & Communities - Adults,Independent Sector Placements,Services,02/12/2016 00:00,30103056,1319.08,Revenue,THE TUDORS,Residential Care
Peterborough,http://opendatacommunities.org/id/unitary-authority/peterborough,Peterborough City Council,Adult Services & Communities - Adults,Independent Sector Placements,Services,02/12/2016 00:00,30103057,1154.52,Revenue,THE TUDORS,Residential Care
Peterborough,http://opendatacommunities.org/id/unitary-authority/peterborough,Peterborough City Council,Adult Services & Communities - Adults,Independent Sector Placements,Services,02/12/2016 00:00,30103058,1299.08,Revenue,THE TUDORS,Residential Care
Peterborough,http://opendatacommunities.org/id/unitary-authority/peterborough,Peterborough City Council,Adult Services & Communities - Adults,Independent Sector Placements,Services,02/12/2016 00:00,30103059,1159.76,Revenue,THE TUDORS,Residential Care
Peterborough,http://opendatacommunities.org/id/unitary-authority/peterborough,Peterborough City Council,Adult Services & Communities - Adults,Independent Sector Placements,Services,02/12/2016 00:00,30103060,1399.08,Revenue,THE TUDORS,Residential Care
Peterborough,http://opendatacommunities.org/id/unitary-authority/peterborough,Peterborough City Council,Adult Services & Communities - Adults,Independent Sector Placements,Services,02/12/2016 00:00,30103061,1275.92,Revenue,THE TUDORS,Residential Care
Peterborough,http://opendatacommunities.org/id/unitary-authority/peterborough,Peterborough City Council,Adult Services & Communities - Adults,Independent Sector Placements,Services,02/12/2016 00:00,30103062,1058.6,Revenue,THE TUDORS,Residential Care
Peterborough,http://opendatacommunities.org/id/unitary-authority/peterborough,Peterborough City Council,Adult Services & Communities - Adults,Independent Sector Placements,Services,02/12/2016 00:00,30103063,1239.92,Revenue,THE TUDORS,Residential Care
Peterborough,http://opendatacommunities.org/id/unitary-authority/peterborough,Peterborough City Council,Adult Services & Communities - Adults,Independent Sector Placements,Services,02/12/2016 00:00,30103064,718.64,Revenue,THE TUDORS,Residential Care
Peterborough,http://opendatacommunities.org/id/unitary-authority/peterborough,Peterborough City Council,Adult Services & Communities - Adults,Independent Sector Placements,Services,02/12/2016 00:00,30103065,1821.88,Revenue,THE TUDORS,Residential Care
Peterborough,http://opendatacommunities.org/id/unitary-authority/peterborough,Peterborough City Council,Adult Services & Communities - Adults,Independent Sector Placements,Services,02/12/2016 00:00,30103071,828,Revenue,Mencap,Home Care
Peterborough,http://opendatacommunities.org/id/unitary-authority/peterborough,Peterborough City Council,Adult Services & Communities - Adults,Independent Sector Placements,Services,02/12/2016 00:00,30103073,-5143.44,Revenue,OAKFIELD (EASTON MAUDIT) LTD,Residential Care
Peterborough,http://opendatacommunities.org/id/unitary-authority/peterborough,Peterborough City Council,Adult Services & Communities - Adults,Therapy/Reablement/Community Equipment,Agency Staff,02/12/2016 00:00,30103077,1221,Revenue,SWP Consulting,External Temporary Staff
Peterborough,http://opendatacommunities.org/id/unitary-authority/peterborough,Peterborough City Council,Adult Services & Communities - Adults,Therapy/Reablement/Community Equipment,Agency Staff,02/12/2016 00:00,30103079,1258,Revenue,SWP Consulting,External Temporary Staff
Peterborough,http://opendatacommunities.org/id/unitary-authority/peterborough,Peterborough City Council,Adult Services & Communities - Adults,Therapy/Reablement/Community Equipment,Agency Staff,02/12/2016 00:00,30103081,1258,Revenue,SWP Consulting,External Temporary Staff
Peterborough,http://opendatacommunities.org/id/unitary-authority/peterborough,Peterborough City Council,Children's & Safeguarding,Child Health,Repair & Maintenance of Buildings,02/12/2016 00:00,30103094,689.85,Revenue,Adcock Refrig/air Conditioning Ltd,Premises Maintenance
Peterborough,http://opendatacommunities.org/id/unitary-authority/peterborough,Peterborough City Council,Education,Special Educational Needs / Inclusion,Services,02/12/2016 00:00,30103112,1300,Revenue,MySign Tuition,Hired Services
Peterborough,http://opendatacommunities.org/id/unitary-authority/peterborough,Peterborough City Council,Performance & Information,Performance & Information,Agency Staff,02/12/2016 00:00,30103120,2375,Revenue,Number 10 Interim Ltd,External Temporary Staff
Peterborough,http://opendatacommunities.org/id/unitary-authority/peterborough,Peterborough City Council,"Cemeteries, Cremation & Registrars",Bereavement Service,Services,02/12/2016 00:00,30103133,1711,Revenue,"Strickland, Mr A M",Special Projects
Peterborough,http://opendatacommunities.org/id/unitary-authority/peterborough,Peterborough City Council,Children's & Safeguarding,Access to Resources & Specialist Commissioning,Services,02/12/2016 00:00,30103165,2202,Revenue,PC Homes,Boarding Out Allowances
Peterborough,http://opendatacommunities.org/id/unitary-authority/peterborough,Peterborough City Council,Corporate Property,Commercial Propety,Repair & Maintenance of Buildings,02/12/2016 00:00,30103170,668,Revenue,Tesam Distribution Ltd,Premises Repairs
Peterborough,http://opendatacommunities.org/id/unitary-authority/peterborough,Peterborough City Council,Legal & Democratic,Legal Services,Agency Staff,02/12/2016 00:00,30103172,1793.54,Revenue,Venn Group Ltd,External Temporary Staff
Peterborough,http://opendatacommunities.org/id/unitary-authority/peterborough,Peterborough City Council,Corporate Property,Commercial Propety,Repair & Maintenance of Buildings,02/12/2016 00:00,30103174,24486,Revenue,Tesam Distribution Ltd,Other Occupancy Costs
Peterborough,http://opendatacommunities.org/id/unitary-authority/peterborough,Peterborough City Council,Corporate Property,Commercial Propety,Repair & Maintenance of Buildings,02/12/2016 00:00,30103176,856.8,Revenue,Tesam Distribution Ltd,Premises Repairs
Peterborough,http://opendatacommunities.org/id/unitary-authority/peterborough,Peterborough City Council,Children's & Safeguarding,Access to Resources & Specialist Commissioning,Services,02/12/2016 00:00,30103228,975.25,Revenue,The Benjamin Foundation,Boarding Out Allowances
Peterborough,http://opendatacommunities.org/id/unitary-authority/peterborough,Peterborough City Council,Adult Services & Communities - Adults,Independent Sector Placements,Services,02/12/2016 00:00,30103261,4405.4,Revenue,OAKFIELD (EASTON MAUDIT) LTD,Residential Care
Peterborough,http://opendatacommunities.org/id/unitary-authority/peterborough,Peterborough City Council,Adults and Communities - Communities,Housing and Health,Services,02/12/2016 00:00,30103276,765,Revenue,Rawheat Heating & Plumbing Eng.,Contractors
Peterborough,http://opendatacommunities.org/id/unitary-authority/peterborough,Peterborough City Council,Corporate,Corporate,Non Revenue,02/12/2016 00:00,30103292,48000,Capital,Cloud Technology Solutions,Computer Software
Peterborough,http://opendatacommunities.org/id/unitary-authority/peterborough,Peterborough City Council,Adult Services & Communities - Adults,Independent Sector Placements,Services,02/12/2016 00:00,30103302,1861.6,Revenue,ABOUT ME CARE AND SUPPORT LTD,Home Care
Peterborough,http://opendatacommunities.org/id/unitary-authority/peterborough,Peterborough City Council,Adult Services & Communities - Adults,Independent Sector Placements,Services,02/12/2016 00:00,30103306,2148,Revenue,ABOUT ME CARE AND SUPPORT LTD,Home Care
Peterborough,http://opendatacommunities.org/id/unitary-authority/peterborough,Peterborough City Council,Adult Services & Communities - Adults,Independent Sector Placements,Services,02/12/2016 00:00,30103307,1074,Revenue,ABOUT ME CARE AND SUPPORT LTD,Home Care
Peterborough,http://opendatacommunities.org/id/unitary-authority/peterborough,Peterborough City Council,Adult Services & Communities - Adults,Independent Sector Placements,Services,02/12/2016 00:00,30103308,2174.85,Revenue,ABOUT ME CARE AND SUPPORT LTD,Home Care
Peterborough,http://opendatacommunities.org/id/unitary-authority/peterborough,Peterborough City Council,Adult Services & Communities - Adults,Independent Sector Placements,Services,02/12/2016 00:00,30103314,1074,Revenue,ABOUT ME CARE AND SUPPORT LTD,Home Care
Peterborough,http://opendatacommunities.org/id/unitary-authority/peterborough,Peterborough City Council,Adult Services & Communities - Adults,Independent Sector Placements,Services,02/12/2016 00:00,30103317,644.4,Revenue,ABOUT ME CARE AND SUPPORT LTD,Home Care
Peterborough,http://opendatacommunities.org/id/unitary-authority/peterborough,Peterborough City Council,Adult Services & Communities - Adults,Independent Sector Placements,Services,02/12/2016 00:00,30103320,1561.78,Revenue,ABOUT ME CARE AND SUPPORT LTD,Home Care
Peterborough,http://opendatacommunities.org/id/unitary-authority/peterborough,Peterborough City Council,Adult Services & Communities - Adults,Independent Sector Placements,Services,02/12/2016 00:00,30103322,1861.6,Revenue,ABOUT ME CARE AND SUPPORT LTD,Home Care
Peterborough,http://opendatacommunities.org/id/unitary-authority/peterborough,Peterborough City Council,Adult Services & Communities - Adults,Independent Sector Placements,Services,02/12/2016 00:00,30103335,3676.44,Revenue,Consensus Support Services Ltd,Residential Care
Peterborough,http://opendatacommunities.org/id/unitary-authority/peterborough,Peterborough City Council,Legal & Democratic,Legal Services,Agency Staff,02/12/2016 00:00,30103360,1800,Revenue,Sellick Partnership Group Limited,External Temporary Staff
Peterborough,http://opendatacommunities.org/id/unitary-authority/peterborough,Peterborough City Council,HR,HR,Services,02/12/2016 00:00,30103366,1038,Revenue,AXA PPP Healthcare OHS Ltd,Hired Services
Peterborough,http://opendatacommunities.org/id/unitary-authority/peterborough,Peterborough City Council,Legal & Democratic,Legal Services,Agency Staff,02/12/2016 00:00,30103388,900,Revenue,Venn Group Ltd,External Temporary Staff
Peterborough,http://opendatacommunities.org/id/unitary-authority/peterborough,Peterborough City Council,Adult Services & Communities - Adults,Independent Sector Placements,Services,02/12/2016 00:00,30103402,1728.4,Revenue,Kemps Place Ltd,Residential Care
Peterborough,http://opendatacommunities.org/id/unitary-authority/peterborough,Peterborough City Council,Adult Services & Communities - Adults,Independent Sector Placements,Services,02/12/2016 00:00,30103403,2480,Revenue,Kemps Place Ltd,Residential Care
Peterborough,http://opendatacommunities.org/id/unitary-authority/peterborough,Peterborough City Council,Adult Services & Communities - Adults,Independent Sector Placements,Services,02/12/2016 00:00,30103404,2506,Revenue,ABOUT ME CARE AND SUPPORT LTD,Home Care
Peterborough,http://opendatacommunities.org/id/unitary-authority/peterborough,Peterborough City Council,Adult Services & Communities - Adults,Independent Sector Placements,Services,02/12/2016 00:00,30103421,534.6,Revenue,K2 CARE LTD,Home Care
Peterborough,http://opendatacommunities.org/id/unitary-authority/peterborough,Peterborough City Council,Adult Services & Communities - Adults,Independent Sector Placements,Services,02/12/2016 00:00,30103423,2187.9,Revenue,K2 CARE LTD,Home Care
Peterborough,http://opendatacommunities.org/id/unitary-authority/peterborough,Peterborough City Council,Adult Services & Communities - Adults,Independent Sector Placements,Services,02/12/2016 00:00,30103430,1350.46,Revenue,K2 CARE LTD,Home Care
Peterborough,http://opendatacommunities.org/id/unitary-authority/peterborough,Peterborough City Council,Adult Services & Communities - Adults,Independent Sector Placements,Services,02/12/2016 00:00,30103433,1711.28,Revenue,K2 CARE LTD,Home Care
Peterborough,http://opendatacommunities.org/id/unitary-authority/peterborough,Peterborough City Council,Education,Pupil Referral Unit,Agency Staff,02/12/2016 00:00,30103478,672.1,Revenue,Vision for Education Ltd,Supply Teachers
Peterborough,http://opendatacommunities.org/id/unitary-authority/peterborough,Peterborough City Council,Adult Services & Communities - Adults,Finance,Agency Staff,02/12/2016 00:00,30103529,1995,Revenue,Willowmead Consultants Ltd,External Temporary Staff
Peterborough,http://opendatacommunities.org/id/unitary-authority/peterborough,Peterborough City Council,Adult Services & Communities - Adults,Independent Sector Placements,Services,02/12/2016 00:00,30103610,905.48,Revenue,Westerleigh Nursing Home,Residential Care
Peterborough,http://opendatacommunities.org/id/unitary-authority/peterborough,Peterborough City Council,Peterborough Highway Services,Transport & Infrastructure Commissioning,Services,02/12/2016 00:00,30103630,27505.92,Revenue,Stagecoach in Peterborough,Contractors
Peterborough,http://opendatacommunities.org/id/unitary-authority/peterborough,Peterborough City Council,Adult Services & Communities - Adults,Independent Sector Placements,Services,02/12/2016 00:00,30103639,1005.88,Revenue,Barchester Healthcare (Werrington Lodge),Residential Care
Peterborough,http://opendatacommunities.org/id/unitary-authority/peterborough,Peterborough City Council,Adult Services & Communities - Adults,Independent Sector Placements,Services,02/12/2016 00:00,30103640,1606.12,Revenue,Barchester Healthcare (Werrington Lodge),Residential Care
Peterborough,http://opendatacommunities.org/id/unitary-authority/peterborough,Peterborough City Council,Adult Services & Communities - Adults,Independent Sector Placements,Services,02/12/2016 00:00,30103641,1598.48,Revenue,Barchester Healthcare (Werrington Lodge),Residential Care
Peterborough,http://opendatacommunities.org/id/unitary-authority/peterborough,Peterborough City Council,Adult Services & Communities - Adults,Independent Sector Placements,Services,02/12/2016 00:00,30103642,1618.12,Revenue,Barchester Healthcare (Werrington Lodge),Residential Care
Peterborough,http://opendatacommunities.org/id/unitary-authority/peterborough,Peterborough City Council,Adult Services & Communities - Adults,Independent Sector Placements,Services,02/12/2016 00:00,30103643,1567.71,Revenue,Barchester Healthcare (Werrington Lodge),Residential Care
Peterborough,http://opendatacommunities.org/id/unitary-authority/peterborough,Peterborough City Council,Adult Services & Communities - Adults,Independent Sector Placements,Services,02/12/2016 00:00,30103644,1567.71,Revenue,Barchester Healthcare (Werrington Lodge),Residential Care
Peterborough,http://opendatacommunities.org/id/unitary-authority/peterborough,Peterborough City Council,Adult Services & Communities - Adults,Independent Sector Placements,Services,02/12/2016 00:00,30103645,1567.71,Revenue,Barchester Healthcare (Werrington Lodge),Residential Care
Peterborough,http://opendatacommunities.org/id/unitary-authority/peterborough,Peterborough City Council,Adult Services & Communities - Adults,Independent Sector Placements,Services,02/12/2016 00:00,30103646,1567.71,Revenue,Barchester Healthcare (Werrington Lodge),Residential Care
Peterborough,http://opendatacommunities.org/id/unitary-authority/peterborough,Peterborough City Council,Adult Services & Communities - Adults,Independent Sector Placements,Services,02/12/2016 00:00,30103647,2128.92,Revenue,Barchester Healthcare (Werrington Lodge),Residential Care
Peterborough,http://opendatacommunities.org/id/unitary-authority/peterborough,Peterborough City Council,Adult Services & Communities - Adults,Independent Sector Placements,Services,02/12/2016 00:00,30103648,1606.12,Revenue,Barchester Healthcare (Werrington Lodge),Residential Care
Peterborough,http://opendatacommunities.org/id/unitary-authority/peterborough,Peterborough City Council,Adult Services & Communities - Adults,Independent Sector Placements,Services,02/12/2016 00:00,30103649,1606.12,Revenue,Barchester Healthcare (Werrington Lodge),Residential Care
Peterborough,http://opendatacommunities.org/id/unitary-authority/peterborough,Peterborough City Council,Adult Services & Communities - Adults,Independent Sector Placements,Services,02/12/2016 00:00,30103650,1567.71,Revenue,Barchester Healthcare (Werrington Lodge),Residential Care
Peterborough,http://opendatacommunities.org/id/unitary-authority/peterborough,Peterborough City Council,Adult Services & Communities - Adults,Independent Sector Placements,Services,02/12/2016 00:00,30103651,1567.71,Revenue,Barchester Healthcare (Werrington Lodge),Residential Care
Peterborough,http://opendatacommunities.org/id/unitary-authority/peterborough,Peterborough City Council,Adult Services & Communities - Adults,Independent Sector Placements,Services,02/12/2016 00:00,30103652,1567.71,Revenue,Barchester Healthcare (Werrington Lodge),Residential Care
Peterborough,http://opendatacommunities.org/id/unitary-authority/peterborough,Peterborough City Council,Adult Services & Communities - Adults,Independent Sector Placements,Services,02/12/2016 00:00,30103653,1567.71,Revenue,Barchester Healthcare (Werrington Lodge),Residential Care
Peterborough,http://opendatacommunities.org/id/unitary-authority/peterborough,Peterborough City Council,Adult Services & Communities - Adults,Independent Sector Placements,Services,02/12/2016 00:00,30103655,1767.64,Revenue,Barchester Healthcare (Werrington Lodge),Residential Care
Peterborough,http://opendatacommunities.org/id/unitary-authority/peterborough,Peterborough City Council,Adult Services & Communities - Adults,Independent Sector Placements,Services,02/12/2016 00:00,30103656,2128.92,Revenue,Barchester Healthcare (Werrington Lodge),Residential Care
Peterborough,http://opendatacommunities.org/id/unitary-authority/peterborough,Peterborough City Council,Adult Services & Communities - Adults,Independent Sector Placements,Services,02/12/2016 00:00,30103657,2037.2,Revenue,Barchester Healthcare (Werrington Lodge),Residential Care
Peterborough,http://opendatacommunities.org/id/unitary-authority/peterborough,Peterborough City Council,Adult Services & Communities - Adults,Independent Sector Placements,Services,02/12/2016 00:00,30103658,1567.71,Revenue,Barchester Healthcare (Werrington Lodge),Residential Care
Peterborough,http://opendatacommunities.org/id/unitary-authority/peterborough,Peterborough City Council,Adult Services & Communities - Adults,Independent Sector Placements,Services,02/12/2016 00:00,30103686,1958.52,Revenue,GARDEN LODGE,Residential Care
Peterborough,http://opendatacommunities.org/id/unitary-authority/peterborough,Peterborough City Council,Adult Services & Communities - Adults,Independent Sector Placements,Services,02/12/2016 00:00,30103687,1958.52,Revenue,GARDEN LODGE,Residential Care
Peterborough,http://opendatacommunities.org/id/unitary-authority/peterborough,Peterborough City Council,Adult Services & Communities - Adults,Independent Sector Placements,Services,02/12/2016 00:00,30103688,1958.52,Revenue,GARDEN LODGE,Residential Care
Peterborough,http://opendatacommunities.org/id/unitary-authority/peterborough,Peterborough City Council,Adult Services & Communities - Adults,Independent Sector Placements,Services,02/12/2016 00:00,30103689,1567.71,Revenue,Barchester Healthcare (Werrington Lodge),Residential Care
Peterborough,http://opendatacommunities.org/id/unitary-authority/peterborough,Peterborough City Council,Adult Services & Communities - Adults,Independent Sector Placements,Services,02/12/2016 00:00,30103690,1220.04,Revenue,Barchester Healthcare (Werrington Lodge),Residential Care
Peterborough,http://opendatacommunities.org/id/unitary-authority/peterborough,Peterborough City Council,Adult Services & Communities - Adults,Independent Sector Placements,Services,02/12/2016 00:00,30103691,1068.32,Revenue,Barchester Healthcare (Werrington Lodge),Residential Care
Peterborough,http://opendatacommunities.org/id/unitary-authority/peterborough,Peterborough City Council,Adult Services & Communities - Adults,Independent Sector Placements,Services,02/12/2016 00:00,30103692,1567.71,Revenue,Barchester Healthcare (Werrington Lodge),Residential Care
Peterborough,http://opendatacommunities.org/id/unitary-authority/peterborough,Peterborough City Council,Adult Services & Communities - Adults,Independent Sector Placements,Services,02/12/2016 00:00,30103694,1416.32,Revenue,Barchester Healthcare (Werrington Lodge),Residential Care
Peterborough,http://opendatacommunities.org/id/unitary-authority/peterborough,Peterborough City Council,Adult Services & Communities - Adults,Independent Sector Placements,Services,02/12/2016 00:00,30103699,1567.71,Revenue,Barchester Healthcare (Werrington Lodge),Residential Care
Peterborough,http://opendatacommunities.org/id/unitary-authority/peterborough,Peterborough City Council,Adult Services & Communities - Adults,Independent Sector Placements,Services,02/12/2016 00:00,30103710,2128.92,Revenue,Barchester Healthcare (Werrington Lodge),Residential Care
Peterborough,http://opendatacommunities.org/id/unitary-authority/peterborough,Peterborough City Council,Adult Services & Communities - Adults,Independent Sector Placements,Services,02/12/2016 00:00,30103711,1507.28,Revenue,Barchester Healthcare (Werrington Lodge),Residential Care
Peterborough,http://opendatacommunities.org/id/unitary-authority/peterborough,Peterborough City Council,Adult Services & Communities - Adults,Independent Sector Placements,Services,02/12/2016 00:00,30103712,1567.71,Revenue,Barchester Healthcare (Werrington Lodge),Residential Care
Peterborough,http://opendatacommunities.org/id/unitary-authority/peterborough,Peterborough City Council,Adult Services & Communities - Adults,Independent Sector Placements,Services,02/12/2016 00:00,30103748,828,Revenue,Mencap,Home Care
Peterborough,http://opendatacommunities.org/id/unitary-authority/peterborough,Peterborough City Council,Adult Services & Communities - Adults,Independent Sector Placements,Services,02/12/2016 00:00,30103756,5087.4,Revenue,Mencap,Home Care
Peterborough,http://opendatacommunities.org/id/unitary-authority/peterborough,Peterborough City Council,Children's & Safeguarding,Children's Social Care,Agency Staff,02/12/2016 00:00,30103760,1315.55,Revenue,Service Care Solutions Ltd,External Temporary Staff
Peterborough,http://opendatacommunities.org/id/unitary-authority/peterborough,Peterborough City Council,Adult Services & Communities - Adults,Independent Sector Placements,Services,02/12/2016 00:00,30103763,834.8,Revenue,Pilgrim Havens,Residential Care
Peterborough,http://opendatacommunities.org/id/unitary-authority/peterborough,Peterborough City Council,Education,Pupil Referral Unit,Agency Staff,02/12/2016 00:00,30103764,7217.5,Revenue,Vision for Education Ltd,Supply Teachers
Peterborough,http://opendatacommunities.org/id/unitary-authority/peterborough,Peterborough City Council,Children's & Safeguarding,Children's Social Care,Agency Staff,02/12/2016 00:00,30103765,1315.55,Revenue,Service Care Solutions Ltd,External Temporary Staff
Peterborough,http://opendatacommunities.org/id/unitary-authority/peterborough,Peterborough City Council,Adult Services & Communities - Adults,Independent Sector Placements,Services,02/12/2016 00:00,30103766,913.32,Revenue,Pilgrim Havens,Residential Care
Peterborough,http://opendatacommunities.org/id/unitary-authority/peterborough,Peterborough City Council,Adult Services & Communities - Adults,Independent Sector Placements,Services,02/12/2016 00:00,30103767,928.04,Revenue,Pilgrim Havens,Residential Care
Peterborough,http://opendatacommunities.org/id/unitary-authority/peterborough,Peterborough City Council,Adult Services & Communities - Adults,Independent Sector Placements,Services,02/12/2016 00:00,30103768,1299.08,Revenue,Pilgrim Havens,Residential Care
Peterborough,http://opendatacommunities.org/id/unitary-authority/peterborough,Peterborough City Council,Adult Services & Communities - Adults,Independent Sector Placements,Services,02/12/2016 00:00,30103770,1053.44,Revenue,Pilgrim Havens,Residential Care
Peterborough,http://opendatacommunities.org/id/unitary-authority/peterborough,Peterborough City Council,Adult Services & Communities - Adults,Independent Sector Placements,Services,02/12/2016 00:00,30103771,1331.08,Revenue,Pilgrim Havens,Residential Care
Peterborough,http://opendatacommunities.org/id/unitary-authority/peterborough,Peterborough City Council,Adult Services & Communities - Adults,Independent Sector Placements,Services,02/12/2016 00:00,30103773,8752,Revenue,Autism Care (UK) Ltd,Residential Care
Peterborough,http://opendatacommunities.org/id/unitary-authority/peterborough,Peterborough City Council,Adult Services & Communities - Adults,Independent Sector Placements,Services,02/12/2016 00:00,30103774,2015,Revenue,Klair House Residential Care Homes,Residential Care
Peterborough,http://opendatacommunities.org/id/unitary-authority/peterborough,Peterborough City Council,Adult Services & Communities - Adults,Independent Sector Placements,Services,02/12/2016 00:00,30103776,614.84,Revenue,Thera East Anglia,Day Care
Peterborough,http://opendatacommunities.org/id/unitary-authority/peterborough,Peterborough City Council,Adult Services & Communities - Adults,Independent Sector Placements,Services,02/12/2016 00:00,30103778,806,Revenue,Thera East Anglia,Day Care
Peterborough,http://opendatacommunities.org/id/unitary-authority/peterborough,Peterborough City Council,Adult Services & Communities - Adults,Independent Sector Placements,Services,02/12/2016 00:00,30103779,806,Revenue,Thera East Anglia,Day Care
Peterborough,http://opendatacommunities.org/id/unitary-authority/peterborough,Peterborough City Council,Adult Services & Communities - Adults,Independent Sector Placements,Services,02/12/2016 00:00,30103780,2361.16,Revenue,Thera East Anglia,Day Care
Peterborough,http://opendatacommunities.org/id/unitary-authority/peterborough,Peterborough City Council,Adult Services & Communities - Adults,Independent Sector Placements,Services,02/12/2016 00:00,30103782,769.84,Revenue,Thera East Anglia,Day Care
Peterborough,http://opendatacommunities.org/id/unitary-authority/peterborough,Peterborough City Council,Adult Services & Communities - Adults,Independent Sector Placements,Services,02/12/2016 00:00,30103783,806,Revenue,Thera East Anglia,Day Care
Peterborough,http://opendatacommunities.org/id/unitary-authority/peterborough,Peterborough City Council,Adult Services & Communities - Adults,Independent Sector Placements,Services,02/12/2016 00:00,30103784,2051.16,Revenue,Thera East Anglia,Day Care
Peterborough,http://opendatacommunities.org/id/unitary-authority/peterborough,Peterborough City Council,Adult Services & Communities - Adults,Independent Sector Placements,Services,02/12/2016 00:00,30103785,713,Revenue,Thera East Anglia,Day Care
Peterborough,http://opendatacommunities.org/id/unitary-authority/peterborough,Peterborough City Council,Adult Services & Communities - Adults,Independent Sector Placements,Services,02/12/2016 00:00,30103801,2051.16,Revenue,Thera East Anglia,Day Care
Peterborough,http://opendatacommunities.org/id/unitary-authority/peterborough,Peterborough City Council,Adult Services & Communities - Adults,Independent Sector Placements,Services,02/12/2016 00:00,30103812,806,Revenue,Thera East Anglia,Day Care
Peterborough,http://opendatacommunities.org/id/unitary-authority/peterborough,Peterborough City Council,Adult Services & Communities - Adults,Independent Sector Placements,Services,02/12/2016 00:00,30103813,713,Revenue,Thera East Anglia,Day Care
Peterborough,http://opendatacommunities.org/id/unitary-authority/peterborough,Peterborough City Council,Adult Services & Communities - Adults,Independent Sector Placements,Services,02/12/2016 00:00,30103814,1860,Revenue,Thera East Anglia,Day Care
Peterborough,http://opendatacommunities.org/id/unitary-authority/peterborough,Peterborough City Council,Adult Services & Communities - Adults,Independent Sector Placements,Services,02/12/2016 00:00,30103816,3720,Revenue,Thera East Anglia,Day Care
Peterborough,http://opendatacommunities.org/id/unitary-authority/peterborough,Peterborough City Council,Adult Services & Communities - Adults,Independent Sector Placements,Services,02/12/2016 00:00,30103843,1914.84,Revenue,Alysia Caring Ltd T/a Cherry Blossom care Home,Residential Care
Peterborough,http://opendatacommunities.org/id/unitary-authority/peterborough,Peterborough City Council,Adult Services & Communities - Adults,Independent Sector Placements,Services,02/12/2016 00:00,30103845,2842.2,Revenue,Alysia Caring Ltd T/a Cherry Blossom care Home,Residential Care
Peterborough,http://opendatacommunities.org/id/unitary-authority/peterborough,Peterborough City Council,Adult Services & Communities - Adults,Independent Sector Placements,Services,02/12/2016 00:00,30103846,2128.92,Revenue,Alysia Caring Ltd T/a Cherry Blossom care Home,Residential Care
Peterborough,http://opendatacommunities.org/id/unitary-authority/peterborough,Peterborough City Council,Adult Services & Communities - Adults,Independent Sector Placements,Services,02/12/2016 00:00,30103847,1127.32,Revenue,Alysia Caring Ltd T/a Cherry Blossom care Home,Residential Care
Peterborough,http://opendatacommunities.org/id/unitary-authority/peterborough,Peterborough City Council,Adult Services & Communities - Adults,Independent Sector Placements,Services,02/12/2016 00:00,30103849,3248.23,Revenue,Alysia Caring Ltd T/a Cherry Blossom care Home,Residential Care
Peterborough,http://opendatacommunities.org/id/unitary-authority/peterborough,Peterborough City Council,Adult Services & Communities - Adults,Independent Sector Placements,Services,02/12/2016 00:00,30103851,3510.72,Revenue,Sanctuary Home Care Ltd (Southwood House),Residential Care
Peterborough,http://opendatacommunities.org/id/unitary-authority/peterborough,Peterborough City Council,Adult Services & Communities - Adults,Independent Sector Placements,Services,02/12/2016 00:00,30103856,13699.44,Revenue,Kisimul Group Ltd,Residential Care
Peterborough,http://opendatacommunities.org/id/unitary-authority/peterborough,Peterborough City Council,Public Health,Housing and Health - Public Health,"Tools, Equipment, Furniture & Materials",02/12/2016 00:00,30103889,1721.68,Revenue,4Imprint,Purchase of Equipment
Peterborough,http://opendatacommunities.org/id/unitary-authority/peterborough,Peterborough City Council,Education,School Improvement,Services,02/12/2016 00:00,30103891,670,Revenue,Top Class Tutors,Education Expenses
Peterborough,http://opendatacommunities.org/id/unitary-authority/peterborough,Peterborough City Council,Adult Services & Communities - Adults,Strategic Commissioning - Management,Services,02/12/2016 00:00,30103902,8155,Revenue,Hertfordshire County Council,Contributions
Peterborough,http://opendatacommunities.org/id/unitary-authority/peterborough,Peterborough City Council,Adult Services & Communities - Adults,Independent Sector Placements,Services,02/12/2016 00:00,30103953,2869.88,Revenue,Alysia Caring Ltd T/a Cherry Blossom care Home,Residential Care
Peterborough,http://opendatacommunities.org/id/unitary-authority/peterborough,Peterborough City Council,Adult Services & Communities - Adults,Independent Sector Placements,Services,02/12/2016 00:00,30103954,1657.19,Revenue,Alysia Caring Ltd T/a Cherry Blossom care Home,Residential Care
Peterborough,http://opendatacommunities.org/id/unitary-authority/peterborough,Peterborough City Council,Business Management and Commercial Operations,Clare Lodge,Services,02/12/2016 00:00,30103960,2750,Revenue,M Caton Associates Ltd,Purchased Social Care Services
Peterborough,http://opendatacommunities.org/id/unitary-authority/peterborough,Peterborough City Council,Performance & Information,Performance & Information,Agency Staff,02/12/2016 00:00,30103963,602.08,Revenue,Reed Specialist Recruitment,External Temporary Staff
Peterborough,http://opendatacommunities.org/id/unitary-authority/peterborough,Peterborough City Council,Adult Services & Communities - Adults,Independent Sector Placements,Services,02/12/2016 00:00,30103972,594,Revenue,FIELD HOUSE (EYE) LTD,Day Care
Peterborough,http://opendatacommunities.org/id/unitary-authority/peterborough,Peterborough City Council,Adult Services & Communities - Adults,Independent Sector Placements,Services,02/12/2016 00:00,30103975,2771.4,Revenue,Mencap,Residential Care
Peterborough,http://opendatacommunities.org/id/unitary-authority/peterborough,Peterborough City Council,Adults and Communities - Communities,Housing and Health,Services,02/12/2016 00:00,30103976,595.56,Revenue,DA Rosalia Hotel,Homelessness Bed & Breakfast Costs
Peterborough,http://opendatacommunities.org/id/unitary-authority/peterborough,Peterborough City Council,Adults and Communities - Communities,Housing and Health,Services,02/12/2016 00:00,30103981,595.56,Revenue,DA Rosalia Hotel,Homelessness Bed & Breakfast Costs
Peterborough,http://opendatacommunities.org/id/unitary-authority/peterborough,Peterborough City Council,Adults and Communities - Communities,Housing and Health,Services,02/12/2016 00:00,30103983,655.06,Revenue,DA Rosalia Hotel,Homelessness Bed & Breakfast Costs
Peterborough,http://opendatacommunities.org/id/unitary-authority/peterborough,Peterborough City Council,Adult Services & Communities - Adults,Independent Sector Placements,Services,02/12/2016 00:00,30103985,3400,Revenue,EXCELCARE GLENNFIELD HOUSE,Residential Care
Peterborough,http://opendatacommunities.org/id/unitary-authority/peterborough,Peterborough City Council,Adult Services & Communities - Adults,Independent Sector Placements,Services,02/12/2016 00:00,30103986,1811.24,Revenue,EXCELCARE GLENNFIELD HOUSE,Residential Care
Peterborough,http://opendatacommunities.org/id/unitary-authority/peterborough,Peterborough City Council,Adult Services & Communities - Adults,Independent Sector Placements,Services,02/12/2016 00:00,30103989,3400,Revenue,EXCELCARE GLENNFIELD HOUSE,Residential Care
Peterborough,http://opendatacommunities.org/id/unitary-authority/peterborough,Peterborough City Council,Adult Services & Communities - Adults,Independent Sector Placements,Services,02/12/2016 00:00,30103991,3720,Revenue,EXCELCARE GLENNFIELD HOUSE,Residential Care
Peterborough,http://opendatacommunities.org/id/unitary-authority/peterborough,Peterborough City Council,Adults and Communities - Communities,Housing and Health,Services,02/12/2016 00:00,30103992,714.56,Revenue,DA Rosalia Hotel,Homelessness Bed & Breakfast Costs
Peterborough,http://opendatacommunities.org/id/unitary-authority/peterborough,Peterborough City Council,Adult Services & Communities - Adults,Independent Sector Placements,Services,02/12/2016 00:00,30103993,3200,Revenue,EXCELCARE GLENNFIELD HOUSE,Residential Care
Peterborough,http://opendatacommunities.org/id/unitary-authority/peterborough,Peterborough City Council,Adult Services & Communities - Adults,Independent Sector Placements,Services,02/12/2016 00:00,30103995,1680,Revenue,EXCELCARE GLENNFIELD HOUSE,Residential Care
Peterborough,http://opendatacommunities.org/id/unitary-authority/peterborough,Peterborough City Council,Education,Special Educational Needs / Inclusion,Services,02/12/2016 00:00,30104005,780,Revenue,Top Class Tutors,Education Expenses
Peterborough,http://opendatacommunities.org/id/unitary-authority/peterborough,Peterborough City Council,Financial Services,Finance,Agency Staff,02/12/2016 00:00,30104011,1359.75,Revenue,Reed Specialist Recruitment,External Temporary Staff
Peterborough,http://opendatacommunities.org/id/unitary-authority/peterborough,Peterborough City Council,Business Management and Commercial Operations,Business Management and Commercial Operations,Agency Staff,02/12/2016 00:00,30104014,519.68,Revenue,Reed Personnel Services Plc,External Temporary Staff
Peterborough,http://opendatacommunities.org/id/unitary-authority/peterborough,Peterborough City Council,Financial Services,Finance,Agency Staff,02/12/2016 00:00,30104015,707.07,Revenue,Reed Specialist Recruitment,External Temporary Staff
Peterborough,http://opendatacommunities.org/id/unitary-authority/peterborough,Peterborough City Council,Adult Services & Communities - Adults,Independent Sector Placements,Services,02/12/2016 00:00,30104130,4621.2,Revenue,Mencap,Residential Care
Peterborough,http://opendatacommunities.org/id/unitary-authority/peterborough,Peterborough City Council,Adult Services & Communities - Adults,Independent Sector Placements,Services,02/12/2016 00:00,30104131,4981.2,Revenue,Mencap,Residential Care
Peterborough,http://opendatacommunities.org/id/unitary-authority/peterborough,Peterborough City Council,Adult Services & Communities - Adults,Independent Sector Placements,Services,02/12/2016 00:00,30104132,4854.4,Revenue,Mencap,Residential Care
Peterborough,http://opendatacommunities.org/id/unitary-authority/peterborough,Peterborough City Council,Business Management and Commercial Operations,Clare Lodge,Agency Staff,02/12/2016 00:00,30104143,576,Revenue,Wrixon Care Services,External Temporary Staff
Peterborough,http://opendatacommunities.org/id/unitary-authority/peterborough,Peterborough City Council,Business Management and Commercial Operations,Clare Lodge,Agency Staff,02/12/2016 00:00,30104144,1104,Revenue,Wrixon Care Services,External Temporary Staff
Peterborough,http://opendatacommunities.org/id/unitary-authority/peterborough,Peterborough City Council,Business Management and Commercial Operations,Clare Lodge,Agency Staff,02/12/2016 00:00,30104145,2016,Revenue,Wrixon Care Services,External Temporary Staff
Peterborough,http://opendatacommunities.org/id/unitary-authority/peterborough,Peterborough City Council,Business Management and Commercial Operations,Clare Lodge,Agency Staff,02/12/2016 00:00,30104159,608,Revenue,Wrixon Care Services,External Temporary Staff
Peterborough,http://opendatacommunities.org/id/unitary-authority/peterborough,Peterborough City Council,Business Management and Commercial Operations,Clare Lodge,Agency Staff,02/12/2016 00:00,30104160,736,Revenue,Wrixon Care Services,External Temporary Staff
Peterborough,http://opendatacommunities.org/id/unitary-authority/peterborough,Peterborough City Council,Business Management and Commercial Operations,Clare Lodge,Agency Staff,02/12/2016 00:00,30104161,1056,Revenue,Wrixon Care Services,External Temporary Staff
Peterborough,http://opendatacommunities.org/id/unitary-authority/peterborough,Peterborough City Council,Business Management and Commercial Operations,Clare Lodge,Agency Staff,02/12/2016 00:00,30104163,1968,Revenue,Wrixon Care Services,External Temporary Staff
Peterborough,http://opendatacommunities.org/id/unitary-authority/peterborough,Peterborough City Council,Business Management and Commercial Operations,Clare Lodge,Agency Staff,02/12/2016 00:00,30104164,912,Revenue,Wrixon Care Services,External Temporary Staff
Peterborough,http://opendatacommunities.org/id/unitary-authority/peterborough,Peterborough City Council,Business Management and Commercial Operations,Clare Lodge,Agency Staff,02/12/2016 00:00,30104165,912,Revenue,Wrixon Care Services,External Temporary Staff
Peterborough,http://opendatacommunities.org/id/unitary-authority/peterborough,Peterborough City Council,Business Management and Commercial Operations,Clare Lodge,Agency Staff,02/12/2016 00:00,30104166,1040,Revenue,Wrixon Care Services,External Temporary Staff
Peterborough,http://opendatacommunities.org/id/unitary-authority/peterborough,Peterborough City Council,Business Management and Commercial Operations,Clare Lodge,Agency Staff,02/12/2016 00:00,30104167,1856,Revenue,Wrixon Care Services,External Temporary Staff
Peterborough,http://opendatacommunities.org/id/unitary-authority/peterborough,Peterborough City Council,Business Management and Commercial Operations,Clare Lodge,Agency Staff,02/12/2016 00:00,30104169,2000,Revenue,Wrixon Care Services,External Temporary Staff
Peterborough,http://opendatacommunities.org/id/unitary-authority/peterborough,Peterborough City Council,Peterborough Highway Services,Transport & Infrastructure Commissioning,Services,02/12/2016 00:00,30104171,8054.22,Revenue,Stagecoach in Peterborough,Contractors
Peterborough,http://opendatacommunities.org/id/unitary-authority/peterborough,Peterborough City Council,Business Management and Commercial Operations,Commissioning,Rents,02/12/2016 00:00,30104199,575,Revenue,Lincolnshire County Council,Hire of Premises
Peterborough,http://opendatacommunities.org/id/unitary-authority/peterborough,Peterborough City Council,Adult Services & Communities - Adults,Independent Sector Placements,Services,02/12/2016 00:00,30104235,1137.86,Revenue,Longueville Court (Barchester),Residential Care
Peterborough,http://opendatacommunities.org/id/unitary-authority/peterborough,Peterborough City Council,Westcombe Engineering,Westcombe Engineering,Services,02/12/2016 00:00,30104271,634,Revenue,Barron Clark Castings Ltd,Items For Resale
Peterborough,http://opendatacommunities.org/id/unitary-authority/peterborough,Peterborough City Council,Westcombe Engineering,Westcombe Engineering,Services,02/12/2016 00:00,30104284,556.83,Revenue,Barron Clark Castings Ltd,Items For Resale
Peterborough,http://opendatacommunities.org/id/unitary-authority/peterborough,Peterborough City Council,Westcombe Engineering,Westcombe Engineering,Services,02/12/2016 00:00,30104287,1604,Revenue,Barron Clark Castings Ltd,Items For Resale
Peterborough,http://opendatacommunities.org/id/unitary-authority/peterborough,Peterborough City Council,Westcombe Engineering,Westcombe Engineering,Services,02/12/2016 00:00,30104297,701.22,Revenue,Barron Clark Castings Ltd,Items For Resale
Peterborough,http://opendatacommunities.org/id/unitary-authority/peterborough,Peterborough City Council,Westcombe Engineering,Westcombe Engineering,Services,02/12/2016 00:00,30104298,802,Revenue,Barron Clark Castings Ltd,Items For Resale
Peterborough,http://opendatacommunities.org/id/unitary-authority/peterborough,Peterborough City Council,Westcombe Engineering,Westcombe Engineering,Services,02/12/2016 00:00,30104299,678.6,Revenue,Barron Clark Castings Ltd,Items For Resale
Peterborough,http://opendatacommunities.org/id/unitary-authority/peterborough,Peterborough City Council,Public Health,Housing and Health - Public Health,Services,02/12/2016 00:00,30104374,600,Revenue,Codename Media Ltd,Publicity
Peterborough,http://opendatacommunities.org/id/unitary-authority/peterborough,Peterborough City Council,Adult Services & Communities - Adults,Independent Sector Placements,Services,02/12/2016 00:00,30104390,872.56,Revenue,Avery House (Peterborough) t/a Brighterkind,Residential Care
Peterborough,http://opendatacommunities.org/id/unitary-authority/peterborough,Peterborough City Council,Adult Services & Communities - Adults,Independent Sector Placements,Services,02/12/2016 00:00,30104391,1619.08,Revenue,Avery House (Peterborough) t/a Brighterkind,Residential Care
Peterborough,http://opendatacommunities.org/id/unitary-authority/peterborough,Peterborough City Council,Adult Services & Communities - Adults,Independent Sector Placements,Services,02/12/2016 00:00,30104395,2176.24,Revenue,Avery House (Peterborough) t/a Brighterkind,Residential Care
Peterborough,http://opendatacommunities.org/id/unitary-authority/peterborough,Peterborough City Council,Adult Services & Communities - Adults,Independent Sector Placements,Services,02/12/2016 00:00,30104396,1632.6,Revenue,Avery House (Peterborough) t/a Brighterkind,Residential Care
Peterborough,http://opendatacommunities.org/id/unitary-authority/peterborough,Peterborough City Council,Adult Services & Communities - Adults,Independent Sector Placements,Services,02/12/2016 00:00,30104400,1899.08,Revenue,Avery House (Peterborough) t/a Brighterkind,Residential Care
Peterborough,http://opendatacommunities.org/id/unitary-authority/peterborough,Peterborough City Council,Adult Services & Communities - Adults,Independent Sector Placements,Services,02/12/2016 00:00,30104401,1257.64,Revenue,Avery House (Peterborough) t/a Brighterkind,Residential Care
Peterborough,http://opendatacommunities.org/id/unitary-authority/peterborough,Peterborough City Council,Adult Services & Communities - Adults,Independent Sector Placements,Services,02/12/2016 00:00,30104402,1651.04,Revenue,Avery House (Peterborough) t/a Brighterkind,Residential Care
Peterborough,http://opendatacommunities.org/id/unitary-authority/peterborough,Peterborough City Council,Adult Services & Communities - Adults,Independent Sector Placements,Services,02/12/2016 00:00,30104403,999.72,Revenue,Avery House (Peterborough) t/a Brighterkind,Residential Care
Peterborough,http://opendatacommunities.org/id/unitary-authority/peterborough,Peterborough City Council,Adult Services & Communities - Adults,Independent Sector Placements,Services,02/12/2016 00:00,30104404,907.6,Revenue,Avery House (Peterborough) t/a Brighterkind,Residential Care
Peterborough,http://opendatacommunities.org/id/unitary-authority/peterborough,Peterborough City Council,Adult Services & Communities - Adults,Independent Sector Placements,Services,02/12/2016 00:00,30104405,712.72,Revenue,Avery House (Peterborough) t/a Brighterkind,Residential Care
Peterborough,http://opendatacommunities.org/id/unitary-authority/peterborough,Peterborough City Council,Adult Services & Communities - Adults,Independent Sector Placements,Services,02/12/2016 00:00,30104406,1672.8,Revenue,Avery House (Peterborough) t/a Brighterkind,Residential Care
Peterborough,http://opendatacommunities.org/id/unitary-authority/peterborough,Peterborough City Council,Adult Services & Communities - Adults,Independent Sector Placements,Services,02/12/2016 00:00,30104407,1299.08,Revenue,Avery House (Peterborough) t/a Brighterkind,Residential Care
Peterborough,http://opendatacommunities.org/id/unitary-authority/peterborough,Peterborough City Council,Adult Services & Communities - Adults,Independent Sector Placements,Services,02/12/2016 00:00,30104408,1660.8,Revenue,Avery House (Peterborough) t/a Brighterkind,Residential Care
Peterborough,http://opendatacommunities.org/id/unitary-authority/peterborough,Peterborough City Council,Adult Services & Communities - Adults,Independent Sector Placements,Services,02/12/2016 00:00,30104409,1517.8,Revenue,Avery House (Peterborough) t/a Brighterkind,Residential Care
Peterborough,http://opendatacommunities.org/id/unitary-authority/peterborough,Peterborough City Council,Adult Services & Communities - Adults,Independent Sector Placements,Services,02/12/2016 00:00,30104410,3680,Revenue,Avery House (Peterborough) t/a Brighterkind,Residential Care
Peterborough,http://opendatacommunities.org/id/unitary-authority/peterborough,Peterborough City Council,Westcombe Engineering,Westcombe Engineering,Services,02/12/2016 00:00,30104412,785,Revenue,Barron Clark Castings Ltd,Items For Resale
Peterborough,http://opendatacommunities.org/id/unitary-authority/peterborough,Peterborough City Council,Business Management and Commercial Operations,Clare Lodge,Cleaning & Domestic Supplies,02/12/2016 00:00,30104413,697.02,Revenue,Bunzl UK Ltd t/a Industrial Supplies,Cleaning Materials
Peterborough,http://opendatacommunities.org/id/unitary-authority/peterborough,Peterborough City Council,Westcombe Engineering,Westcombe Engineering,Services,02/12/2016 00:00,30104419,637,Revenue,Barron Clark Castings Ltd,Items For Resale
Peterborough,http://opendatacommunities.org/id/unitary-authority/peterborough,Peterborough City Council,Westcombe Engineering,Westcombe Engineering,Services,02/12/2016 00:00,30104421,802,Revenue,Barron Clark Castings Ltd,Items For Resale
Peterborough,http://opendatacommunities.org/id/unitary-authority/peterborough,Peterborough City Council,Adult Services & Communities - Adults,Independent Sector Placements,Services,02/12/2016 00:00,30104451,1295.08,Revenue,Avery House (Peterborough) t/a Brighterkind,Residential Care
Peterborough,http://opendatacommunities.org/id/unitary-authority/peterborough,Peterborough City Council,Adult Services & Communities - Adults,Independent Sector Placements,Services,02/12/2016 00:00,30104452,1212.6,Revenue,Avery House (Peterborough) t/a Brighterkind,Residential Care
Peterborough,http://opendatacommunities.org/id/unitary-authority/peterborough,Peterborough City Council,Adult Services & Communities - Adults,Independent Sector Placements,Services,02/12/2016 00:00,30104453,1601.68,Revenue,Avery House (Peterborough) t/a Brighterkind,Residential Care
Peterborough,http://opendatacommunities.org/id/unitary-authority/peterborough,Peterborough City Council,Adult Services & Communities - Adults,Independent Sector Placements,Services,02/12/2016 00:00,30104454,1126.88,Revenue,Avery House (Peterborough) t/a Brighterkind,Residential Care
Peterborough,http://opendatacommunities.org/id/unitary-authority/peterborough,Peterborough City Council,Adult Services & Communities - Adults,Independent Sector Placements,Services,02/12/2016 00:00,30104456,1299.08,Revenue,Avery House (Peterborough) t/a Brighterkind,Residential Care
Peterborough,http://opendatacommunities.org/id/unitary-authority/peterborough,Peterborough City Council,Adult Services & Communities - Adults,Independent Sector Placements,Services,02/12/2016 00:00,30104457,1211.44,Revenue,Avery House (Peterborough) t/a Brighterkind,Residential Care
Peterborough,http://opendatacommunities.org/id/unitary-authority/peterborough,Peterborough City Council,Adult Services & Communities - Adults,Independent Sector Placements,Services,02/12/2016 00:00,30104458,907.48,Revenue,Avery House (Peterborough) t/a Brighterkind,Residential Care
Peterborough,http://opendatacommunities.org/id/unitary-authority/peterborough,Peterborough City Council,Adult Services & Communities - Adults,Independent Sector Placements,Services,02/12/2016 00:00,30104459,741.84,Revenue,Avery House (Peterborough) t/a Brighterkind,Residential Care
Peterborough,http://opendatacommunities.org/id/unitary-authority/peterborough,Peterborough City Council,Adult Services & Communities - Adults,Independent Sector Placements,Services,02/12/2016 00:00,30104460,994.88,Revenue,Avery House (Peterborough) t/a Brighterkind,Residential Care
Peterborough,http://opendatacommunities.org/id/unitary-authority/peterborough,Peterborough City Council,Adult Services & Communities - Adults,Independent Sector Placements,Services,02/12/2016 00:00,30104461,1299.08,Revenue,Avery House (Peterborough) t/a Brighterkind,Residential Care
Peterborough,http://opendatacommunities.org/id/unitary-authority/peterborough,Peterborough City Council,Adult Services & Communities - Adults,Independent Sector Placements,Services,02/12/2016 00:00,30104462,954.48,Revenue,Avery House (Peterborough) t/a Brighterkind,Residential Care
Peterborough,http://opendatacommunities.org/id/unitary-authority/peterborough,Peterborough City Council,Adult Services & Communities - Adults,Independent Sector Placements,Services,02/12/2016 00:00,30104463,1352.64,Revenue,Avery House (Peterborough) t/a Brighterkind,Residential Care
Peterborough,http://opendatacommunities.org/id/unitary-authority/peterborough,Peterborough City Council,Adult Services & Communities - Adults,Independent Sector Placements,Services,02/12/2016 00:00,30104466,982.56,Revenue,Avery House (Peterborough) t/a Brighterkind,Residential Care
Peterborough,http://opendatacommunities.org/id/unitary-authority/peterborough,Peterborough City Council,Corporate,Corporate,Non Revenue,02/12/2016 00:00,30104478,695.04,Capital,Enterprise Managed Services Limited,Building And Site Works
Peterborough,http://opendatacommunities.org/id/unitary-authority/peterborough,Peterborough City Council,Corporate,Corporate,Non Revenue,02/12/2016 00:00,30104479,11744.32,Capital,Enterprise Managed Services Limited,Building And Site Works
Peterborough,http://opendatacommunities.org/id/unitary-authority/peterborough,Peterborough City Council,Corporate,Corporate,Non Revenue,02/12/2016 00:00,30104480,5792,Capital,Enterprise Managed Services Limited,Building And Site Works
Peterborough,http://opendatacommunities.org/id/unitary-authority/peterborough,Peterborough City Council,Education,Assets and Schools Place Planning,Services,02/12/2016 00:00,30104481,525,Revenue,Smooth Removals (Peterborough) Ltd,Hired Services
Peterborough,http://opendatacommunities.org/id/unitary-authority/peterborough,Peterborough City Council,Adult Services & Communities - Adults,Independent Sector Placements,Services,02/12/2016 00:00,30104485,1768.92,Revenue,Ashmere,Residential Care
Peterborough,http://opendatacommunities.org/id/unitary-authority/peterborough,Peterborough City Council,Corporate,Corporate,Non Revenue,02/12/2016 00:00,30104653,582.78,Capital,A W Morley T/A Morley Building Services,Grant Payment
Peterborough,http://opendatacommunities.org/id/unitary-authority/peterborough,Peterborough City Council,City Servs & Communications,Regulatory Services,Agency Staff,02/12/2016 00:00,30104658,1056.65,Revenue,Eden Brown Ltd,External Temporary Staff
Peterborough,http://opendatacommunities.org/id/unitary-authority/peterborough,Peterborough City Council,Adults and Communities - Communities,Housing and Health,Services,02/12/2016 00:00,30104750,655.06,Revenue,DA Rosalia Hotel,Homelessness Bed & Breakfast Costs
Peterborough,http://opendatacommunities.org/id/unitary-authority/peterborough,Peterborough City Council,Adults and Communities - Communities,Housing and Health,Services,02/12/2016 00:00,30104757,655.06,Revenue,DA Rosalia Hotel,Homelessness Bed & Breakfast Costs
Peterborough,http://opendatacommunities.org/id/unitary-authority/peterborough,Peterborough City Council,Adults and Communities - Communities,Housing and Health,Services,02/12/2016 00:00,30104792,595.56,Revenue,DA Rosalia Hotel,Homelessness Bed & Breakfast Costs
Peterborough,http://opendatacommunities.org/id/unitary-authority/peterborough,Peterborough City Council,Adults and Communities - Communities,Housing and Health,Services,02/12/2016 00:00,30104825,507.5,Revenue,Eastfield Guesthouse,Homelessness Bed & Breakfast Costs
Peterborough,http://opendatacommunities.org/id/unitary-authority/peterborough,Peterborough City Council,Adults and Communities - Communities,Housing and Health,Services,02/12/2016 00:00,30104830,655.06,Revenue,DA Rosalia Hotel,Homelessness Bed & Breakfast Costs
Peterborough,http://opendatacommunities.org/id/unitary-authority/peterborough,Peterborough City Council,Adults and Communities - Communities,Housing and Health,Services,02/12/2016 00:00,30104835,507.5,Revenue,Eastfield Guesthouse,Homelessness Bed & Breakfast Costs
Peterborough,http://opendatacommunities.org/id/unitary-authority/peterborough,Peterborough City Council,Adults and Communities - Communities,Housing and Health,Services,02/12/2016 00:00,30104838,507.5,Revenue,Eastfield Guesthouse,Homelessness Bed & Breakfast Costs
Peterborough,http://opendatacommunities.org/id/unitary-authority/peterborough,Peterborough City Council,Adults and Communities - Communities,Housing and Health,Services,02/12/2016 00:00,30104840,507.5,Revenue,Eastfield Guesthouse,Homelessness Bed & Breakfast Costs
Peterborough,http://opendatacommunities.org/id/unitary-authority/peterborough,Peterborough City Council,Adults and Communities - Communities,Housing and Health,Services,02/12/2016 00:00,30104870,655.06,Revenue,DA Rosalia Hotel,Homelessness Bed & Breakfast Costs
Peterborough,http://opendatacommunities.org/id/unitary-authority/peterborough,Peterborough City Council,Adults and Communities - Communities,Housing and Health,Services,02/12/2016 00:00,30104873,655.06,Revenue,DA Rosalia Hotel,Homelessness Bed & Breakfast Costs
Peterborough,http://opendatacommunities.org/id/unitary-authority/peterborough,Peterborough City Council,Business Management and Commercial Operations,Commissioning,Services,02/12/2016 00:00,30104917,887,Revenue,Wrixon Care Services,Hired Services
Peterborough,http://opendatacommunities.org/id/unitary-authority/peterborough,Peterborough City Council,Children's & Safeguarding,Children's Social Care,Agency Staff,02/12/2016 00:00,30104922,1315.55,Revenue,Service Care Solutions Ltd,External Temporary Staff
Peterborough,http://opendatacommunities.org/id/unitary-authority/peterborough,Peterborough City Council,Children's & Safeguarding,Children's Social Care,Agency Staff,02/12/2016 00:00,30104923,1315.55,Revenue,Service Care Solutions Ltd,External Temporary Staff
Peterborough,http://opendatacommunities.org/id/unitary-authority/peterborough,Peterborough City Council,Children's & Safeguarding,Child Health,Services,02/12/2016 00:00,30104928,627.16,Revenue,Cherry Lodge (Imprest),Boarding Out Allowances
Peterborough,http://opendatacommunities.org/id/unitary-authority/peterborough,Peterborough City Council,Adult Services & Communities - Adults,Independent Sector Placements,Services,02/12/2016 00:00,30104939,728.28,Revenue,Sagecare,Home Care
Peterborough,http://opendatacommunities.org/id/unitary-authority/peterborough,Peterborough City Council,Adult Services & Communities - Adults,Independent Sector Placements,Services,02/12/2016 00:00,30104942,3500,Revenue,Alysia Caring Ltd T/a Cherry Blossom care Home,Residential Care
Peterborough,http://opendatacommunities.org/id/unitary-authority/peterborough,Peterborough City Council,Adult Services & Communities - Adults,Independent Sector Placements,Services,02/12/2016 00:00,30104972,2128.92,Revenue,Alysia Caring Ltd T/a Cherry Blossom care Home,Residential Care
Peterborough,http://opendatacommunities.org/id/unitary-authority/peterborough,Peterborough City Council,Corporate,Corporate,Non Revenue,02/12/2016 00:00,30105005,183208.08,Capital,B & K Building Services Ltd,Building And Site Works
Peterborough,http://opendatacommunities.org/id/unitary-authority/peterborough,Peterborough City Council,Adult Services & Communities - Adults,Independent Sector Placements,Services,02/12/2016 00:00,30105066,3450,Revenue,Longueville Court (Barchester),Residential Care
Peterborough,http://opendatacommunities.org/id/unitary-authority/peterborough,Peterborough City Council,Adult Services & Communities - Adults,Independent Sector Placements,Services,02/12/2016 00:00,30105067,4600,Revenue,Longueville Court (Barchester),Residential Care
Peterborough,http://opendatacommunities.org/id/unitary-authority/peterborough,Peterborough City Council,Adult Services & Communities - Adults,Independent Sector Placements,Services,02/12/2016 00:00,30105068,4600,Revenue,Longueville Court (Barchester),Residential Care
Peterborough,http://opendatacommunities.org/id/unitary-authority/peterborough,Peterborough City Council,Adult Services & Communities - Adults,Independent Sector Placements,Services,02/12/2016 00:00,30105070,863.28,Revenue,Hales Group Ltd,Home Care
Peterborough,http://opendatacommunities.org/id/unitary-authority/peterborough,Peterborough City Council,Adult Services & Communities - Adults,Independent Sector Placements,Services,02/12/2016 00:00,30105071,4600,Revenue,Longueville Court (Barchester),Residential Care
Peterborough,http://opendatacommunities.org/id/unitary-authority/peterborough,Peterborough City Council,Adult Services & Communities - Adults,Independent Sector Placements,Services,02/12/2016 00:00,30105076,503.36,Revenue,Hales Group Ltd,Home Care
Peterborough,http://opendatacommunities.org/id/unitary-authority/peterborough,Peterborough City Council,Adult Services & Communities - Adults,Independent Sector Placements,Services,02/12/2016 00:00,30105077,1317.75,Revenue,THE TUDORS,Residential Care
Peterborough,http://opendatacommunities.org/id/unitary-authority/peterborough,Peterborough City Council,Adult Services & Communities - Adults,Independent Sector Placements,Services,02/12/2016 00:00,30105078,1321.61,Revenue,THE TUDORS,Residential Care
Peterborough,http://opendatacommunities.org/id/unitary-authority/peterborough,Peterborough City Council,Adult Services & Communities - Adults,Independent Sector Placements,Services,02/12/2016 00:00,30105100,3292,Revenue,Richmond Fellowship,Residential Care
Peterborough,http://opendatacommunities.org/id/unitary-authority/peterborough,Peterborough City Council,Adult Services & Communities - Adults,Independent Sector Placements,Services,02/12/2016 00:00,30105101,3292,Revenue,Richmond Fellowship,Residential Care
Peterborough,http://opendatacommunities.org/id/unitary-authority/peterborough,Peterborough City Council,Adult Services & Communities - Adults,Independent Sector Placements,Services,02/12/2016 00:00,30105103,3292,Revenue,Richmond Fellowship,Residential Care
Peterborough,http://opendatacommunities.org/id/unitary-authority/peterborough,Peterborough City Council,Adult Services & Communities - Adults,Independent Sector Placements,Services,02/12/2016 00:00,30105104,3244,Revenue,Richmond Fellowship,Residential Care
Peterborough,http://opendatacommunities.org/id/unitary-authority/peterborough,Peterborough City Council,Adult Services & Communities - Adults,Independent Sector Placements,Services,02/12/2016 00:00,30105110,3244,Revenue,Richmond Fellowship,Residential Care
Peterborough,http://opendatacommunities.org/id/unitary-authority/peterborough,Peterborough City Council,Adult Services & Communities - Adults,Independent Sector Placements,Services,02/12/2016 00:00,30105111,3963.5,Revenue,Longueville Court (Barchester),Residential Care
Peterborough,http://opendatacommunities.org/id/unitary-authority/peterborough,Peterborough City Council,Adult Services & Communities - Adults,Independent Sector Placements,Services,02/12/2016 00:00,30105114,3149.5,Revenue,Longueville Court (Barchester),Residential Care
Peterborough,http://opendatacommunities.org/id/unitary-authority/peterborough,Peterborough City Council,Adult Services & Communities - Adults,Independent Sector Placements,Services,02/12/2016 00:00,30105115,5538.61,Revenue,Longueville Court (Barchester),Residential Care
Peterborough,http://opendatacommunities.org/id/unitary-authority/peterborough,Peterborough City Council,Adults and Communities - Communities,Housing and Health,Services,02/12/2016 00:00,30105118,595.56,Revenue,DA Rosalia Hotel,Homelessness Bed & Breakfast Costs
Peterborough,http://opendatacommunities.org/id/unitary-authority/peterborough,Peterborough City Council,Adult Services & Communities - Adults,Independent Sector Placements,Services,02/12/2016 00:00,30105119,4635.58,Revenue,Longueville Court (Barchester),Residential Care
Peterborough,http://opendatacommunities.org/id/unitary-authority/peterborough,Peterborough City Council,Adult Services & Communities - Adults,Independent Sector Placements,Services,02/12/2016 00:00,30105131,1155.92,Revenue,Avery Homes (Nelson) Ltd,Residential Care
Peterborough,http://opendatacommunities.org/id/unitary-authority/peterborough,Peterborough City Council,Adult Services & Communities - Adults,Independent Sector Placements,Services,02/12/2016 00:00,30105134,1217.2,Revenue,Avery Homes (Nelson) Ltd,Residential Care
Peterborough,http://opendatacommunities.org/id/unitary-authority/peterborough,Peterborough City Council,Adult Services & Communities - Adults,Independent Sector Placements,Services,02/12/2016 00:00,30105150,4854.4,Revenue,Mencap,Residential Care
Peterborough,http://opendatacommunities.org/id/unitary-authority/peterborough,Peterborough City Council,Adult Services & Communities - Adults,Independent Sector Placements,Services,02/12/2016 00:00,30105151,5087.4,Revenue,Mencap,Home Care
Peterborough,http://opendatacommunities.org/id/unitary-authority/peterborough,Peterborough City Council,Adult Services & Communities - Adults,Independent Sector Placements,Services,02/12/2016 00:00,30105161,1390.71,Revenue,Park Vista Care Home,Residential Care
Peterborough,http://opendatacommunities.org/id/unitary-authority/peterborough,Peterborough City Council,Adult Services & Communities - Adults,Independent Sector Placements,Services,02/12/2016 00:00,30105162,1390.71,Revenue,Park Vista Care Home,Residential Care
Peterborough,http://opendatacommunities.org/id/unitary-authority/peterborough,Peterborough City Council,Adult Services & Communities - Adults,Independent Sector Placements,Services,02/12/2016 00:00,30105164,1390.71,Revenue,Park Vista Care Home,Residential Care
Peterborough,http://opendatacommunities.org/id/unitary-authority/peterborough,Peterborough City Council,Adult Services & Communities - Adults,Independent Sector Placements,Services,02/12/2016 00:00,30105165,1390.71,Revenue,Park Vista Care Home,Residential Care
Peterborough,http://opendatacommunities.org/id/unitary-authority/peterborough,Peterborough City Council,Adult Services & Communities - Adults,Independent Sector Placements,Services,02/12/2016 00:00,30105168,1390.71,Revenue,Park Vista Care Home,Residential Care
Peterborough,http://opendatacommunities.org/id/unitary-authority/peterborough,Peterborough City Council,Adult Services & Communities - Adults,Independent Sector Placements,Services,02/12/2016 00:00,30105179,1155.8,Revenue,Park Vista Care Home,Residential Care
Peterborough,http://opendatacommunities.org/id/unitary-authority/peterborough,Peterborough City Council,Vivacity/Cultural Services,Cultural Services,Services,02/12/2016 00:00,30105207,13000,Revenue,Peterborough Sings,Hired Services
Peterborough,http://opendatacommunities.org/id/unitary-authority/peterborough,Peterborough City Council,Adult Services & Communities - Adults,Community Team,Contract Hire and Operating Leases,02/12/2016 00:00,30105216,2982.5,Revenue,Northumbria Healthcare NHS Foundation Trust,Leasing Charges
Peterborough,http://opendatacommunities.org/id/unitary-authority/peterborough,Peterborough City Council,Adult Services & Communities - Adults,Community Team,Contract Hire and Operating Leases,02/12/2016 00:00,30105229,3139.14,Revenue,Northumbria Healthcare NHS Foundation Trust,Leasing Charges
Peterborough,http://opendatacommunities.org/id/unitary-authority/peterborough,Peterborough City Council,Adult Services & Communities - Adults,Independent Sector Placements,Services,02/12/2016 00:00,30105235,1968.76,Revenue,Sense,Day Care
Peterborough,http://opendatacommunities.org/id/unitary-authority/peterborough,Peterborough City Council,Adult Services & Communities - Adults,Independent Sector Placements,Services,02/12/2016 00:00,30105237,1968.76,Revenue,Sense,Day Care
Peterborough,http://opendatacommunities.org/id/unitary-authority/peterborough,Peterborough City Council,Adult Services & Communities - Adults,Independent Sector Placements,Services,02/12/2016 00:00,30105239,1968.76,Revenue,Sense,Day Care
Peterborough,http://opendatacommunities.org/id/unitary-authority/peterborough,Peterborough City Council,Adult Services & Communities - Adults,Independent Sector Placements,Services,02/12/2016 00:00,30105241,2305.58,Revenue,Sense,Day Care
Peterborough,http://opendatacommunities.org/id/unitary-authority/peterborough,Peterborough City Council,Adult Services & Communities - Adults,Independent Sector Placements,Services,02/12/2016 00:00,30105243,-3153.62,Revenue,Sense,Day Care
Peterborough,http://opendatacommunities.org/id/unitary-authority/peterborough,Peterborough City Council,Adult Services & Communities - Adults,Independent Sector Placements,Services,02/12/2016 00:00,30105244,-544.54,Revenue,Sense,Day Care
Peterborough,http://opendatacommunities.org/id/unitary-authority/peterborough,Peterborough City Council,Adult Services & Communities - Adults,Independent Sector Placements,Services,02/12/2016 00:00,30105247,1968.76,Revenue,Sense,Day Care
Peterborough,http://opendatacommunities.org/id/unitary-authority/peterborough,Peterborough City Council,Corporate,Corporate,Non Revenue,02/12/2016 00:00,30105252,32000,Capital,Bourne Leisure Ltd,Grant Payment
Peterborough,http://opendatacommunities.org/id/unitary-authority/peterborough,Peterborough City Council,Adult Services & Communities - Adults,Independent Sector Placements,Services,02/12/2016 00:00,30105256,1968.76,Revenue,Sense,Day Care
Peterborough,http://opendatacommunities.org/id/unitary-authority/peterborough,Peterborough City Council,Adult Services & Communities - Adults,Independent Sector Placements,Services,02/12/2016 00:00,30105257,1968.76,Revenue,Sense,Day Care
Peterborough,http://opendatacommunities.org/id/unitary-authority/peterborough,Peterborough City Council,Adult Services & Communities - Adults,Independent Sector Placements,Services,02/12/2016 00:00,30105258,1968.76,Revenue,Sense,Day Care
Peterborough,http://opendatacommunities.org/id/unitary-authority/peterborough,Peterborough City Council,Adult Services & Communities - Adults,Independent Sector Placements,Services,02/12/2016 00:00,30105259,1968.76,Revenue,Sense,Day Care
Peterborough,http://opendatacommunities.org/id/unitary-authority/peterborough,Peterborough City Council,Adult Services & Communities - Adults,Independent Sector Placements,Services,02/12/2016 00:00,30105260,1586.24,Revenue,Sense,Day Care
Peterborough,http://opendatacommunities.org/id/unitary-authority/peterborough,Peterborough City Council,Adult Services & Communities - Adults,Independent Sector Placements,Services,02/12/2016 00:00,30105261,1968.76,Revenue,Sense,Day Care
Peterborough,http://opendatacommunities.org/id/unitary-authority/peterborough,Peterborough City Council,Adult Services & Communities - Adults,Independent Sector Placements,Services,02/12/2016 00:00,30105262,1968.76,Revenue,Sense,Day Care
Peterborough,http://opendatacommunities.org/id/unitary-authority/peterborough,Peterborough City Council,Adult Services & Communities - Adults,Independent Sector Placements,Services,02/12/2016 00:00,30105263,1586.24,Revenue,Sense,Day Care
Peterborough,http://opendatacommunities.org/id/unitary-authority/peterborough,Peterborough City Council,Adult Services & Communities - Adults,Independent Sector Placements,Services,02/12/2016 00:00,30105264,1586.24,Revenue,Sense,Day Care
Peterborough,http://opendatacommunities.org/id/unitary-authority/peterborough,Peterborough City Council,Adult Services & Communities - Adults,Independent Sector Placements,Services,02/12/2016 00:00,30105265,1968.76,Revenue,Sense,Day Care
Peterborough,http://opendatacommunities.org/id/unitary-authority/peterborough,Peterborough City Council,Adult Services & Communities - Adults,Block Contracts,Third Party Payments,02/12/2016 00:00,30105300,4836.07,Revenue,ABOUT ME CARE AND SUPPORT LTD,Third Party Payments - Contract
Peterborough,http://opendatacommunities.org/id/unitary-authority/peterborough,Peterborough City Council,Children's & Safeguarding,Children's Social Care,Services,02/12/2016 00:00,30105312,6164,Revenue,The Fostering Network,Professional Membership
Peterborough,http://opendatacommunities.org/id/unitary-authority/peterborough,Peterborough City Council,Children's & Safeguarding,Access to Resources & Specialist Commissioning,Services,02/12/2016 00:00,30105345,3522.9,Revenue,Sir Harry Smith Community College,Out Of Area Education Costs
Peterborough,http://opendatacommunities.org/id/unitary-authority/peterborough,Peterborough City Council,Adult Services & Communities - Adults,Independent Sector Placements,Services,02/12/2016 00:00,8000076667,1610.74,Revenue,Allied Healthcare (UK) Ltd,Home Care
Peterborough,http://opendatacommunities.org/id/unitary-authority/peterborough,Peterborough City Council,Adult Services & Communities - Adults,Independent Sector Placements,Services,02/12/2016 00:00,8000076670,1585.07,Revenue,Allied Healthcare (UK) Ltd,Home Care
Peterborough,http://opendatacommunities.org/id/unitary-authority/peterborough,Peterborough City Council,Adult Services & Communities - Adults,Independent Sector Placements,Services,02/12/2016 00:00,8000076676,601.13,Revenue,Allied Healthcare (UK) Ltd,Home Care
Peterborough,http://opendatacommunities.org/id/unitary-authority/peterborough,Peterborough City Council,Adult Services & Communities - Adults,Independent Sector Placements,Services,02/12/2016 00:00,8000076677,1639.16,Revenue,Allied Healthcare (UK) Ltd,Home Care
Peterborough,http://opendatacommunities.org/id/unitary-authority/peterborough,Peterborough City Council,Adult Services & Communities - Adults,Independent Sector Placements,Services,02/12/2016 00:00,8000076678,789.77,Revenue,Allied Healthcare (UK) Ltd,Home Care
Peterborough,http://opendatacommunities.org/id/unitary-authority/peterborough,Peterborough City Council,Adult Services & Communities - Adults,Independent Sector Placements,Services,02/12/2016 00:00,8000076679,676.06,Revenue,Allied Healthcare (UK) Ltd,Home Care
Peterborough,http://opendatacommunities.org/id/unitary-authority/peterborough,Peterborough City Council,Adult Services & Communities - Adults,Independent Sector Placements,Services,02/12/2016 00:00,8000076680,632.87,Revenue,Allied Healthcare (UK) Ltd,Home Care
Peterborough,http://opendatacommunities.org/id/unitary-authority/peterborough,Peterborough City Council,Adult Services & Communities - Adults,Independent Sector Placements,Services,02/12/2016 00:00,8000076682,625.97,Revenue,Allied Healthcare (UK) Ltd,Home Care
Peterborough,http://opendatacommunities.org/id/unitary-authority/peterborough,Peterborough City Council,Adult Services & Communities - Adults,Independent Sector Placements,Services,02/12/2016 00:00,8000076686,604.72,Revenue,Allied Healthcare (UK) Ltd,Home Care
Peterborough,http://opendatacommunities.org/id/unitary-authority/peterborough,Peterborough City Council,Adult Services & Communities - Adults,Independent Sector Placements,Services,02/12/2016 00:00,8000076690,2373.74,Revenue,Allied Healthcare (UK) Ltd,Home Care
Peterborough,http://opendatacommunities.org/id/unitary-authority/peterborough,Peterborough City Council,Adult Services & Communities - Adults,Independent Sector Placements,Services,02/12/2016 00:00,8000076691,2070.14,Revenue,Allied Healthcare (UK) Ltd,Home Care
Peterborough,http://opendatacommunities.org/id/unitary-authority/peterborough,Peterborough City Council,Adult Services & Communities - Adults,Independent Sector Placements,Services,02/12/2016 00:00,8000077283,912.9,Revenue,Sagecare,Home Care
Peterborough,http://opendatacommunities.org/id/unitary-authority/peterborough,Peterborough City Council,Adult Services & Communities - Adults,Independent Sector Placements,Services,02/12/2016 00:00,8000077285,776.44,Revenue,Sagecare,Home Care
Peterborough,http://opendatacommunities.org/id/unitary-authority/peterborough,Peterborough City Council,Adult Services & Communities - Adults,Independent Sector Placements,Services,02/12/2016 00:00,8000077289,582.4,Revenue,Sagecare,Home Care
Peterborough,http://opendatacommunities.org/id/unitary-authority/peterborough,Peterborough City Council,Adult Services & Communities - Adults,Independent Sector Placements,Services,02/12/2016 00:00,8000077295,2889.75,Revenue,Sagecare,Home Care
Peterborough,http://opendatacommunities.org/id/unitary-authority/peterborough,Peterborough City Council,Adult Services & Communities - Adults,Independent Sector Placements,Services,02/12/2016 00:00,8000077296,852.56,Revenue,Sagecare,Home Care
Peterborough,http://opendatacommunities.org/id/unitary-authority/peterborough,Peterborough City Council,Adult Services & Communities - Adults,Independent Sector Placements,Services,02/12/2016 00:00,8000077330,592.67,Revenue,Sagecare,Home Care
Peterborough,http://opendatacommunities.org/id/unitary-authority/peterborough,Peterborough City Council,Adult Services & Communities - Adults,Independent Sector Placements,Services,02/12/2016 00:00,8000077331,575.47,Revenue,Sagecare,Home Care
Peterborough,http://opendatacommunities.org/id/unitary-authority/peterborough,Peterborough City Council,Adult Services & Communities - Adults,Independent Sector Placements,Services,02/12/2016 00:00,8000077336,755.04,Revenue,Sagecare,Home Care
Peterborough,http://opendatacommunities.org/id/unitary-authority/peterborough,Peterborough City Council,Adult Services & Communities - Adults,Independent Sector Placements,Services,02/12/2016 00:00,8000077339,556.51,Revenue,Sagecare,Home Care
Peterborough,http://opendatacommunities.org/id/unitary-authority/peterborough,Peterborough City Council,Adult Services & Communities - Adults,Independent Sector Placements,Services,02/12/2016 00:00,8000077343,665.42,Revenue,Sagecare,Home Care
Peterborough,http://opendatacommunities.org/id/unitary-authority/peterborough,Peterborough City Council,Adult Services & Communities - Adults,Independent Sector Placements,Services,02/12/2016 00:00,8000077347,838.68,Revenue,Sagecare,Home Care
Peterborough,http://opendatacommunities.org/id/unitary-authority/peterborough,Peterborough City Council,Adult Services & Communities - Adults,Independent Sector Placements,Services,02/12/2016 00:00,8000077349,603.15,Revenue,Sagecare,Home Care
Peterborough,http://opendatacommunities.org/id/unitary-authority/peterborough,Peterborough City Council,Adult Services & Communities - Adults,Independent Sector Placements,Services,02/12/2016 00:00,8000077353,1150.44,Revenue,Sagecare,Home Care
Peterborough,http://opendatacommunities.org/id/unitary-authority/peterborough,Peterborough City Council,Adult Services & Communities - Adults,Independent Sector Placements,Services,02/12/2016 00:00,8000077357,1746.64,Revenue,Sagecare,Home Care
Peterborough,http://opendatacommunities.org/id/unitary-authority/peterborough,Peterborough City Council,Adult Services & Communities - Adults,Independent Sector Placements,Services,02/12/2016 00:00,8000077358,516.49,Revenue,Sagecare,Home Care
Peterborough,http://opendatacommunities.org/id/unitary-authority/peterborough,Peterborough City Council,Adult Services & Communities - Adults,Independent Sector Placements,Services,02/12/2016 00:00,8000077359,672.21,Revenue,Sagecare,Home Care
Peterborough,http://opendatacommunities.org/id/unitary-authority/peterborough,Peterborough City Council,Adult Services & Communities - Adults,Independent Sector Placements,Services,02/12/2016 00:00,8000077361,838.54,Revenue,Sagecare,Home Care
Peterborough,http://opendatacommunities.org/id/unitary-authority/peterborough,Peterborough City Council,Adult Services & Communities - Adults,Independent Sector Placements,Services,02/12/2016 00:00,8000077363,1257.45,Revenue,Sagecare,Home Care
Peterborough,http://opendatacommunities.org/id/unitary-authority/peterborough,Peterborough City Council,Adult Services & Communities - Adults,Independent Sector Placements,Services,02/12/2016 00:00,8000077364,914.76,Revenue,Sagecare,Home Care
Peterborough,http://opendatacommunities.org/id/unitary-authority/peterborough,Peterborough City Council,Adult Services & Communities - Adults,Independent Sector Placements,Services,02/12/2016 00:00,8000077366,1851.3,Revenue,Sagecare,Home Care
Peterborough,http://opendatacommunities.org/id/unitary-authority/peterborough,Peterborough City Council,Adult Services & Communities - Adults,Independent Sector Placements,Services,02/12/2016 00:00,8000077368,1138.95,Revenue,Sagecare,Home Care
Peterborough,http://opendatacommunities.org/id/unitary-authority/peterborough,Peterborough City Council,Adult Services & Communities - Adults,Independent Sector Placements,Services,02/12/2016 00:00,8000077369,776.16,Revenue,Sagecare,Home Care
Peterborough,http://opendatacommunities.org/id/unitary-authority/peterborough,Peterborough City Council,Adult Services & Communities - Adults,Independent Sector Placements,Services,02/12/2016 00:00,8000077409,706.07,Revenue,Sagecare,Home Care
Peterborough,http://opendatacommunities.org/id/unitary-authority/peterborough,Peterborough City Council,Adult Services & Communities - Adults,Independent Sector Placements,Services,02/12/2016 00:00,8000077419,1926.54,Revenue,Sagecare,Home Care
Peterborough,http://opendatacommunities.org/id/unitary-authority/peterborough,Peterborough City Council,Adult Services & Communities - Adults,Independent Sector Placements,Services,02/12/2016 00:00,8000077425,1740.96,Revenue,Sagecare,Home Care
Peterborough,http://opendatacommunities.org/id/unitary-authority/peterborough,Peterborough City Council,Adult Services & Communities - Adults,Independent Sector Placements,Services,02/12/2016 00:00,8000077426,662.22,Revenue,Sagecare,Home Care
Peterborough,http://opendatacommunities.org/id/unitary-authority/peterborough,Peterborough City Council,Adult Services & Communities - Adults,Independent Sector Placements,Services,02/12/2016 00:00,8000077427,2238.52,Revenue,Sagecare,Home Care
Peterborough,http://opendatacommunities.org/id/unitary-authority/peterborough,Peterborough City Council,Adult Services & Communities - Adults,Independent Sector Placements,Services,02/12/2016 00:00,8000077429,600,Revenue,Sagecare,Home Care
Peterborough,http://opendatacommunities.org/id/unitary-authority/peterborough,Peterborough City Council,Adult Services & Communities - Adults,Independent Sector Placements,Services,02/12/2016 00:00,8000077650,3800.16,Revenue,Hales Group Ltd,Home Care
Peterborough,http://opendatacommunities.org/id/unitary-authority/peterborough,Peterborough City Council,Adult Services & Communities - Adults,Independent Sector Placements,Services,02/12/2016 00:00,8000077651,933.87,Revenue,Axiom Care Ltd,Home Care
Peterborough,http://opendatacommunities.org/id/unitary-authority/peterborough,Peterborough City Council,Adult Services & Communities - Adults,Independent Sector Placements,Services,02/12/2016 00:00,8000077652,1065.61,Revenue,Axiom Care Ltd,Home Care
Peterborough,http://opendatacommunities.org/id/unitary-authority/peterborough,Peterborough City Council,Adult Services & Communities - Adults,Independent Sector Placements,Services,02/12/2016 00:00,8000077654,1065.61,Revenue,Axiom Care Ltd,Home Care
Peterborough,http://opendatacommunities.org/id/unitary-authority/peterborough,Peterborough City Council,Adult Services & Communities - Adults,Independent Sector Placements,Services,02/12/2016 00:00,8000077655,1065.61,Revenue,Axiom Care Ltd,Home Care
Peterborough,http://opendatacommunities.org/id/unitary-authority/peterborough,Peterborough City Council,Adult Services & Communities - Adults,Independent Sector Placements,Services,02/12/2016 00:00,8000077656,655.76,Revenue,Axiom Care Ltd,Home Care
Peterborough,http://opendatacommunities.org/id/unitary-authority/peterborough,Peterborough City Council,Adult Services & Communities - Adults,Independent Sector Placements,Services,02/12/2016 00:00,8000077660,1109.09,Revenue,Hales Group Ltd,Home Care
Peterborough,http://opendatacommunities.org/id/unitary-authority/peterborough,Peterborough City Council,Adult Services & Communities - Adults,Independent Sector Placements,Services,02/12/2016 00:00,8000077714,523.67,Revenue,Hales Group Ltd,Home Care
Peterborough,http://opendatacommunities.org/id/unitary-authority/peterborough,Peterborough City Council,Adult Services & Communities - Adults,Independent Sector Placements,Services,02/12/2016 00:00,8000077716,598.87,Revenue,Hales Group Ltd,Home Care
Peterborough,http://opendatacommunities.org/id/unitary-authority/peterborough,Peterborough City Council,Adult Services & Communities - Adults,Independent Sector Placements,Services,02/12/2016 00:00,8000077761,501.6,Revenue,Cozy Care,Home Care
Peterborough,http://opendatacommunities.org/id/unitary-authority/peterborough,Peterborough City Council,Adult Services & Communities - Adults,Independent Sector Placements,Services,02/12/2016 00:00,8000077763,1663.2,Revenue,Cozy Care,Home Care
Peterborough,http://opendatacommunities.org/id/unitary-authority/peterborough,Peterborough City Council,Adult Services & Communities - Adults,Independent Sector Placements,Services,02/12/2016 00:00,8000077764,699.6,Revenue,Cozy Care,Home Care
Peterborough,http://opendatacommunities.org/id/unitary-authority/peterborough,Peterborough City Council,Adult Services & Communities - Adults,Independent Sector Placements,Services,02/12/2016 00:00,8000077765,1848,Revenue,Cozy Care,Home Care
Peterborough,http://opendatacommunities.org/id/unitary-authority/peterborough,Peterborough City Council,Adult Services & Communities - Adults,Independent Sector Placements,Services,02/12/2016 00:00,8000077769,1848,Revenue,Cozy Care,Home Care
Peterborough,http://opendatacommunities.org/id/unitary-authority/peterborough,Peterborough City Council,Adult Services & Communities - Adults,Independent Sector Placements,Services,02/12/2016 00:00,8000077773,924,Revenue,Cozy Care,Home Care
Peterborough,http://opendatacommunities.org/id/unitary-authority/peterborough,Peterborough City Council,Adult Services & Communities - Adults,Independent Sector Placements,Services,02/12/2016 00:00,8000077776,554.4,Revenue,Cozy Care,Home Care
Peterborough,http://opendatacommunities.org/id/unitary-authority/peterborough,Peterborough City Council,Adult Services & Communities - Adults,Independent Sector Placements,Services,02/12/2016 00:00,8000077783,600.6,Revenue,Cozy Care,Home Care
Peterborough,http://opendatacommunities.org/id/unitary-authority/peterborough,Peterborough City Council,Adult Services & Communities - Adults,Independent Sector Placements,Services,02/12/2016 00:00,8000077784,1663.2,Revenue,Cozy Care,Home Care
Peterborough,http://opendatacommunities.org/id/unitary-authority/peterborough,Peterborough City Council,Adult Services & Communities - Adults,Independent Sector Placements,Services,02/12/2016 00:00,8000077788,884.4,Revenue,Cozy Care,Home Care
Peterborough,http://opendatacommunities.org/id/unitary-authority/peterborough,Peterborough City Council,Adult Services & Communities - Adults,Independent Sector Placements,Services,02/12/2016 00:00,8000077792,831.6,Revenue,Cozy Care,Home Care
Peterborough,http://opendatacommunities.org/id/unitary-authority/peterborough,Peterborough City Council,Adult Services & Communities - Adults,Independent Sector Placements,Services,02/12/2016 00:00,8000077796,514.8,Revenue,Cozy Care,Home Care
Peterborough,http://opendatacommunities.org/id/unitary-authority/peterborough,Peterborough City Council,Adult Services & Communities - Adults,Independent Sector Placements,Services,02/12/2016 00:00,8000077797,788.7,Revenue,Cozy Care,Home Care
Peterborough,http://opendatacommunities.org/id/unitary-authority/peterborough,Peterborough City Council,Adult Services & Communities - Adults,Independent Sector Placements,Services,02/12/2016 00:00,8000077798,656.7,Revenue,Cozy Care,Home Care
Peterborough,http://opendatacommunities.org/id/unitary-authority/peterborough,Peterborough City Council,Adult Services & Communities - Adults,Independent Sector Placements,Services,02/12/2016 00:00,8000077800,666.6,Revenue,Cozy Care,Home Care
Peterborough,http://opendatacommunities.org/id/unitary-authority/peterborough,Peterborough City Council,Adult Services & Communities - Adults,Independent Sector Placements,Services,02/12/2016 00:00,8000077801,1848,Revenue,Cozy Care,Home Care
Peterborough,http://opendatacommunities.org/id/unitary-authority/peterborough,Peterborough City Council,Adult Services & Communities - Adults,Independent Sector Placements,Services,02/12/2016 00:00,8000077802,1062.6,Revenue,Cozy Care,Home Care
Peterborough,http://opendatacommunities.org/id/unitary-authority/peterborough,Peterborough City Council,Adult Services & Communities - Adults,Independent Sector Placements,Services,02/12/2016 00:00,8000077803,792,Revenue,Cozy Care,Home Care
Peterborough,http://opendatacommunities.org/id/unitary-authority/peterborough,Peterborough City Council,Adult Services & Communities - Adults,Independent Sector Placements,Services,02/12/2016 00:00,8000077807,772.2,Revenue,Cozy Care,Home Care
Peterborough,http://opendatacommunities.org/id/unitary-authority/peterborough,Peterborough City Council,Adult Services & Communities - Adults,Independent Sector Placements,Services,02/12/2016 00:00,8000077808,554.4,Revenue,Cozy Care,Home Care
Peterborough,http://opendatacommunities.org/id/unitary-authority/peterborough,Peterborough City Council,Adult Services & Communities - Adults,Independent Sector Placements,Services,02/12/2016 00:00,8000077809,1280.4,Revenue,Cozy Care,Home Care
Peterborough,http://opendatacommunities.org/id/unitary-authority/peterborough,Peterborough City Council,Adult Services & Communities - Adults,Independent Sector Placements,Services,02/12/2016 00:00,8000077811,739.2,Revenue,Cozy Care,Home Care
Peterborough,http://opendatacommunities.org/id/unitary-authority/peterborough,Peterborough City Council,Adult Services & Communities - Adults,Independent Sector Placements,Services,02/12/2016 00:00,8000077815,844.8,Revenue,Hales Group Ltd,Home Care
Peterborough,http://opendatacommunities.org/id/unitary-authority/peterborough,Peterborough City Council,Adult Services & Communities - Adults,Independent Sector Placements,Services,02/12/2016 00:00,8000077821,1354.18,Revenue,Hales Group Ltd,Home Care
Peterborough,http://opendatacommunities.org/id/unitary-authority/peterborough,Peterborough City Council,Adult Services & Communities - Adults,Independent Sector Placements,Services,02/12/2016 00:00,8000077822,508.2,Revenue,Hales Group Ltd,Home Care
Peterborough,http://opendatacommunities.org/id/unitary-authority/peterborough,Peterborough City Council,Adult Services & Communities - Adults,Independent Sector Placements,Services,02/12/2016 00:00,8000077824,633.6,Revenue,Hales Group Ltd,Home Care
Peterborough,http://opendatacommunities.org/id/unitary-authority/peterborough,Peterborough City Council,Adult Services & Communities - Adults,Independent Sector Placements,Services,02/12/2016 00:00,8000077826,943.82,Revenue,Hales Group Ltd,Home Care
Peterborough,http://opendatacommunities.org/id/unitary-authority/peterborough,Peterborough City Council,Adult Services & Communities - Adults,Independent Sector Placements,Services,02/12/2016 00:00,8000077828,877.82,Revenue,Hales Group Ltd,Home Care
Peterborough,http://opendatacommunities.org/id/unitary-authority/peterborough,Peterborough City Council,Adult Services & Communities - Adults,Independent Sector Placements,Services,02/12/2016 00:00,8000077833,625.95,Revenue,Sagecare,Home Care
Peterborough,http://opendatacommunities.org/id/unitary-authority/peterborough,Peterborough City Council,Adult Services & Communities - Adults,Independent Sector Placements,Services,02/12/2016 00:00,8000077836,2113.92,Revenue,Sagecare,Home Care
Peterborough,http://opendatacommunities.org/id/unitary-authority/peterborough,Peterborough City Council,Adult Services & Communities - Adults,Independent Sector Placements,Services,02/12/2016 00:00,8000077839,1903.94,Revenue,Sagecare,Home Care
Peterborough,http://opendatacommunities.org/id/unitary-authority/peterborough,Peterborough City Council,Adult Services & Communities - Adults,Independent Sector Placements,Services,02/12/2016 00:00,8000077843,5024.46,Revenue,Hales Group Ltd,Home Care
Peterborough,http://opendatacommunities.org/id/unitary-authority/peterborough,Peterborough City Council,Adult Services & Communities - Adults,Independent Sector Placements,Services,02/12/2016 00:00,8000077844,4405.2,Revenue,Hales Group Ltd,Home Care
Peterborough,http://opendatacommunities.org/id/unitary-authority/peterborough,Peterborough City Council,Children's & Safeguarding,Access to Resources & Specialist Commissioning,Services,05/12/2016 00:00,30096925,17492.99,Revenue,Cambian Childcare Ltd,Boarding Out Allowances
Peterborough,http://opendatacommunities.org/id/unitary-authority/peterborough,Peterborough City Council,Children's & Safeguarding,Access to Resources & Specialist Commissioning,Services,05/12/2016 00:00,30097319,810.75,Revenue,I S P,Boarding Out Allowances
Peterborough,http://opendatacommunities.org/id/unitary-authority/peterborough,Peterborough City Council,Children's & Safeguarding,Access to Resources & Specialist Commissioning,Services,05/12/2016 00:00,30098370,19928.57,Revenue,Oracle Care Ltd (Region 2),Boarding Out Allowances
Peterborough,http://opendatacommunities.org/id/unitary-authority/peterborough,Peterborough City Council,Business Management and Commercial Operations,Business Management and Commercial Operations,Agency Staff,05/12/2016 00:00,30099881,2500,Revenue,Thawait's Consulting Ltd,External Temporary Staff
Peterborough,http://opendatacommunities.org/id/unitary-authority/peterborough,Peterborough City Council,Children's & Safeguarding,Access to Resources & Specialist Commissioning,Services,05/12/2016 00:00,30099940,51726,Revenue,Childhood First,Boarding Out Allowances
Peterborough,http://opendatacommunities.org/id/unitary-authority/peterborough,Peterborough City Council,Children's & Safeguarding,Access to Resources & Specialist Commissioning,Services,05/12/2016 00:00,30100070,14785.71,Revenue,Meadows Care Ltd,Boarding Out Allowances
Peterborough,http://opendatacommunities.org/id/unitary-authority/peterborough,Peterborough City Council,Children's & Safeguarding,Access to Resources & Specialist Commissioning,Services,05/12/2016 00:00,30100071,14785.71,Revenue,Meadows Care Ltd,Boarding Out Allowances
Peterborough,http://opendatacommunities.org/id/unitary-authority/peterborough,Peterborough City Council,Adult Services & Communities - Adults,Therapy/Reablement/Community Equipment,Agency Staff,05/12/2016 00:00,30100530,1258,Revenue,SWP Consulting,External Temporary Staff
Peterborough,http://opendatacommunities.org/id/unitary-authority/peterborough,Peterborough City Council,Business Management and Commercial Operations,Business Management and Commercial Operations,Agency Staff,05/12/2016 00:00,30100574,2500,Revenue,Thawait's Consulting Ltd,External Temporary Staff
Peterborough,http://opendatacommunities.org/id/unitary-authority/peterborough,Peterborough City Council,Children's & Safeguarding,Access to Resources & Specialist Commissioning,Services,05/12/2016 00:00,30100908,10071.3,Revenue,Acorn Homes UK Ltd,Boarding Out Allowances
Peterborough,http://opendatacommunities.org/id/unitary-authority/peterborough,Peterborough City Council,Children's & Safeguarding,Access to Resources & Specialist Commissioning,Services,05/12/2016 00:00,30101251,22500,Revenue,Care 4 Children Residential Services Ltd,Boarding Out Allowances
Peterborough,http://opendatacommunities.org/id/unitary-authority/peterborough,Peterborough City Council,Children's & Safeguarding,Access to Resources & Specialist Commissioning,Services,05/12/2016 00:00,30101410,15000,Revenue,Glebe House,Boarding Out Allowances
Peterborough,http://opendatacommunities.org/id/unitary-authority/peterborough,Peterborough City Council,Children's & Safeguarding,Access to Resources & Specialist Commissioning,Services,05/12/2016 00:00,30101415,16928.7,Revenue,Cambian Childcare Ltd,Boarding Out Allowances
Peterborough,http://opendatacommunities.org/id/unitary-authority/peterborough,Peterborough City Council,Adults and Communities - Communities,Housing and Health,Third Party Payments,05/12/2016 00:00,30101420,20838.28,Revenue,YMCA Cambridge & Peterborough,Grant-Third Party
Peterborough,http://opendatacommunities.org/id/unitary-authority/peterborough,Peterborough City Council,Children's & Safeguarding,Access to Resources & Specialist Commissioning,Services,05/12/2016 00:00,30101515,15000,Revenue,Barford Children's Services,Boarding Out Allowances
Peterborough,http://opendatacommunities.org/id/unitary-authority/peterborough,Peterborough City Council,Children's & Safeguarding,Access to Resources & Specialist Commissioning,Services,05/12/2016 00:00,30101687,15000,Revenue,Barford Children's Services,Boarding Out Allowances
Peterborough,http://opendatacommunities.org/id/unitary-authority/peterborough,Peterborough City Council,Children's & Safeguarding,Access to Resources & Specialist Commissioning,Services,05/12/2016 00:00,30102029,17935.5,Revenue,Dove Adolescent Services Ltd,Boarding Out Allowances
Peterborough,http://opendatacommunities.org/id/unitary-authority/peterborough,Peterborough City Council,Children's & Safeguarding,Access to Resources & Specialist Commissioning,Services,05/12/2016 00:00,30102333,972.9,Revenue,I S P,Boarding Out Allowances
Peterborough,http://opendatacommunities.org/id/unitary-authority/peterborough,Peterborough City Council,Peterborough Highway Services,Transport & Infrastructure Commissioning,Services,05/12/2016 00:00,30102967,1498.36,Revenue,Stagecoach in Peterborough,Contractors
Peterborough,http://opendatacommunities.org/id/unitary-authority/peterborough,Peterborough City Council,Children's & Safeguarding,Access to Resources & Specialist Commissioning,Services,05/12/2016 00:00,30103019,1189.1,Revenue,I S P,Boarding Out Allowances
Peterborough,http://opendatacommunities.org/id/unitary-authority/peterborough,Peterborough City Council,Children's & Safeguarding,Access to Resources & Specialist Commissioning,Services,05/12/2016 00:00,30103034,20970,Revenue,Childhood First,Boarding Out Allowances
Peterborough,http://opendatacommunities.org/id/unitary-authority/peterborough,Peterborough City Council,Children's & Safeguarding,Access to Resources & Specialist Commissioning,Services,05/12/2016 00:00,30103044,2388.85,Revenue,PC Homes,Boarding Out Allowances
Peterborough,http://opendatacommunities.org/id/unitary-authority/peterborough,Peterborough City Council,Children's & Safeguarding,Access to Resources & Specialist Commissioning,Services,05/12/2016 00:00,30103045,1567.71,Revenue,PC Homes,Boarding Out Allowances
Peterborough,http://opendatacommunities.org/id/unitary-authority/peterborough,Peterborough City Council,Children's & Safeguarding,Access to Resources & Specialist Commissioning,Services,05/12/2016 00:00,30103158,2407.71,Revenue,PC Homes,Boarding Out Allowances
Peterborough,http://opendatacommunities.org/id/unitary-authority/peterborough,Peterborough City Council,Legal & Democratic,Elections,Services,05/12/2016 00:00,30104741,1248.32,Revenue,Royal Mail,Postage
Peterborough,http://opendatacommunities.org/id/unitary-authority/peterborough,Peterborough City Council,Business Management and Commercial Operations,Early Years & Quality Improvement,Services,05/12/2016 00:00,30105323,504.98,Revenue,Redacted Personal Information,Grant Payment
Peterborough,http://opendatacommunities.org/id/unitary-authority/peterborough,Peterborough City Council,Commercial Group,Strategic Client Services,Services,05/12/2016 00:00,30105342,15000,Revenue,Postage By Phone - Pitney Bowes Ltd,Postage
Peterborough,http://opendatacommunities.org/id/unitary-authority/peterborough,Peterborough City Council,Business Management and Commercial Operations,Early Years & Quality Improvement,Services,05/12/2016 00:00,30105354,777.7,Revenue,Redacted Personal Information,Grant Payment
Peterborough,http://opendatacommunities.org/id/unitary-authority/peterborough,Peterborough City Council,Corporate,Corporate,Non Revenue,05/12/2016 00:00,30105419,864007.49,Balance Sheet,Teachers Pensions,Pensions
Peterborough,http://opendatacommunities.org/id/unitary-authority/peterborough,Peterborough City Council,Adult Services & Communities - Adults,Independent Sector Placements,Services,05/12/2016 00:00,30105522,8278.57,Revenue,Alysia Caring Ltd T/a Cherry Blossom care Home,Residential Care
Peterborough,http://opendatacommunities.org/id/unitary-authority/peterborough,Peterborough City Council,Adult Services & Communities - Adults,Independent Sector Placements,Services,05/12/2016 00:00,30105523,2699.39,Revenue,Alysia Caring Ltd T/a Cherry Blossom care Home,Residential Care
Peterborough,http://opendatacommunities.org/id/unitary-authority/peterborough,Peterborough City Council,Adult Services & Communities - Adults,Independent Sector Placements,Services,05/12/2016 00:00,30105525,-948.8,Revenue,Alysia Caring Ltd T/a Cherry Blossom care Home,Residential Care
Peterborough,http://opendatacommunities.org/id/unitary-authority/peterborough,Peterborough City Council,Peterborough Highway Services,Transport & Infrastructure Commissioning,Energy Costs,05/12/2016 00:00,30105539,4846.9,Revenue,E.ON Energy,Electricity
Peterborough,http://opendatacommunities.org/id/unitary-authority/peterborough,Peterborough City Council,Children's & Safeguarding,Access to Resources & Specialist Commissioning,Services,05/12/2016 00:00,30105619,5156.54,Revenue,Families First Ltd t/a Pathway Care,Boarding Out Allowances
Peterborough,http://opendatacommunities.org/id/unitary-authority/peterborough,Peterborough City Council,Adult Services & Communities - Adults,Independent Sector Placements,Services,05/12/2016 00:00,30105620,1963.2,Revenue,MEARS GROUP,Home Care
Peterborough,http://opendatacommunities.org/id/unitary-authority/peterborough,Peterborough City Council,Children's & Safeguarding,Access to Resources & Specialist Commissioning,Services,05/12/2016 00:00,30105622,4990.2,Revenue,Families First Ltd t/a Pathway Care,Boarding Out Allowances
Peterborough,http://opendatacommunities.org/id/unitary-authority/peterborough,Peterborough City Council,Children's & Safeguarding,Access to Resources & Specialist Commissioning,Services,05/12/2016 00:00,30105623,4990.2,Revenue,Families First Ltd t/a Pathway Care,Boarding Out Allowances
Peterborough,http://opendatacommunities.org/id/unitary-authority/peterborough,Peterborough City Council,Education,Home to School Transport,Contract Hire and Operating Leases,05/12/2016 00:00,8000077854,2530,Revenue,A2B Euro Cars,Hired Transport
Peterborough,http://opendatacommunities.org/id/unitary-authority/peterborough,Peterborough City Council,Education,Home to School Transport,Contract Hire and Operating Leases,05/12/2016 00:00,8000077855,2360,Revenue,A2B Euro Cars,Hired Transport
Peterborough,http://opendatacommunities.org/id/unitary-authority/peterborough,Peterborough City Council,Education,Home to School Transport,Contract Hire and Operating Leases,05/12/2016 00:00,8000077856,1988,Revenue,A2B Euro Cars,Hired Transport
Peterborough,http://opendatacommunities.org/id/unitary-authority/peterborough,Peterborough City Council,Education,Home to School Transport,Contract Hire and Operating Leases,05/12/2016 00:00,8000077857,717,Revenue,A2B Euro Cars,Hired Transport
Peterborough,http://opendatacommunities.org/id/unitary-authority/peterborough,Peterborough City Council,Education,Home to School Transport,Contract Hire and Operating Leases,05/12/2016 00:00,8000077858,600,Revenue,A2B Euro Cars,Hired Transport
Peterborough,http://opendatacommunities.org/id/unitary-authority/peterborough,Peterborough City Council,Education,Home to School Transport,Contract Hire and Operating Leases,05/12/2016 00:00,8000077860,1604,Revenue,Peterborough Cars,Hired Transport
Peterborough,http://opendatacommunities.org/id/unitary-authority/peterborough,Peterborough City Council,Education,Home to School Transport,Contract Hire and Operating Leases,05/12/2016 00:00,8000077861,1101.62,Revenue,Peterborough Cars,Hired Transport
Peterborough,http://opendatacommunities.org/id/unitary-authority/peterborough,Peterborough City Council,Education,Home to School Transport,Contract Hire and Operating Leases,05/12/2016 00:00,8000077862,650.88,Revenue,Peterborough Cars,Hired Transport
Peterborough,http://opendatacommunities.org/id/unitary-authority/peterborough,Peterborough City Council,Education,Home to School Transport,Contract Hire and Operating Leases,05/12/2016 00:00,8000077863,1460,Revenue,Peterborough Cars,Hired Transport
Peterborough,http://opendatacommunities.org/id/unitary-authority/peterborough,Peterborough City Council,Education,Home to School Transport,Contract Hire and Operating Leases,05/12/2016 00:00,8000077864,2707,Revenue,Peterborough Cars,Hired Transport
Peterborough,http://opendatacommunities.org/id/unitary-authority/peterborough,Peterborough City Council,Education,Home to School Transport,Contract Hire and Operating Leases,05/12/2016 00:00,8000077865,1115.64,Revenue,Peterborough Cars,Hired Transport
Peterborough,http://opendatacommunities.org/id/unitary-authority/peterborough,Peterborough City Council,Education,Home to School Transport,Contract Hire and Operating Leases,05/12/2016 00:00,8000077866,540,Revenue,Goldstar Cabs Ltd,Hired Transport
Peterborough,http://opendatacommunities.org/id/unitary-authority/peterborough,Peterborough City Council,Education,Home to School Transport,Contract Hire and Operating Leases,05/12/2016 00:00,8000077867,1012.5,Revenue,Goldstar Cabs Ltd,Hired Transport
Peterborough,http://opendatacommunities.org/id/unitary-authority/peterborough,Peterborough City Council,Education,Home to School Transport,Contract Hire and Operating Leases,05/12/2016 00:00,8000077869,640,Revenue,King Cabz,Hired Transport
Peterborough,http://opendatacommunities.org/id/unitary-authority/peterborough,Peterborough City Council,Education,Home to School Transport,Contract Hire and Operating Leases,05/12/2016 00:00,8000077870,608,Revenue,King Cabz,Hired Transport
Peterborough,http://opendatacommunities.org/id/unitary-authority/peterborough,Peterborough City Council,Education,Home to School Transport,Contract Hire and Operating Leases,05/12/2016 00:00,8000077871,940.8,Revenue,King Cabz,Hired Transport
Peterborough,http://opendatacommunities.org/id/unitary-authority/peterborough,Peterborough City Council,Education,Home to School Transport,Contract Hire and Operating Leases,05/12/2016 00:00,8000077872,940.8,Revenue,King Cabz,Hired Transport
Peterborough,http://opendatacommunities.org/id/unitary-authority/peterborough,Peterborough City Council,Education,Home to School Transport,Contract Hire and Operating Leases,05/12/2016 00:00,8000077873,511.99,Revenue,King Cabz,Hired Transport
Peterborough,http://opendatacommunities.org/id/unitary-authority/peterborough,Peterborough City Council,Adult Services & Communities - Adults,Independent Sector Placements,Contract Hire and Operating Leases,05/12/2016 00:00,8000077875,960,Revenue,King Cabz,Hired Transport
Peterborough,http://opendatacommunities.org/id/unitary-authority/peterborough,Peterborough City Council,Education,Home to School Transport,Contract Hire and Operating Leases,05/12/2016 00:00,8000077876,608,Revenue,King Cabz,Hired Transport
Peterborough,http://opendatacommunities.org/id/unitary-authority/peterborough,Peterborough City Council,Adult Services & Communities - Adults,Block Contracts,Third Party Payments,07/12/2016 00:00,30089381,3479.44,Revenue,Longueville Court (Barchester),Third Party Payments - Contract
Peterborough,http://opendatacommunities.org/id/unitary-authority/peterborough,Peterborough City Council,Corporate,Corporate,Non Revenue,07/12/2016 00:00,30094664,2140,Capital,Number 10 Interim Ltd,Consultants Fees
Peterborough,http://opendatacommunities.org/id/unitary-authority/peterborough,Peterborough City Council,Corporate,Corporate,Non Revenue,07/12/2016 00:00,30095995,2140,Capital,Number 10 Interim Ltd,Consultants Fees
Peterborough,http://opendatacommunities.org/id/unitary-authority/peterborough,Peterborough City Council,Corporate,Corporate,Non Revenue,07/12/2016 00:00,30097225,2675,Capital,Number 10 Interim Ltd,Consultants Fees
Peterborough,http://opendatacommunities.org/id/unitary-authority/peterborough,Peterborough City Council,Corporate,Corporate,Non Revenue,07/12/2016 00:00,30097961,2675,Capital,Number 10 Interim Ltd,Consultants Fees
Peterborough,http://opendatacommunities.org/id/unitary-authority/peterborough,Peterborough City Council,Adult Services & Communities - Adults,Mental Health,Third Party Payments,07/12/2016 00:00,30098603,37225,Revenue,Richmond Fellowship,Third Party Payments - Contract
Peterborough,http://opendatacommunities.org/id/unitary-authority/peterborough,Peterborough City Council,Corporate,Corporate,Non Revenue,07/12/2016 00:00,30099101,2675,Capital,Number 10 Interim Ltd,Consultants Fees
Peterborough,http://opendatacommunities.org/id/unitary-authority/peterborough,Peterborough City Council,Business Management and Commercial Operations,Commissioning,Services,07/12/2016 00:00,30099944,190290.75,Revenue,Barnardo Services Limited,Hired Services
Peterborough,http://opendatacommunities.org/id/unitary-authority/peterborough,Peterborough City Council,Adult Services & Communities - Adults,Day Opportunities / In House,Agency Staff,07/12/2016 00:00,30100077,1270.58,Revenue,Pulse,External Temporary Staff
Peterborough,http://opendatacommunities.org/id/unitary-authority/peterborough,Peterborough City Council,Children's & Safeguarding,Children's Social Care,Agency Staff,07/12/2016 00:00,30100503,1315.55,Revenue,Service Care Solutions Ltd,External Temporary Staff
Peterborough,http://opendatacommunities.org/id/unitary-authority/peterborough,Peterborough City Council,Children's & Safeguarding,Children's Social Care,Agency Staff,07/12/2016 00:00,30101434,4952.4,Revenue,Sanctuary Personnel Ltd,External Temporary Staff
Peterborough,http://opendatacommunities.org/id/unitary-authority/peterborough,Peterborough City Council,Business Management and Commercial Operations,Clare Lodge,Services,07/12/2016 00:00,30102274,1390,Revenue,Redacted Personal Information,Hired Services
Peterborough,http://opendatacommunities.org/id/unitary-authority/peterborough,Peterborough City Council,Director of Governance,Gov HOS,Services,07/12/2016 00:00,30102685,2473.5,Revenue,Wilkin Chapman,Legal Costs
Peterborough,http://opendatacommunities.org/id/unitary-authority/peterborough,Peterborough City Council,Energy,Environment Capital,Services,07/12/2016 00:00,30102863,19793,Revenue,Pinsent Masons,Legal Costs
Peterborough,http://opendatacommunities.org/id/unitary-authority/peterborough,Peterborough City Council,City Servs & Communications,"Markets, Tourism & Events",Rents,07/12/2016 00:00,30102971,1834.47,Revenue,Jones Lang LaSalle,Rent
Peterborough,http://opendatacommunities.org/id/unitary-authority/peterborough,Peterborough City Council,Corporate,Corporate,Non Revenue,07/12/2016 00:00,30103117,8578.42,Capital,Blakedown Sport & Play,Building And Site Works
Peterborough,http://opendatacommunities.org/id/unitary-authority/peterborough,Peterborough City Council,Sustainable Growth Strategy,Housing & Strategic Planning,Services,07/12/2016 00:00,30103312,37616,Revenue,Pinsent Masons,Legal Costs
Peterborough,http://opendatacommunities.org/id/unitary-authority/peterborough,Peterborough City Council,Sustainable Growth Strategy,Housing & Strategic Planning,Services,07/12/2016 00:00,30103323,8850,Revenue,Pinsent Masons,Legal Costs
Peterborough,http://opendatacommunities.org/id/unitary-authority/peterborough,Peterborough City Council,Adult Services & Communities - Adults,Independent Sector Placements,Services,07/12/2016 00:00,30103799,522.8,Revenue,Maxey House Res Home,Residential Care
Peterborough,http://opendatacommunities.org/id/unitary-authority/peterborough,Peterborough City Council,Adult Services & Communities - Adults,Independent Sector Placements,Services,07/12/2016 00:00,30103800,1299.08,Revenue,Maxey House Res Home,Residential Care
Peterborough,http://opendatacommunities.org/id/unitary-authority/peterborough,Peterborough City Council,Adult Services & Communities - Adults,Independent Sector Placements,Services,07/12/2016 00:00,30103804,1250.4,Revenue,Maxey House Res Home,Residential Care
Peterborough,http://opendatacommunities.org/id/unitary-authority/peterborough,Peterborough City Council,Adult Services & Communities - Adults,Independent Sector Placements,Services,07/12/2016 00:00,30103808,1299.08,Revenue,Maxey House Res Home,Residential Care
Peterborough,http://opendatacommunities.org/id/unitary-authority/peterborough,Peterborough City Council,Adult Services & Communities - Adults,Independent Sector Placements,Services,07/12/2016 00:00,30103809,1279.56,Revenue,Maxey House Res Home,Residential Care
Peterborough,http://opendatacommunities.org/id/unitary-authority/peterborough,Peterborough City Council,Adult Services & Communities - Adults,Independent Sector Placements,Services,07/12/2016 00:00,30103811,1299.08,Revenue,Maxey House Res Home,Residential Care
Peterborough,http://opendatacommunities.org/id/unitary-authority/peterborough,Peterborough City Council,Adult Services & Communities - Adults,Independent Sector Placements,Services,07/12/2016 00:00,30103818,733.64,Revenue,Maxey House Res Home,Residential Care
Peterborough,http://opendatacommunities.org/id/unitary-authority/peterborough,Peterborough City Council,Adult Services & Communities - Adults,Independent Sector Placements,Services,07/12/2016 00:00,30103822,1123.68,Revenue,Maxey House Res Home,Residential Care
Peterborough,http://opendatacommunities.org/id/unitary-authority/peterborough,Peterborough City Council,Adult Services & Communities - Adults,Independent Sector Placements,Services,07/12/2016 00:00,30103825,1299.08,Revenue,Maxey House Res Home,Residential Care
Peterborough,http://opendatacommunities.org/id/unitary-authority/peterborough,Peterborough City Council,Adult Services & Communities - Adults,Independent Sector Placements,Services,07/12/2016 00:00,30103860,873.28,Revenue,Maxey House Res Home,Residential Care
Peterborough,http://opendatacommunities.org/id/unitary-authority/peterborough,Peterborough City Council,Adult Services & Communities - Adults,Independent Sector Placements,Services,07/12/2016 00:00,30103862,1053.44,Revenue,Maxey House Res Home,Residential Care
Peterborough,http://opendatacommunities.org/id/unitary-authority/peterborough,Peterborough City Council,Adult Services & Communities - Adults,Independent Sector Placements,Services,07/12/2016 00:00,30103875,982.21,Revenue,Maxey House Res Home,Residential Care
Peterborough,http://opendatacommunities.org/id/unitary-authority/peterborough,Peterborough City Council,Adult Services & Communities - Adults,Independent Sector Placements,Services,07/12/2016 00:00,30103876,1676.24,Revenue,Maxey House Res Home,Residential Care
Peterborough,http://opendatacommunities.org/id/unitary-authority/peterborough,Peterborough City Council,Adult Services & Communities - Adults,Mental Health,Third Party Payments,07/12/2016 00:00,30104948,5733.75,Revenue,Norfolk & Suffolk NHS Foundation Trust,Third Party Payments - Contract
Peterborough,http://opendatacommunities.org/id/unitary-authority/peterborough,Peterborough City Council,Adult Services & Communities - Adults,Independent Sector Placements,Services,07/12/2016 00:00,30104967,1171.16,Revenue,Sanctuary Care Limited,Residential Care
Peterborough,http://opendatacommunities.org/id/unitary-authority/peterborough,Peterborough City Council,Peterborough Highway Services,Transport & Infrastructure Commissioning,Services,07/12/2016 00:00,30105202,917.94,Revenue,Unicard Ltd,Computer Software
Peterborough,http://opendatacommunities.org/id/unitary-authority/peterborough,Peterborough City Council,Business Management and Commercial Operations,Clare Lodge,Contract Hire and Operating Leases,07/12/2016 00:00,30105278,2770.56,Revenue,Lex Autolease Ltd,Leasing Charges
Peterborough,http://opendatacommunities.org/id/unitary-authority/peterborough,Peterborough City Council,Financial Services,Insurance,Premises Insurances,07/12/2016 00:00,30105305,1372.53,Revenue,Zurich Insurance Company,Insurance Premiums
Peterborough,http://opendatacommunities.org/id/unitary-authority/peterborough,Peterborough City Council,Energy,Environment Capital,Services,07/12/2016 00:00,30105316,12710.52,Revenue,Pinsent Masons,Legal Costs
Peterborough,http://opendatacommunities.org/id/unitary-authority/peterborough,Peterborough City Council,Energy,Environment Capital,Services,07/12/2016 00:00,30105317,13000,Revenue,Pinsent Masons,Legal Costs
Peterborough,http://opendatacommunities.org/id/unitary-authority/peterborough,Peterborough City Council,Corporate,Corporate,Non Revenue,07/12/2016 00:00,30105318,2145,Capital,Pinsent Masons,Legal Costs
Peterborough,http://opendatacommunities.org/id/unitary-authority/peterborough,Peterborough City Council,Adults and Communities - Communities,Housing and Health,Customer and client receipts - Fees & Charges,07/12/2016 00:00,30105335,750,Revenue,Redacted Personal Information,Refunds
Peterborough,http://opendatacommunities.org/id/unitary-authority/peterborough,Peterborough City Council,Corporate,Corporate,Non Revenue,07/12/2016 00:00,30105344,890,Balance Sheet,Redacted Personal Information,Insurance Claims
Peterborough,http://opendatacommunities.org/id/unitary-authority/peterborough,Peterborough City Council,Adult Services & Communities - Adults,Finance,Agency Staff,07/12/2016 00:00,30105562,12650,Revenue,Patten Resource Management,External Temporary Staff
Peterborough,http://opendatacommunities.org/id/unitary-authority/peterborough,Peterborough City Council,Amey Peterborough & Waste Management,Waste & Operational Svs Mgmt,"Tools, Equipment, Furniture & Materials",07/12/2016 00:00,30105568,12261.34,Revenue,J C Decaux UK,Equipment Hire
Peterborough,http://opendatacommunities.org/id/unitary-authority/peterborough,Peterborough City Council,Adults and Communities - Communities,Housing and Health,Services,07/12/2016 00:00,30105583,1283.5,Revenue,Fletton Electrics Ltd,Contractors
Peterborough,http://opendatacommunities.org/id/unitary-authority/peterborough,Peterborough City Council,Corporate,Corporate,Non Revenue,07/12/2016 00:00,30105607,3816,Capital,Allworks Home Improvements Ltd,Grant Payment
Peterborough,http://opendatacommunities.org/id/unitary-authority/peterborough,Peterborough City Council,Corporate,Corporate,Non Revenue,07/12/2016 00:00,30105609,2565.2,Capital,Bloom & Wake Ltd,Grant Payment
Peterborough,http://opendatacommunities.org/id/unitary-authority/peterborough,Peterborough City Council,Corporate,Corporate,Non Revenue,07/12/2016 00:00,30105611,3344,Capital,Casbon Building Services,Grant Payment
Peterborough,http://opendatacommunities.org/id/unitary-authority/peterborough,Peterborough City Council,Corporate,Corporate,Non Revenue,07/12/2016 00:00,30105612,4366,Capital,Allworks Home Improvements Ltd,Grant Payment
Peterborough,http://opendatacommunities.org/id/unitary-authority/peterborough,Peterborough City Council,Corporate,Corporate,Non Revenue,07/12/2016 00:00,30105614,1889.8,Capital,A W Morley T/A Morley Building Services,Grant Payment
Peterborough,http://opendatacommunities.org/id/unitary-authority/peterborough,Peterborough City Council,Public Health,Business Management and Commercial Operations - Public Health,Third Party Payments,07/12/2016 00:00,30105634,58335.33,Revenue,Cambs & P'boro NHS Foundation Trust,Third Party Payments - Contract
Peterborough,http://opendatacommunities.org/id/unitary-authority/peterborough,Peterborough City Council,Adult Services & Communities - Adults,Independent Sector Placements,Services,07/12/2016 00:00,30105654,6400,Revenue,Community Care Solutions Ltd,Residential Care
Peterborough,http://opendatacommunities.org/id/unitary-authority/peterborough,Peterborough City Council,Adult Services & Communities - Adults,Independent Sector Placements,Services,07/12/2016 00:00,30105655,1890,Revenue,Midco Care Limited,Home Care
Peterborough,http://opendatacommunities.org/id/unitary-authority/peterborough,Peterborough City Council,Adult Services & Communities - Adults,Independent Sector Placements,Services,07/12/2016 00:00,30105658,1695.02,Revenue,Axiom Housing Association,Home Care
Peterborough,http://opendatacommunities.org/id/unitary-authority/peterborough,Peterborough City Council,Adult Services & Communities - Adults,Independent Sector Placements,Services,07/12/2016 00:00,30105665,1740,Revenue,Midco Care Limited,Home Care
Peterborough,http://opendatacommunities.org/id/unitary-authority/peterborough,Peterborough City Council,Adults and Communities - Communities,Service Director - Adults & Communities,Services,07/12/2016 00:00,30105670,625,Revenue,Record Property Solutions,Financial Assistance
Peterborough,http://opendatacommunities.org/id/unitary-authority/peterborough,Peterborough City Council,Adults and Communities - Communities,Service Director - Adults & Communities,Services,07/12/2016 00:00,30105674,575,Revenue,Record Property Solutions,Financial Assistance
Peterborough,http://opendatacommunities.org/id/unitary-authority/peterborough,Peterborough City Council,Adults and Communities - Communities,Service Director - Adults & Communities,Services,07/12/2016 00:00,30105679,625,Revenue,Rightroom Lettings Ltd,Financial Assistance
Peterborough,http://opendatacommunities.org/id/unitary-authority/peterborough,Peterborough City Council,Adult Services & Communities - Adults,Independent Sector Placements,Services,07/12/2016 00:00,30105688,3334.5,Revenue,Cambridgeshirehomecare,Home Care
Peterborough,http://opendatacommunities.org/id/unitary-authority/peterborough,Peterborough City Council,Adult Services & Communities - Adults,Learning Disability,Third Party Payments,07/12/2016 00:00,30105691,7000,Revenue,P'Boro Council For Voluntary Srvs (PCVS),Third Party Payments - Contract
Peterborough,http://opendatacommunities.org/id/unitary-authority/peterborough,Peterborough City Council,Adult Services & Communities - Adults,Block Contracts,Third Party Payments,07/12/2016 00:00,30105695,1390.71,Revenue,Park Vista Care Home,Third Party Payments - Contract
Peterborough,http://opendatacommunities.org/id/unitary-authority/peterborough,Peterborough City Council,Adult Services & Communities - Adults,Block Contracts,Third Party Payments,07/12/2016 00:00,30105697,1390.71,Revenue,Park Vista Care Home,Third Party Payments - Contract
Peterborough,http://opendatacommunities.org/id/unitary-authority/peterborough,Peterborough City Council,Amey Peterborough & Waste Management,Waste & Operational Svs Mgmt,Third Party Payments,07/12/2016 00:00,30105699,271301.69,Revenue,Enterprise Managed Services Limited,Third Party Payments - Contract
Peterborough,http://opendatacommunities.org/id/unitary-authority/peterborough,Peterborough City Council,Adult Services & Communities - Adults,Independent Sector Placements,Services,07/12/2016 00:00,30105708,3400,Revenue,EXCELCARE GLENNFIELD HOUSE,Residential Care
Peterborough,http://opendatacommunities.org/id/unitary-authority/peterborough,Peterborough City Council,Adult Services & Communities - Adults,Independent Sector Placements,Services,07/12/2016 00:00,30105709,3400,Revenue,EXCELCARE GLENNFIELD HOUSE,Residential Care
Peterborough,http://opendatacommunities.org/id/unitary-authority/peterborough,Peterborough City Council,Adult Services & Communities - Adults,Independent Sector Placements,Services,07/12/2016 00:00,30105717,2434.42,Revenue,ABOUT ME CARE AND SUPPORT LTD,Home Care
Peterborough,http://opendatacommunities.org/id/unitary-authority/peterborough,Peterborough City Council,Children's & Safeguarding,Access to Resources & Specialist Commissioning,Services,07/12/2016 00:00,30105754,1607.14,Revenue,Sixteen Plus Limited,Boarding Out Allowances
Peterborough,http://opendatacommunities.org/id/unitary-authority/peterborough,Peterborough City Council,Children's & Safeguarding,Access to Resources & Specialist Commissioning,Services,07/12/2016 00:00,30105757,10350,Revenue,Sixteen Plus Limited,Boarding Out Allowances
Peterborough,http://opendatacommunities.org/id/unitary-authority/peterborough,Peterborough City Council,Children's & Safeguarding,Child Health,Services,07/12/2016 00:00,30105831,2193.75,Revenue,Circles Network,Purchased Social Care Services
Peterborough,http://opendatacommunities.org/id/unitary-authority/peterborough,Peterborough City Council,Corporate Items,Corporate Services,Employers Superannuation Contributions,07/12/2016 00:00,30105844,207984.86,Revenue,Cambridgeshire County Council,Pensions
Peterborough,http://opendatacommunities.org/id/unitary-authority/peterborough,Peterborough City Council,Children's & Safeguarding,Access to Resources & Specialist Commissioning,Services,07/12/2016 00:00,30105862,994.17,Revenue,Stamford Endowed Schools,Out Of Area Education Costs
Peterborough,http://opendatacommunities.org/id/unitary-authority/peterborough,Peterborough City Council,Corporate,Corporate,Non Revenue,07/12/2016 00:00,30105864,2642.85,Capital,P F S Builders & Contractors,Grant Payment
Peterborough,http://opendatacommunities.org/id/unitary-authority/peterborough,Peterborough City Council,Adult Services & Communities - Adults,"Revenues & Payments, Assessors & Care Placement Teams",Services,07/12/2016 00:00,30105882,600,Revenue,Assoc. of Public Authority Deputies,Subscriptions
Peterborough,http://opendatacommunities.org/id/unitary-authority/peterborough,Peterborough City Council,Business Management and Commercial Operations,Clare Lodge,Interview & Training Expenses,07/12/2016 00:00,30105898,943.15,Revenue,Calm Training Services Ltd,Training
Peterborough,http://opendatacommunities.org/id/unitary-authority/peterborough,Peterborough City Council,Amey Peterborough & Waste Management,Waste Management,Services,07/12/2016 00:00,30105899,5328.5,Revenue,Cambridgeshire County Council,Subscriptions
Peterborough,http://opendatacommunities.org/id/unitary-authority/peterborough,Peterborough City Council,Children's & Safeguarding,Access to Resources & Specialist Commissioning,Services,07/12/2016 00:00,30105908,5370,Revenue,Positive Steps (Care Services) Ltd,Boarding Out Allowances
Peterborough,http://opendatacommunities.org/id/unitary-authority/peterborough,Peterborough City Council,Education,School Improvement,Services,07/12/2016 00:00,30106024,2280,Revenue,Families First Peterborough,Education Expenses
Peterborough,http://opendatacommunities.org/id/unitary-authority/peterborough,Peterborough City Council,Children's & Safeguarding,Access to Resources & Specialist Commissioning,Services,07/12/2016 00:00,30106039,47910.84,Revenue,Cambian Autism Services Ltd,Boarding Out Allowances
Peterborough,http://opendatacommunities.org/id/unitary-authority/peterborough,Peterborough City Council,Education,Special Educational Needs / Inclusion,Services,07/12/2016 00:00,30106086,1500,Revenue,Families First Peterborough,Education Expenses
Peterborough,http://opendatacommunities.org/id/unitary-authority/peterborough,Peterborough City Council,Education,Special Educational Needs / Inclusion,Services,07/12/2016 00:00,30106090,3630,Revenue,Families First Peterborough,Education Expenses
Peterborough,http://opendatacommunities.org/id/unitary-authority/peterborough,Peterborough City Council,Development and Construction,Building Control,Services,07/12/2016 00:00,30106099,892.5,Revenue,Ruck Consultancy Limited,Contract Services
Peterborough,http://opendatacommunities.org/id/unitary-authority/peterborough,Peterborough City Council,Adults and Communities - Communities,Community Safety,Services,07/12/2016 00:00,30106136,996.6,Revenue,Sodexo Ltd,Administration Expenses
Peterborough,http://opendatacommunities.org/id/unitary-authority/peterborough,Peterborough City Council,Adult Services & Communities - Adults,Finance,Services,07/12/2016 00:00,30106140,35000,Revenue,MyCognition Ltd,Licences
Peterborough,http://opendatacommunities.org/id/unitary-authority/peterborough,Peterborough City Council,Director of Governance,Gov HOS,Interview & Training Expenses,07/12/2016 00:00,30106195,1166.66,Revenue,CILEx Law School,Training
Peterborough,http://opendatacommunities.org/id/unitary-authority/peterborough,Peterborough City Council,Education,Home to School Transport,Contract Hire and Operating Leases,07/12/2016 00:00,8000077913,736.67,Revenue,Redacted Personal Information,Hired Transport
Peterborough,http://opendatacommunities.org/id/unitary-authority/peterborough,Peterborough City Council,Peterborough Highway Services,Transport & Infrastructure Commissioning,Energy Costs,09/12/2016 00:00,30054327,-1547.11,Revenue,British Gas Business,Electricity
Peterborough,http://opendatacommunities.org/id/unitary-authority/peterborough,Peterborough City Council,Vivacity/Cultural Services,Cultural Services,Energy Costs,09/12/2016 00:00,30099478,-1568.27,Revenue,British Gas Business,Electricity
Peterborough,http://opendatacommunities.org/id/unitary-authority/peterborough,Peterborough City Council,Vivacity/Cultural Services,Cultural Services,Energy Costs,09/12/2016 00:00,30099478,-1568.27,Revenue,British Gas Business,Electricity
Peterborough,http://opendatacommunities.org/id/unitary-authority/peterborough,Peterborough City Council,Corporate,Corporate,Non Revenue,09/12/2016 00:00,30100207,56438.92,Capital,Enterprise Managed Services Limited,Building And Site Works
Peterborough,http://opendatacommunities.org/id/unitary-authority/peterborough,Peterborough City Council,Children's & Safeguarding,Access to Resources & Specialist Commissioning,Services,09/12/2016 00:00,30100779,5785.85,Revenue,Options Fostering,Boarding Out Allowances
Peterborough,http://opendatacommunities.org/id/unitary-authority/peterborough,Peterborough City Council,City Servs & Communications,"Markets, Tourism & Events",Energy Costs,09/12/2016 00:00,30101217,-1977.65,Revenue,British Gas Business,Electricity
Peterborough,http://opendatacommunities.org/id/unitary-authority/peterborough,Peterborough City Council,Education,Pupil Referral Unit,Agency Staff,09/12/2016 00:00,30103762,585,Revenue,Vision for Education Ltd,Supply Teachers
Peterborough,http://opendatacommunities.org/id/unitary-authority/peterborough,Peterborough City Council,Performance & Information,Performance & Information,Agency Staff,09/12/2016 00:00,30103966,561.38,Revenue,Reed Specialist Recruitment,External Temporary Staff
Peterborough,http://opendatacommunities.org/id/unitary-authority/peterborough,Peterborough City Council,Vivacity/Cultural Services,Cultural Services,Repair & Maintenance of Buildings,09/12/2016 00:00,30104183,525,Revenue,Jones Lang LaSalle,Service Charges - Premises
Peterborough,http://opendatacommunities.org/id/unitary-authority/peterborough,Peterborough City Council,Westcombe Engineering,Westcombe Engineering,Energy Costs,09/12/2016 00:00,30105253,1018.62,Revenue,British Gas Business,Electricity
Peterborough,http://opendatacommunities.org/id/unitary-authority/peterborough,Peterborough City Council,Amey Peterborough & Waste Management,Waste & Operational Svs Mgmt,Energy Costs,09/12/2016 00:00,30105254,835.25,Revenue,British Gas Business,Electricity
Peterborough,http://opendatacommunities.org/id/unitary-authority/peterborough,Peterborough City Council,Vivacity/Cultural Services,Cultural Services,Energy Costs,09/12/2016 00:00,30105254,540.63,Revenue,British Gas Business,Electricity
Peterborough,http://opendatacommunities.org/id/unitary-authority/peterborough,Peterborough City Council,Vivacity/Cultural Services,Cultural Services,Energy Costs,09/12/2016 00:00,30105254,2119.76,Revenue,British Gas Business,Electricity
Peterborough,http://opendatacommunities.org/id/unitary-authority/peterborough,Peterborough City Council,Amey Peterborough & Waste Management,Waste & Operational Svs Mgmt,Energy Costs,09/12/2016 00:00,30105254,833.56,Revenue,British Gas Business,Electricity
Peterborough,http://opendatacommunities.org/id/unitary-authority/peterborough,Peterborough City Council,City Servs & Communications,"Markets, Tourism & Events",Energy Costs,09/12/2016 00:00,30105254,512.48,Revenue,British Gas Business,Electricity
Peterborough,http://opendatacommunities.org/id/unitary-authority/peterborough,Peterborough City Council,City Servs & Communications,"Markets, Tourism & Events",Energy Costs,09/12/2016 00:00,30105255,566.16,Revenue,British Gas Business,Electricity
Peterborough,http://opendatacommunities.org/id/unitary-authority/peterborough,Peterborough City Council,Corporate Property,Office Accomodation,Energy Costs,09/12/2016 00:00,30105255,588.04,Revenue,British Gas Business,Electricity
Peterborough,http://opendatacommunities.org/id/unitary-authority/peterborough,Peterborough City Council,Corporate Property,Office Accomodation,Energy Costs,09/12/2016 00:00,30105255,749.26,Revenue,British Gas Business,Electricity
Peterborough,http://opendatacommunities.org/id/unitary-authority/peterborough,Peterborough City Council,Corporate Property,Office Accomodation,Energy Costs,09/12/2016 00:00,30105255,1873.85,Revenue,British Gas Business,Electricity
Peterborough,http://opendatacommunities.org/id/unitary-authority/peterborough,Peterborough City Council,Corporate Property,Office Accomodation,Energy Costs,09/12/2016 00:00,30105255,864.15,Revenue,British Gas Business,Electricity
Peterborough,http://opendatacommunities.org/id/unitary-authority/peterborough,Peterborough City Council,Corporate Property,Office Accomodation,Energy Costs,09/12/2016 00:00,30105255,1655.32,Revenue,British Gas Business,Electricity
Peterborough,http://opendatacommunities.org/id/unitary-authority/peterborough,Peterborough City Council,Westcombe Engineering,Westcombe Engineering,Energy Costs,09/12/2016 00:00,30105306,908.73,Revenue,Total Gas & Power Ltd,Gas
Peterborough,http://opendatacommunities.org/id/unitary-authority/peterborough,Peterborough City Council,City Servs & Communications,"Markets, Tourism & Events",Repair & Maintenance of Buildings,09/12/2016 00:00,30105357,1080,Revenue,The K A Wing Group Ltd,Premises Maintenance
Peterborough,http://opendatacommunities.org/id/unitary-authority/peterborough,Peterborough City Council,Development and Construction,Planning Compliance,Services,09/12/2016 00:00,30105632,2000,Revenue,Mr Reuben Taylor QC,Legal Costs
Peterborough,http://opendatacommunities.org/id/unitary-authority/peterborough,Peterborough City Council,City Servs & Communications,"Markets, Tourism & Events",Services,09/12/2016 00:00,30105652,8185.51,Revenue,National Express Ltd,Contractors
Peterborough,http://opendatacommunities.org/id/unitary-authority/peterborough,Peterborough City Council,Corporate Property,Office Accomodation,Rents,09/12/2016 00:00,30105772,41412.5,Revenue,Alps Group Ltd,Rent
Peterborough,http://opendatacommunities.org/id/unitary-authority/peterborough,Peterborough City Council,Business Management and Commercial Operations,Early Years & Quality Improvement,Services,09/12/2016 00:00,30105841,810.04,Revenue,Redacted Personal Information,Grant Payment
Peterborough,http://opendatacommunities.org/id/unitary-authority/peterborough,Peterborough City Council,Business Management and Commercial Operations,Early Years & Quality Improvement,Services,09/12/2016 00:00,30105881,530.25,Revenue,Redacted Personal Information,Grant Payment
Peterborough,http://opendatacommunities.org/id/unitary-authority/peterborough,Peterborough City Council,Adults and Communities - Communities,Housing and Health,Services,09/12/2016 00:00,30106023,507.5,Revenue,Eastfield Guesthouse,Homelessness Bed & Breakfast Costs
Peterborough,http://opendatacommunities.org/id/unitary-authority/peterborough,Peterborough City Council,Adults and Communities - Communities,Housing and Health,Services,09/12/2016 00:00,30106025,507.5,Revenue,Eastfield Guesthouse,Homelessness Bed & Breakfast Costs
Peterborough,http://opendatacommunities.org/id/unitary-authority/peterborough,Peterborough City Council,Adults and Communities - Communities,Housing and Health,Services,09/12/2016 00:00,30106034,507.5,Revenue,Eastfield Guesthouse,Homelessness Bed & Breakfast Costs
Peterborough,http://opendatacommunities.org/id/unitary-authority/peterborough,Peterborough City Council,Adults and Communities - Communities,Housing and Health,Services,09/12/2016 00:00,30106035,507.5,Revenue,Eastfield Guesthouse,Homelessness Bed & Breakfast Costs
Peterborough,http://opendatacommunities.org/id/unitary-authority/peterborough,Peterborough City Council,Children's & Safeguarding,Access to Resources & Specialist Commissioning,Services,09/12/2016 00:00,30106038,47910.84,Revenue,Cambian Autism Services Ltd,Boarding Out Allowances
Peterborough,http://opendatacommunities.org/id/unitary-authority/peterborough,Peterborough City Council,Education,Service Director Education,Employers Superannuation Contributions,09/12/2016 00:00,30106078,26123.02,Revenue,Teachers Pensions,Pensions
Peterborough,http://opendatacommunities.org/id/unitary-authority/peterborough,Peterborough City Council,HR,HR,Services,09/12/2016 00:00,30106123,1628,Revenue,Disclosure and Barring Service,Criminal Record Check
Peterborough,http://opendatacommunities.org/id/unitary-authority/peterborough,Peterborough City Council,Corporate,Corporate,Non Revenue,09/12/2016 00:00,30106196,161654.85,Capital,Garfield Builders Ltd,Building And Site Works
Peterborough,http://opendatacommunities.org/id/unitary-authority/peterborough,Peterborough City Council,Adult Services & Communities - Adults,Block Contracts,Third Party Payments,09/12/2016 00:00,30106222,5573.96,Revenue,Axiom Housing Association,Third Party Payments - Contract
Peterborough,http://opendatacommunities.org/id/unitary-authority/peterborough,Peterborough City Council,Adult Services & Communities - Adults,Block Contracts,Third Party Payments,09/12/2016 00:00,30106225,1967.28,Revenue,Axiom Housing Association,Third Party Payments - Contract
Peterborough,http://opendatacommunities.org/id/unitary-authority/peterborough,Peterborough City Council,Adult Services & Communities - Adults,Block Contracts,Third Party Payments,09/12/2016 00:00,30106228,1967.28,Revenue,Axiom Housing Association,Third Party Payments - Contract
Peterborough,http://opendatacommunities.org/id/unitary-authority/peterborough,Peterborough City Council,Public Health,Housing and Health - Public Health,Third Party Payments,09/12/2016 00:00,30106235,5250,Revenue,Salaam Radio Ltd,Third Party Payments - Contract
Peterborough,http://opendatacommunities.org/id/unitary-authority/peterborough,Peterborough City Council,Education,Special Educational Needs / Inclusion,Services,09/12/2016 00:00,30106238,647.74,Revenue,Children's Therapy Solutions Ltd,Occupational Health
Peterborough,http://opendatacommunities.org/id/unitary-authority/peterborough,Peterborough City Council,Business Management and Commercial Operations,Clare Lodge,Repair & Maintenance of Buildings,09/12/2016 00:00,30106264,1060,Revenue,The K A Wing Group Ltd,Premises Maintenance
Peterborough,http://opendatacommunities.org/id/unitary-authority/peterborough,Peterborough City Council,Corporate Property,Office Accomodation,Repair & Maintenance of Buildings,09/12/2016 00:00,30106280,13811.44,Revenue,Alps Group Ltd,Service Charges - Premises
Peterborough,http://opendatacommunities.org/id/unitary-authority/peterborough,Peterborough City Council,Adult Services & Communities - Adults,OP/PD/SI,Third Party Payments,09/12/2016 00:00,30106338,46527,Revenue,AGE UK,Third Party Payments - Contract
Peterborough,http://opendatacommunities.org/id/unitary-authority/peterborough,Peterborough City Council,Education,School Improvement,Services,09/12/2016 00:00,30106351,1080,Revenue,Families First Peterborough,Education Expenses
Peterborough,http://opendatacommunities.org/id/unitary-authority/peterborough,Peterborough City Council,City Servs & Communications,Marketing & Communications,Services,09/12/2016 00:00,30106421,955,Revenue,G P Print,Printing
Peterborough,http://opendatacommunities.org/id/unitary-authority/peterborough,Peterborough City Council,Children's & Safeguarding,Children's Social Care,Services,09/12/2016 00:00,30106442,2079.58,Revenue,The Cresset (Peterborough) Ltd,Programmes
Peterborough,http://opendatacommunities.org/id/unitary-authority/peterborough,Peterborough City Council,Adult Services & Communities - Adults,Block Contracts,Third Party Payments,09/12/2016 00:00,30106463,5573.96,Revenue,Axiom Housing Association,Third Party Payments - Contract
Peterborough,http://opendatacommunities.org/id/unitary-authority/peterborough,Peterborough City Council,Children's & Safeguarding,Access to Resources & Specialist Commissioning,Services,09/12/2016 00:00,30106505,3814.2,Revenue,Byrne House Ltd,Boarding Out Allowances
Peterborough,http://opendatacommunities.org/id/unitary-authority/peterborough,Peterborough City Council,Children's & Safeguarding,Access to Resources & Specialist Commissioning,Services,09/12/2016 00:00,30106507,3814.2,Revenue,Byrne House Ltd,Boarding Out Allowances
Peterborough,http://opendatacommunities.org/id/unitary-authority/peterborough,Peterborough City Council,Corporate,Corporate,Non Revenue,09/12/2016 00:00,30106513,6349.31,Balance Sheet,The Prudential Assurance Company Ltd,Pensions
Peterborough,http://opendatacommunities.org/id/unitary-authority/peterborough,Peterborough City Council,Corporate,Corporate,Non Revenue,09/12/2016 00:00,30106516,2540.42,Balance Sheet,The Prudential Assurance Company Ltd,Pensions
Peterborough,http://opendatacommunities.org/id/unitary-authority/peterborough,Peterborough City Council,Business Management and Commercial Operations,Commissioning,Energy Costs,09/12/2016 00:00,30106531,1585.37,Revenue,British Gas Business,Electricity
Peterborough,http://opendatacommunities.org/id/unitary-authority/peterborough,Peterborough City Council,Vivacity/Cultural Services,Cultural Services,Energy Costs,09/12/2016 00:00,30106531,1547.38,Revenue,British Gas Business,Electricity
Peterborough,http://opendatacommunities.org/id/unitary-authority/peterborough,Peterborough City Council,Westcombe Engineering,Westcombe Engineering,Energy Costs,09/12/2016 00:00,30106531,945.25,Revenue,British Gas Business,Electricity
Peterborough,http://opendatacommunities.org/id/unitary-authority/peterborough,Peterborough City Council,Westcombe Engineering,Westcombe Engineering,Energy Costs,09/12/2016 00:00,30106531,541.22,Revenue,British Gas Business,Electricity
Peterborough,http://opendatacommunities.org/id/unitary-authority/peterborough,Peterborough City Council,Education,Pupil Referral Unit,Energy Costs,09/12/2016 00:00,30106531,516.99,Revenue,British Gas Business,Electricity
Peterborough,http://opendatacommunities.org/id/unitary-authority/peterborough,Peterborough City Council,Adults and Communities - Communities,Housing and Health,Services,09/12/2016 00:00,30106585,595,Revenue,Connells Estate Agents,Financial Assistance
Peterborough,http://opendatacommunities.org/id/unitary-authority/peterborough,Peterborough City Council,Business Management and Commercial Operations,Business Management and Commercial Operations,Contract Hire and Operating Leases,09/12/2016 00:00,8000078005,581.62,Revenue,Redacted Personal Information,Hired Transport
Peterborough,http://opendatacommunities.org/id/unitary-authority/peterborough,Peterborough City Council,Business Management and Commercial Operations,Business Management and Commercial Operations,Contract Hire and Operating Leases,09/12/2016 00:00,8000078006,632.25,Revenue,Redacted Personal Information,Hired Transport
Peterborough,http://opendatacommunities.org/id/unitary-authority/peterborough,Peterborough City Council,Business Management and Commercial Operations,Business Management and Commercial Operations,Contract Hire and Operating Leases,09/12/2016 00:00,8000078008,1451.99,Revenue,Redacted Personal Information,Hired Transport
Peterborough,http://opendatacommunities.org/id/unitary-authority/peterborough,Peterborough City Council,Business Management and Commercial Operations,Business Management and Commercial Operations,Contract Hire and Operating Leases,09/12/2016 00:00,8000078009,1548,Revenue,Redacted Personal Information,Hired Transport
Peterborough,http://opendatacommunities.org/id/unitary-authority/peterborough,Peterborough City Council,Business Management and Commercial Operations,Business Management and Commercial Operations,Contract Hire and Operating Leases,09/12/2016 00:00,8000078013,1434.12,Revenue,Redacted Personal Information,Hired Transport
Peterborough,http://opendatacommunities.org/id/unitary-authority/peterborough,Peterborough City Council,Business Management and Commercial Operations,Business Management and Commercial Operations,Contract Hire and Operating Leases,09/12/2016 00:00,8000078014,974.25,Revenue,Redacted Personal Information,Hired Transport
Peterborough,http://opendatacommunities.org/id/unitary-authority/peterborough,Peterborough City Council,Education,Home to School Transport,Contract Hire and Operating Leases,09/12/2016 00:00,8000078015,918.37,Revenue,Redacted Personal Information,Hired Transport
Peterborough,http://opendatacommunities.org/id/unitary-authority/peterborough,Peterborough City Council,Education,School Improvement,Services,12/12/2016 00:00,30103096,1071.2,Revenue,Coates Primary School,Grant Payment
Peterborough,http://opendatacommunities.org/id/unitary-authority/peterborough,Peterborough City Council,Children's & Safeguarding,Children's Social Care,Agency Staff,12/12/2016 00:00,30103173,1406,Revenue,NonStop Recruitment Ltd,External Temporary Staff
Peterborough,http://opendatacommunities.org/id/unitary-authority/peterborough,Peterborough City Council,Corporate Property,Commercial Propety,Repair & Maintenance of Buildings,12/12/2016 00:00,30103175,541.5,Revenue,Tesam Distribution Ltd,Other Occupancy Costs
Peterborough,http://opendatacommunities.org/id/unitary-authority/peterborough,Peterborough City Council,Sustainable Growth Strategy,Housing & Strategic Planning,Services,12/12/2016 00:00,30103177,7200,Revenue,Limehouse Software Ltd,Computer Software
Peterborough,http://opendatacommunities.org/id/unitary-authority/peterborough,Peterborough City Council,Children's & Safeguarding,Access to Resources & Specialist Commissioning,Services,12/12/2016 00:00,30103190,3372.47,Revenue,Foster Care Associates Ltd FCA,Boarding Out Allowances
Peterborough,http://opendatacommunities.org/id/unitary-authority/peterborough,Peterborough City Council,Children's & Safeguarding,Access to Resources & Specialist Commissioning,Services,12/12/2016 00:00,30103191,3372.47,Revenue,Foster Care Associates Ltd FCA,Boarding Out Allowances
Peterborough,http://opendatacommunities.org/id/unitary-authority/peterborough,Peterborough City Council,Children's & Safeguarding,Access to Resources & Specialist Commissioning,Services,12/12/2016 00:00,30103192,4196.61,Revenue,Foster Care Associates Ltd FCA,Boarding Out Allowances
Peterborough,http://opendatacommunities.org/id/unitary-authority/peterborough,Peterborough City Council,Children's & Safeguarding,Access to Resources & Specialist Commissioning,Services,12/12/2016 00:00,30103193,3441.3,Revenue,Foster Care Associates Ltd FCA,Boarding Out Allowances
Peterborough,http://opendatacommunities.org/id/unitary-authority/peterborough,Peterborough City Council,Children's & Safeguarding,Access to Resources & Specialist Commissioning,Services,12/12/2016 00:00,30103194,3337.77,Revenue,Foster Care Associates Ltd FCA,Boarding Out Allowances
Peterborough,http://opendatacommunities.org/id/unitary-authority/peterborough,Peterborough City Council,Children's & Safeguarding,Access to Resources & Specialist Commissioning,Services,12/12/2016 00:00,30103195,3964.2,Revenue,Foster Care Associates Ltd FCA,Boarding Out Allowances
Peterborough,http://opendatacommunities.org/id/unitary-authority/peterborough,Peterborough City Council,Children's & Safeguarding,Children's Social Care,Agency Staff,12/12/2016 00:00,30103202,1406,Revenue,SWP Consulting,External Temporary Staff
Peterborough,http://opendatacommunities.org/id/unitary-authority/peterborough,Peterborough City Council,Children's & Safeguarding,Children's Social Care,Agency Staff,12/12/2016 00:00,30103205,1406,Revenue,SWP Consulting,External Temporary Staff
Peterborough,http://opendatacommunities.org/id/unitary-authority/peterborough,Peterborough City Council,Children's & Safeguarding,Children's Social Care,Agency Staff,12/12/2016 00:00,30103256,1406,Revenue,NonStop Recruitment Ltd,External Temporary Staff
Peterborough,http://opendatacommunities.org/id/unitary-authority/peterborough,Peterborough City Council,Peterborough Highway Services,Network and Traffic Management,Services,12/12/2016 00:00,30103262,3662.23,Revenue,Dynniq UK Ltd,Contractors
Peterborough,http://opendatacommunities.org/id/unitary-authority/peterborough,Peterborough City Council,Peterborough Highway Services,Network and Traffic Management,Services,12/12/2016 00:00,30103264,3677,Revenue,Dynniq UK Ltd,Contractors
Peterborough,http://opendatacommunities.org/id/unitary-authority/peterborough,Peterborough City Council,Children's & Safeguarding,Access to Resources & Specialist Commissioning,Services,12/12/2016 00:00,30103279,2954.1,Revenue,Foster Care Associates Ltd FCA,Boarding Out Allowances
Peterborough,http://opendatacommunities.org/id/unitary-authority/peterborough,Peterborough City Council,Children's & Safeguarding,Access to Resources & Specialist Commissioning,Services,12/12/2016 00:00,30103282,3441,Revenue,Foster Care Associates Ltd FCA,Boarding Out Allowances
Peterborough,http://opendatacommunities.org/id/unitary-authority/peterborough,Peterborough City Council,Adults and Communities - Communities,Early Help ASC/CSC,Repair & Maintenance of Buildings,12/12/2016 00:00,30103290,4370,Revenue,Casbon Building Services,Premises Maintenance
Peterborough,http://opendatacommunities.org/id/unitary-authority/peterborough,Peterborough City Council,Children's & Safeguarding,Access to Resources & Specialist Commissioning,Services,12/12/2016 00:00,30103297,3441,Revenue,Foster Care Associates Ltd FCA,Boarding Out Allowances
Peterborough,http://opendatacommunities.org/id/unitary-authority/peterborough,Peterborough City Council,Children's & Safeguarding,Access to Resources & Specialist Commissioning,Services,12/12/2016 00:00,30103299,4568.7,Revenue,Foster Care Associates Ltd FCA,Boarding Out Allowances
Peterborough,http://opendatacommunities.org/id/unitary-authority/peterborough,Peterborough City Council,Children's & Safeguarding,Access to Resources & Specialist Commissioning,Services,12/12/2016 00:00,30103300,4277.4,Revenue,Foster Care Associates Ltd FCA,Boarding Out Allowances
Peterborough,http://opendatacommunities.org/id/unitary-authority/peterborough,Peterborough City Council,Children's & Safeguarding,Access to Resources & Specialist Commissioning,Services,12/12/2016 00:00,30103301,5565,Revenue,Foster Care Associates Ltd FCA,Boarding Out Allowances
Peterborough,http://opendatacommunities.org/id/unitary-authority/peterborough,Peterborough City Council,Children's & Safeguarding,Access to Resources & Specialist Commissioning,Services,12/12/2016 00:00,30103303,771.5,Revenue,Foster Care Associates Ltd FCA,Boarding Out Allowances
Peterborough,http://opendatacommunities.org/id/unitary-authority/peterborough,Peterborough City Council,Adults and Communities - Communities,Community Safety,Services,12/12/2016 00:00,30103304,1000,Revenue,Cambridgeshire Constabulary,Road Safety
Peterborough,http://opendatacommunities.org/id/unitary-authority/peterborough,Peterborough City Council,Children's & Safeguarding,Access to Resources & Specialist Commissioning,Services,12/12/2016 00:00,30103319,2954.1,Revenue,Foster Care Associates Ltd FCA,Boarding Out Allowances
Peterborough,http://opendatacommunities.org/id/unitary-authority/peterborough,Peterborough City Council,Children's & Safeguarding,Access to Resources & Specialist Commissioning,Services,12/12/2016 00:00,30103324,3964.2,Revenue,Foster Care Associates Ltd FCA,Boarding Out Allowances
Peterborough,http://opendatacommunities.org/id/unitary-authority/peterborough,Peterborough City Council,Children's & Safeguarding,Access to Resources & Specialist Commissioning,Services,12/12/2016 00:00,30103325,3441.3,Revenue,Foster Care Associates Ltd FCA,Boarding Out Allowances
Peterborough,http://opendatacommunities.org/id/unitary-authority/peterborough,Peterborough City Council,Energy,Environment Capital,Services,12/12/2016 00:00,30103350,27152.65,Revenue,Pinsent Masons,Legal Costs
Peterborough,http://opendatacommunities.org/id/unitary-authority/peterborough,Peterborough City Council,Corporate,Corporate,Non Revenue,12/12/2016 00:00,30103355,2062.5,Capital,Pinsent Masons,Legal Costs
Peterborough,http://opendatacommunities.org/id/unitary-authority/peterborough,Peterborough City Council,Children's & Safeguarding,Access to Resources & Specialist Commissioning,Services,12/12/2016 00:00,30103379,3441.3,Revenue,Foster Care Associates Ltd FCA,Boarding Out Allowances
Peterborough,http://opendatacommunities.org/id/unitary-authority/peterborough,Peterborough City Council,Children's & Safeguarding,Access to Resources & Specialist Commissioning,Services,12/12/2016 00:00,30103381,2865.48,Revenue,Foster Care Associates Ltd FCA,Boarding Out Allowances
Peterborough,http://opendatacommunities.org/id/unitary-authority/peterborough,Peterborough City Council,Adults and Communities - Communities,Early Help ASC/CSC,Interview & Training Expenses,12/12/2016 00:00,30103495,8035,Revenue,The Ministry of Parenting,Training
Peterborough,http://opendatacommunities.org/id/unitary-authority/peterborough,Peterborough City Council,Children's & Safeguarding,Access to Resources & Specialist Commissioning,Services,12/12/2016 00:00,30103509,3104.42,Revenue,Fostering Solutions,Boarding Out Allowances
Peterborough,http://opendatacommunities.org/id/unitary-authority/peterborough,Peterborough City Council,Children's & Safeguarding,Access to Resources & Specialist Commissioning,Services,12/12/2016 00:00,30103512,3882.56,Revenue,Fostering Solutions,Boarding Out Allowances
Peterborough,http://opendatacommunities.org/id/unitary-authority/peterborough,Peterborough City Council,Children's & Safeguarding,Access to Resources & Specialist Commissioning,Services,12/12/2016 00:00,30103513,2793.3,Revenue,Fostering Solutions,Boarding Out Allowances
Peterborough,http://opendatacommunities.org/id/unitary-authority/peterborough,Peterborough City Council,Children's & Safeguarding,Access to Resources & Specialist Commissioning,Services,12/12/2016 00:00,30103514,3267.81,Revenue,Fostering Solutions,Boarding Out Allowances
Peterborough,http://opendatacommunities.org/id/unitary-authority/peterborough,Peterborough City Council,Children's & Safeguarding,Access to Resources & Specialist Commissioning,Services,12/12/2016 00:00,30103515,3439.8,Revenue,Fostering Solutions,Boarding Out Allowances
Peterborough,http://opendatacommunities.org/id/unitary-authority/peterborough,Peterborough City Council,Children's & Safeguarding,Access to Resources & Specialist Commissioning,Services,12/12/2016 00:00,30103516,3439.8,Revenue,Fostering Solutions,Boarding Out Allowances
Peterborough,http://opendatacommunities.org/id/unitary-authority/peterborough,Peterborough City Council,Children's & Safeguarding,Access to Resources & Specialist Commissioning,Services,12/12/2016 00:00,30103519,3439.8,Revenue,Fostering Solutions,Boarding Out Allowances
Peterborough,http://opendatacommunities.org/id/unitary-authority/peterborough,Peterborough City Council,Children's & Safeguarding,Access to Resources & Specialist Commissioning,Services,12/12/2016 00:00,30103521,3882.56,Revenue,Fostering Solutions,Boarding Out Allowances
Peterborough,http://opendatacommunities.org/id/unitary-authority/peterborough,Peterborough City Council,Adults and Communities - Communities,Service Director - Adults & Communities,Third Party Payments,12/12/2016 00:00,30103525,2252,Revenue,Enterprise Managed Services Limited,Grant-Third Party
Peterborough,http://opendatacommunities.org/id/unitary-authority/peterborough,Peterborough City Council,ICT,ICT,Agency Staff,12/12/2016 00:00,30103729,2500,Revenue,Socitm Ltd,External Temporary Staff
Peterborough,http://opendatacommunities.org/id/unitary-authority/peterborough,Peterborough City Council,Various,Various,Services,12/12/2016 00:00,30104187,1397.52,Revenue,Whistl UK Ltd,Postage
Peterborough,http://opendatacommunities.org/id/unitary-authority/peterborough,Peterborough City Council,Public Health,Housing and Health - Public Health,Interview & Training Expenses,12/12/2016 00:00,30104194,1377.49,Revenue,Bowel Cancer UK,Training
Peterborough,http://opendatacommunities.org/id/unitary-authority/peterborough,Peterborough City Council,Adult Services & Communities - Adults,Independent Sector Placements,Services,12/12/2016 00:00,30104239,1100,Revenue,Longueville Court (Barchester),Residential Care
Peterborough,http://opendatacommunities.org/id/unitary-authority/peterborough,Peterborough City Council,Education,Special Educational Needs / Inclusion,Services,12/12/2016 00:00,30104365,1192,Revenue,Sonova UK Ltd,Education Expenses
Peterborough,http://opendatacommunities.org/id/unitary-authority/peterborough,Peterborough City Council,Adult Services & Communities - Adults,Independent Sector Placements,Services,12/12/2016 00:00,30105079,910.94,Revenue,THE TUDORS,Residential Care
Peterborough,http://opendatacommunities.org/id/unitary-authority/peterborough,Peterborough City Council,Amey Peterborough & Waste Management,Waste Management,Services,12/12/2016 00:00,30105251,839.96,Revenue,FCC Recycling (UK) Limited,Recycling
Peterborough,http://opendatacommunities.org/id/unitary-authority/peterborough,Peterborough City Council,Corporate Property,Commercial Propety,Rents,12/12/2016 00:00,30105501,32735.97,Revenue,DVS Management Ltd,Rent
Peterborough,http://opendatacommunities.org/id/unitary-authority/peterborough,Peterborough City Council,Legal & Democratic,Legal Services,Services,12/12/2016 00:00,30105545,1200,Revenue,"Elliott, Ms Margot",Legal Costs
Peterborough,http://opendatacommunities.org/id/unitary-authority/peterborough,Peterborough City Council,Legal & Democratic,Legal Services,Services,12/12/2016 00:00,30105603,550,Revenue,"Bramwell, Mr Christopher",Legal Costs
Peterborough,http://opendatacommunities.org/id/unitary-authority/peterborough,Peterborough City Council,Corporate,Corporate,Non Revenue,12/12/2016 00:00,30105610,765,Capital,Casbon Building Services,Grant Payment
Peterborough,http://opendatacommunities.org/id/unitary-authority/peterborough,Peterborough City Council,Adult Services & Communities - Adults,Independent Sector Placements,Services,12/12/2016 00:00,30105667,3062.86,Revenue,Kemps Place Ltd,Residential Care
Peterborough,http://opendatacommunities.org/id/unitary-authority/peterborough,Peterborough City Council,Adult Services & Communities - Adults,Independent Sector Placements,Services,12/12/2016 00:00,30105669,2680,Revenue,Kemps Place Ltd,Residential Care
Peterborough,http://opendatacommunities.org/id/unitary-authority/peterborough,Peterborough City Council,Education,School Improvement,Services,12/12/2016 00:00,30105744,20227.3,Revenue,The EAL Academy,Hired Services
Peterborough,http://opendatacommunities.org/id/unitary-authority/peterborough,Peterborough City Council,"Director, OP & JV",Growth HoS,Services,12/12/2016 00:00,30106117,4126031.24,Revenue,Skanska Construction UK Ltd,Third Party Payments - Contract
Peterborough,http://opendatacommunities.org/id/unitary-authority/peterborough,Peterborough City Council,Business Management and Commercial Operations,Clare Lodge,Agency Staff,12/12/2016 00:00,30106288,880,Revenue,Wrixon Care Services,External Temporary Staff
Peterborough,http://opendatacommunities.org/id/unitary-authority/peterborough,Peterborough City Council,Corporate,Corporate,Non Revenue,12/12/2016 00:00,30106567,1222146.89,Balance Sheet,HM Revenues & Customs,Taxes
Peterborough,http://opendatacommunities.org/id/unitary-authority/peterborough,Peterborough City Council,Vivacity/Cultural Services,Cultural Services,Water Services,12/12/2016 00:00,30106678,1218.47,Revenue,Anglian Water,Water
Peterborough,http://opendatacommunities.org/id/unitary-authority/peterborough,Peterborough City Council,Corporate,Corporate,Non Revenue,12/12/2016 00:00,30106729,3841.56,Capital,Garfield Builders Ltd,Building And Site Works
Peterborough,http://opendatacommunities.org/id/unitary-authority/peterborough,Peterborough City Council,Children's & Safeguarding,Access to Resources & Specialist Commissioning,Services,12/12/2016 00:00,30106785,5156.54,Revenue,Families First Ltd t/a Pathway Care,Boarding Out Allowances
Peterborough,http://opendatacommunities.org/id/unitary-authority/peterborough,Peterborough City Council,Children's & Safeguarding,Access to Resources & Specialist Commissioning,Services,12/12/2016 00:00,30106787,4990.2,Revenue,Families First Ltd t/a Pathway Care,Boarding Out Allowances
Peterborough,http://opendatacommunities.org/id/unitary-authority/peterborough,Peterborough City Council,Children's & Safeguarding,Access to Resources & Specialist Commissioning,Services,12/12/2016 00:00,30106788,5156.54,Revenue,Families First Ltd t/a Pathway Care,Boarding Out Allowances
Peterborough,http://opendatacommunities.org/id/unitary-authority/peterborough,Peterborough City Council,Children's & Safeguarding,Access to Resources & Specialist Commissioning,Services,12/12/2016 00:00,30106791,4990.2,Revenue,Families First Ltd t/a Pathway Care,Boarding Out Allowances
Peterborough,http://opendatacommunities.org/id/unitary-authority/peterborough,Peterborough City Council,Westcombe Engineering,Westcombe Engineering,Services,12/12/2016 00:00,30106796,712.5,Revenue,A1 Steel,Items For Resale
Peterborough,http://opendatacommunities.org/id/unitary-authority/peterborough,Peterborough City Council,Corporate,Corporate,Non Revenue,14/12/2016 00:00,30074981,2175.98,Capital,Salesforce.com,Computer Software
Peterborough,http://opendatacommunities.org/id/unitary-authority/peterborough,Peterborough City Council,Children's & Safeguarding,Access to Resources & Specialist Commissioning,Services,14/12/2016 00:00,30076976,4579.36,Revenue,Foster Care Associates Ltd FCA,Boarding Out Allowances
Peterborough,http://opendatacommunities.org/id/unitary-authority/peterborough,Peterborough City Council,Public Health,Business Management and Commercial Operations - Public Health,Third Party Payments,14/12/2016 00:00,30078237,1104,Revenue,Cambridgeshire Community Services,Third Party Payments - Contract
Peterborough,http://opendatacommunities.org/id/unitary-authority/peterborough,Peterborough City Council,Public Health,Business Management and Commercial Operations - Public Health,Third Party Payments,14/12/2016 00:00,30083482,992,Revenue,Cambridgeshire Community Services,Third Party Payments - Contract
Peterborough,http://opendatacommunities.org/id/unitary-authority/peterborough,Peterborough City Council,Public Health,Business Management and Commercial Operations - Public Health,Third Party Payments,14/12/2016 00:00,30086596,1048,Revenue,Cambridgeshire Community Services,Third Party Payments - Contract
Peterborough,http://opendatacommunities.org/id/unitary-authority/peterborough,Peterborough City Council,Public Health,Business Management and Commercial Operations - Public Health,Third Party Payments,14/12/2016 00:00,30090989,1860,Revenue,Cambridgeshire Community Services,Third Party Payments - Contract
Peterborough,http://opendatacommunities.org/id/unitary-authority/peterborough,Peterborough City Council,Public Health,Business Management and Commercial Operations - Public Health,Third Party Payments,14/12/2016 00:00,30096475,1180,Revenue,Cambridgeshire Community Services,Third Party Payments - Contract
Peterborough,http://opendatacommunities.org/id/unitary-authority/peterborough,Peterborough City Council,Corporate Property,Strategic Projects,Services,14/12/2016 00:00,30097329,5091.25,Revenue,Artelia UK,Consultants Fees
Peterborough,http://opendatacommunities.org/id/unitary-authority/peterborough,Peterborough City Council,Public Health,Business Management and Commercial Operations - Public Health,Third Party Payments,14/12/2016 00:00,30098815,1360,Revenue,Cambridgeshire Community Services,Third Party Payments - Contract
Peterborough,http://opendatacommunities.org/id/unitary-authority/peterborough,Peterborough City Council,Adult Services & Communities - Adults,Finance,Agency Staff,14/12/2016 00:00,30099173,2675,Revenue,Badenoch & Clark Ltd,External Temporary Staff
Peterborough,http://opendatacommunities.org/id/unitary-authority/peterborough,Peterborough City Council,Adult Services & Communities - Adults,Finance,Agency Staff,14/12/2016 00:00,30100063,2675,Revenue,Badenoch & Clark Ltd,External Temporary Staff
Peterborough,http://opendatacommunities.org/id/unitary-authority/peterborough,Peterborough City Council,Children's & Safeguarding,Child Health,"Tools, Equipment, Furniture & Materials",14/12/2016 00:00,30100807,1027.56,Revenue,Serco Ltd,Computer Hardware
Peterborough,http://opendatacommunities.org/id/unitary-authority/peterborough,Peterborough City Council,Children's & Safeguarding,Access to Resources & Specialist Commissioning,Services,14/12/2016 00:00,30101110,4034.34,Revenue,Five Rivers,Boarding Out Allowances
Peterborough,http://opendatacommunities.org/id/unitary-authority/peterborough,Peterborough City Council,Adult Services & Communities - Adults,Finance,Agency Staff,14/12/2016 00:00,30101357,2675,Revenue,Badenoch & Clark Ltd,External Temporary Staff
Peterborough,http://opendatacommunities.org/id/unitary-authority/peterborough,Peterborough City Council,Children's & Safeguarding,Access to Resources & Specialist Commissioning,Services,14/12/2016 00:00,30101375,2546.42,Revenue,Sixteen Plus Limited,Boarding Out Allowances
Peterborough,http://opendatacommunities.org/id/unitary-authority/peterborough,Peterborough City Council,HR,HR,Agency Staff,14/12/2016 00:00,30101614,8450,Revenue,Green Park Interim and Exec Ltd,External Temporary Staff
Peterborough,http://opendatacommunities.org/id/unitary-authority/peterborough,Peterborough City Council,Children's & Safeguarding,Access to Resources & Specialist Commissioning,Services,14/12/2016 00:00,30102132,2102.4,Revenue,Archway Care Ltd,Boarding Out Allowances
Peterborough,http://opendatacommunities.org/id/unitary-authority/peterborough,Peterborough City Council,Children's & Safeguarding,Access to Resources & Specialist Commissioning,Services,14/12/2016 00:00,30102133,2060.28,Revenue,Archway Care Ltd,Boarding Out Allowances
Peterborough,http://opendatacommunities.org/id/unitary-authority/peterborough,Peterborough City Council,Adult Services & Communities - Adults,Independent Sector Placements,Services,14/12/2016 00:00,30102679,544.52,Revenue,Axiom Care Ltd,Home Care
Peterborough,http://opendatacommunities.org/id/unitary-authority/peterborough,Peterborough City Council,Children's & Safeguarding,Access to Resources & Specialist Commissioning,Services,14/12/2016 00:00,30103188,4154.22,Revenue,Foster Care Associates Ltd FCA,Boarding Out Allowances
Peterborough,http://opendatacommunities.org/id/unitary-authority/peterborough,Peterborough City Council,Children's & Safeguarding,Access to Resources & Specialist Commissioning,Services,14/12/2016 00:00,30103189,4154.22,Revenue,Foster Care Associates Ltd FCA,Boarding Out Allowances
Peterborough,http://opendatacommunities.org/id/unitary-authority/peterborough,Peterborough City Council,Children's & Safeguarding,Access to Resources & Specialist Commissioning,Services,14/12/2016 00:00,30103296,4431.64,Revenue,Foster Care Associates Ltd FCA,Boarding Out Allowances
Peterborough,http://opendatacommunities.org/id/unitary-authority/peterborough,Peterborough City Council,Corporate,Corporate,Non Revenue,14/12/2016 00:00,30103370,834,Capital,UK Power Networks (operations) Ltd,Infrastructure
Peterborough,http://opendatacommunities.org/id/unitary-authority/peterborough,Peterborough City Council,Adults and Communities - Communities,Youth / Youth Offending,Services,14/12/2016 00:00,30103464,2268,Revenue,Kingswood Learning & Leisure Grp Ltd,Programmes
Peterborough,http://opendatacommunities.org/id/unitary-authority/peterborough,Peterborough City Council,Adult Services & Communities - Adults,Day Opportunities / In House,Agency Staff,14/12/2016 00:00,30103503,710.4,Revenue,Medicare First,External Temporary Staff
Peterborough,http://opendatacommunities.org/id/unitary-authority/peterborough,Peterborough City Council,Adult Services & Communities - Adults,Day Opportunities / In House,Agency Staff,14/12/2016 00:00,30103505,1221,Revenue,Medicare First,External Temporary Staff
Peterborough,http://opendatacommunities.org/id/unitary-authority/peterborough,Peterborough City Council,Children's & Safeguarding,Access to Resources & Specialist Commissioning,Services,14/12/2016 00:00,30103510,2768.49,Revenue,Fostering Solutions,Boarding Out Allowances
Peterborough,http://opendatacommunities.org/id/unitary-authority/peterborough,Peterborough City Council,Corporate Property,Office Accomodation,Repair & Maintenance of Buildings,14/12/2016 00:00,30103511,4037.61,Revenue,Baker Perkins Ltd,Service Charges - Premises
Peterborough,http://opendatacommunities.org/id/unitary-authority/peterborough,Peterborough City Council,City Servs & Communications,Regulatory Services,Agency Staff,14/12/2016 00:00,30103545,1140,Revenue,Osborne Richardson,External Temporary Staff
Peterborough,http://opendatacommunities.org/id/unitary-authority/peterborough,Peterborough City Council,Children's & Safeguarding,Child Health,Repair & Maintenance of Buildings,14/12/2016 00:00,30103704,585,Revenue,Britannia Fire & Security Ltd,Premises Maintenance
Peterborough,http://opendatacommunities.org/id/unitary-authority/peterborough,Peterborough City Council,City Servs & Communications,"Markets, Tourism & Events",Services,14/12/2016 00:00,30103705,6400,Revenue,British Red Cross,Conferences/Events
Peterborough,http://opendatacommunities.org/id/unitary-authority/peterborough,Peterborough City Council,"Cemeteries, Cremation & Registrars",Bereavement Service,Services,14/12/2016 00:00,30103709,632.95,Revenue,Fenland Stoneworks,Special Projects
Peterborough,http://opendatacommunities.org/id/unitary-authority/peterborough,Peterborough City Council,Peterborough Highway Services,Highway & Drainage Control,Agency Staff,14/12/2016 00:00,30103722,1260,Revenue,Matchtech,External Temporary Staff
Peterborough,http://opendatacommunities.org/id/unitary-authority/peterborough,Peterborough City Council,Peterborough Highway Services,Highway & Drainage Control,Agency Staff,14/12/2016 00:00,30103725,1332,Revenue,Matchtech,External Temporary Staff
Peterborough,http://opendatacommunities.org/id/unitary-authority/peterborough,Peterborough City Council,Peterborough Highway Services,Highway Mtce & Scheme Commissioning,Services,14/12/2016 00:00,30103733,7937.39,Revenue,MeteoGroup UK Ltd,Hired Services
Peterborough,http://opendatacommunities.org/id/unitary-authority/peterborough,Peterborough City Council,Education,Service Director Resources,Agency Staff,14/12/2016 00:00,30103734,4320,Revenue,Terry Reynolds Education Consulting Ltd,External Temporary Staff
